Workbook

Sheet 1. INFORMACION ACUMULADA
A2: VEEDURIA DISTRITAL - INFORMACIÓN GESTION CONTRACTUAL
A3: DEL 1 DE ENERO AL 31 DE DICIEMBRE DE 2022
A5: 1. Entidad | H5: 2. Sector
A6: 3. Presupuesto Disponible Inversión Directa PREDIS (BOGDATA) | E6: 45543224299 | H6: 5. Presupuesto Disponible Funcionamiento PREDIS (BOGDATA) | I6: 2858527642 | AI6: 7. Nombre de quien diligencia el formato | AK6: Jessica Julieth Cardona Jaramillo
A7: 4. Presupuesto Comprometido de Inversión Directa según PREDIS (BOGDATA) | E7: 42652920995 | H7: 6. Presupuesto Comprometido Funcionamiento según PREDIS (BOGDATA) | I7: 2673889361 | AI7: Cargo | AK7: Contratista
AI8: Dependencia | AK8: Contratación
AI9: Teléfono | AK9: 3166348049
AI10: Correo Electrónico | AK10: jessica.cardona@gobiernobogota.gov.co
A11: 1- INFORMACION GENERAL | V11: 2- INFORMACION FINANCIERA | AC11: 3 - PLAZOS | AI11: 4. CESION | AM11: 5. ESTADO | AN11: 6. % Avance y/o cumplimiento
A12: 1 | B12: 2 | C12: 3 | E12: 4 | F12: 5 | G12: 6 | H12: 7 | I12: 8 | N12: 9 | O12: 10 | P12: 11 | V12: 12 | W12: 13 | X12: 14 | Y12: 15 | Z12: 16 | AA12: 17 | AB12: 18 | AC12: 19 | AD12: 20 | AE12: 21 | AF12: 22 | AG12: 23 | AH12: 24 | AI12: 25 | AJ12: 26 | AK12: 27 | AL12: 28 | AM12: 29 | AN12: 30
A13: Número Contrato | B13: Año | C13: Número de proceso contractual SECOP | D13: Link proceso SECOP | E13: Tipo de contrato | F13: Modalidad de Selección | G13: Procedimiento o causal | H13: Objeto | I13: Afectación | J13: Plan de Desarrollo Distrital | K13: Número Programa | L13: Equivalencia número de programa | M13: Propósito | N13: Número Proyecto | O13: Número de proponentes | P13: Número de Identificación del contratista (Cédula o NIT sin puntos, comas ni caracteres especiales y sin digito de verificación) | Q13: Nombre del contratista (según el caso: nombres y apellidos o Razón social y Tipo societario) | R13: Naturaleza Jurídica | S13: Número de Identificación del integrante del Consorcio o U.T. (Cédula o NIT sin puntos, comas ni caracteres especiales y sin digito de verificación) | T13: Nombre del Integrante del Consorcio o U.T. y Tipo societario (Según el caso: nombres y apellidos o razón social y tipo societario) | U13: % Participación (indicar solo el numero del porcentaje, sin caracteres especiales) | V13: Vigencias futuras | W13: Valor Inicial del contrato | X13: Valor total reducciones (En valor negativo) | Y13: Número de adiciones | Z13: Valor total de adiciones | AA13: Valor Final | AB13: Giros (Valor en pesos) | AC13: Fecha de suscripción (DD/MM/AAAA) | AD13: Fecha de inicio (DD/MM/AAAA) | AE13: Fecha de terminación (DD/MM/AAAA) | AF13: Plazo en días | AG13: Número de prórrogas | AH13: Prorroga en días | AI13: Número de Identificación del cesionario (NIT sin digito de verificación) | AJ13: Nombre cesionario | AK13: Fecha cesión (DD/MM/AAAA) | AL13: Valor cesión | AM13: Estado | AN13: % Avance y/o Cumplimiento
A14: CPS-001-2022 | B14: 2022 | C14: FDRS-CD-001-2022 | D14: https://community.secop.gov.co/Public/Tendering/OpportunityDetail/Index?noticeUID=CO1.NTC.2530663&isFromPublicArea=True&isModal=False | E14: Contratos de prestación de servicios profesionales y de apoyo a la gestión | F14: Contratación directa | G14: Prestación de servicios profesionales y de apoyo a la gestión, o para la ejecución de trabajos artísticos que sólo puedan encomendarse a determinadas personas naturales | H14: PRESTAR LOS SERVICIOS PROFESIONALES ESPECIALIZADOS, EN LAS DIFERENTES ETAPAS DE LOS PROCESOS JURÍDICO-ADMINISTRATIVOS Y OPERATIVOS A FIN DE DAR CUMPLIMIENTO AL PLAN DE DESARROLLO LOCAL | I14: Inversión | J14: Un nuevo contrato social y ambiental para la Bogotá del Siglo XXI | K14: 57 | L14: =IF(ISERROR(VLOOKUP(K14,Proposito_programa!$C$2:$E$59,2,FALSE))," ",VLOOKUP(K14,Proposito_programa!$C$2:$E$59,2,FALSE)) -> Gestión pública local | M14: =IF(ISERROR(VLOOKUP(K14,Proposito_programa!$C$2:$E$59,3,FALSE))," ",VLOOKUP(K14,Proposito_programa!$C$2:$E$59,3,FALSE)) -> Propósito 5: Construir Bogotá - Región con gobierno abierto, transparente y ciudadanía consciente | N14: 1696 | O14: 1 | P14: 1030610164 | Q14: BRAHAN EDUARDO GARCIA LOPEZ | R14: Persona Natural | W14: 88000000 | AA14: =+W14+X14+Z14 -> 88000000 | AB14: 88000000 | AC14: 2022-01-12 | AD14: 2022-01-12 | AE14: 2022-12-11 | AF14: 333 | AM14: Terminado | AN14: =IF(ISERROR(AB14/AA14),"-",(AB14/AA14)) -> 1
A15: CPS-002-2022 | B15: 2022 | C15: FDRS-CD-002-2022 | D15: https://community.secop.gov.co/Public/Tendering/OpportunityDetail/Index?noticeUID=CO1.NTC.2549491&isFromPublicArea=True&isModal=False | E15: Contratos de prestación de servicios profesionales y de apoyo a la gestión | F15: Contratación directa | G15: Prestación de servicios profesionales y de apoyo a la gestión, o para la ejecución de trabajos artísticos que sólo puedan encomendarse a determinadas personas naturales | H15: PRESTAR LOS SERVICIOS PROFESIONALES ESPECIALIZADOS PARA EL DESPACHO DE LA ALCALDÍA LOCAL DE SUMAPAZ, EN LOS PROCESOS LEGALES, JURÍDICOS, ADMINISTRATIVOS Y OPERATIVOS PARA DAR CUMPLIMIENTO AL PLAN DE DESARROLLO LOCAL | I15: Inversión | J15: Un nuevo contrato social y ambiental para la Bogotá del Siglo XXI | K15: 57 | L15: =IF(ISERROR(VLOOKUP(K15,Proposito_programa!$C$2:$E$59,2,FALSE))," ",VLOOKUP(K15,Proposito_programa!$C$2:$E$59,2,FALSE)) -> Gestión pública local | M15: =IF(ISERROR(VLOOKUP(K15,Proposito_programa!$C$2:$E$59,3,FALSE))," ",VLOOKUP(K15,Proposito_programa!$C$2:$E$59,3,FALSE)) -> Propósito 5: Construir Bogotá - Región con gobierno abierto, transparente y ciudadanía consciente | N15: 1696 | O15: 1 | P15: 52967366 | Q15: DIANA CAROLINA RODRIGUEZ PEÑA | R15: Persona Natural | W15: 88000000 | AA15: =+W15+X15+Z15 -> 88000000 | AB15: 84533333 | AC15: 2022-01-13 | AD15: 2022-01-14 | AE15: 2022-12-13 | AF15: 333 | AM15: Terminado | AN15: =IF(ISERROR(AB15/AA15),"-",(AB15/AA15)) -> 0.9606060568
A16: CPS-003-2022 | B16: 2022 | C16: FDRS-CD-003-2022 | D16: https://community.secop.gov.co/Public/Tendering/OpportunityDetail/Index?noticeUID=CO1.NTC.2550452&isFromPublicArea=True&isModal=False | E16: Contratos de prestación de servicios profesionales y de apoyo a la gestión | F16: Contratación directa | G16: Prestación de servicios profesionales y de apoyo a la gestión, o para la ejecución de trabajos artísticos que sólo puedan encomendarse a determinadas personas naturales | H16: PRESTAR LOS SERVICIOS PROFESIONALES JURÍDICOS PARA APOYAR LOS ASUNTOS PRECONTRACTUALES, CONTRACTUALES Y POST-CONTRACTUALES DEL ÁREA DE GESTIÓN DE DESARROLLO LOCAL DE LA ALCALDÍA LOCAL DE SUMAPAZ | I16: Inversión | J16: Un nuevo contrato social y ambiental para la Bogotá del Siglo XXI | K16: 57 | L16: =IF(ISERROR(VLOOKUP(K16,Proposito_programa!$C$2:$E$59,2,FALSE))," ",VLOOKUP(K16,Proposito_programa!$C$2:$E$59,2,FALSE)) -> Gestión pública local | M16: =IF(ISERROR(VLOOKUP(K16,Proposito_programa!$C$2:$E$59,3,FALSE))," ",VLOOKUP(K16,Proposito_programa!$C$2:$E$59,3,FALSE)) -> Propósito 5: Construir Bogotá - Región con gobierno abierto, transparente y ciudadanía consciente | N16: 1696 | O16: 1 | P16: 52777050 | Q16: MIRYAN CRISTINA PARRA DUQUE | R16: Persona Natural | W16: 66000000 | Y16: 1 | Z16: 12000000 | AA16: 78000000 | AB16: 63400000 | AC16: 2022-01-13 | AD16: 2022-01-14 | AE16: 2022-12-13 | AF16: 333 | AG16: 1 | AH16: 60 | AM16: En ejecución | AN16: 0.8128205128
A17: CPS-004-2022 | B17: 2022 | C17: FDRS-CD-004-2022 | D17: https://community.secop.gov.co/Public/Tendering/OpportunityDetail/Index?noticeUID=CO1.NTC.2545085&isFromPublicArea=True&isModal=False | E17: Contratos de prestación de servicios profesionales y de apoyo a la gestión | F17: Contratación directa | G17: Prestación de servicios profesionales y de apoyo a la gestión, o para la ejecución de trabajos artísticos que sólo puedan encomendarse a determinadas personas naturales | H17: PRESTAR SUS SERVICIOS COMO TÉCNICO DE APOYO ADMINISTRATIVO AL ÁREA DE GESTIÓN DE DESARROLLO LOCAL EN LOS PROCESOS CONTRACTUALES, DE LA ALCALDÍA LOCAL DE SUMAPAZ | I17: Inversión | J17: Un nuevo contrato social y ambiental para la Bogotá del Siglo XXI | K17: 57 | L17: =IF(ISERROR(VLOOKUP(K17,Proposito_programa!$C$2:$E$59,2,FALSE))," ",VLOOKUP(K17,Proposito_programa!$C$2:$E$59,2,FALSE)) -> Gestión pública local | M17: =IF(ISERROR(VLOOKUP(K17,Proposito_programa!$C$2:$E$59,3,FALSE))," ",VLOOKUP(K17,Proposito_programa!$C$2:$E$59,3,FALSE)) -> Propósito 5: Construir Bogotá - Región con gobierno abierto, transparente y ciudadanía consciente | N17: 1696 | O17: 1 | P17: 1022323083 | Q17: SANDRA MARCELA CASTRO GONZALEZ | R17: Persona Natural | W17: 44000000 | AA17: 44000000 | AB17: 42266667 | AC17: 2022-01-13 | AD17: 2022-01-14 | AE17: 2022-12-13 | AF17: 333 | AM17: Terminado | AN17: 0.9606060682
A18: CPS-005-2022 | B18: 2022 | C18: FDRS-CD-005-2022 | D18: https://community.secop.gov.co/Public/Tendering/OpportunityDetail/Index?noticeUID=CO1.NTC.2550354&isFromPublicArea=True&isModal=False | E18: Contratos de prestación de servicios profesionales y de apoyo a la gestión | F18: Contratación directa | G18: Prestación de servicios profesionales y de apoyo a la gestión, o para la ejecución de trabajos artísticos que sólo puedan encomendarse a determinadas personas naturales | H18: PRESTAR LOS SERVICIOS COMO TÉCNICO ADMINISTRATIVO EN LOS TEMAS FINANCIEROS DEL ÁREA DE GESTIÓN DE DESARROLLO LOCAL DE LA ALCALDÍA LOCAL DE SUMAPAZ | I18: Inversión | J18: Un nuevo contrato social y ambiental para la Bogotá del Siglo XXI | K18: 57 | L18: =IF(ISERROR(VLOOKUP(K18,Proposito_programa!$C$2:$E$59,2,FALSE))," ",VLOOKUP(K18,Proposito_programa!$C$2:$E$59,2,FALSE)) -> Gestión pública local | M18: =IF(ISERROR(VLOOKUP(K18,Proposito_programa!$C$2:$E$59,3,FALSE))," ",VLOOKUP(K18,Proposito_programa!$C$2:$E$59,3,FALSE)) -> Propósito 5: Construir Bogotá - Región con gobierno abierto, transparente y ciudadanía consciente | N18: 1696 | O18: 1 | P18: 52809596 | Q18: MARTHA LILIANA CARRERO VILLAMIL | R18: Persona Natural | W18: 44000000 | Y18: 1 | Z18: 4000000 | AA18: 48000000 | AB18: 42266667 | AC18: 2022-01-13 | AD18: 2022-01-14 | AE18: 2022-12-13 | AF18: 333 | AG18: 1 | AH18: 30 | AM18: En ejecución | AN18: 0.8805555625
A19: CPS-006-2022 | B19: 2022 | C19: FDRS-CD-006-2022 | D19: https://community.secop.gov.co/Public/Tendering/OpportunityDetail/Index?noticeUID=CO1.NTC.2544430&isFromPublicArea=True&isModal=False | E19: Contratos de prestación de servicios profesionales y de apoyo a la gestión | F19: Contratación directa | G19: Prestación de servicios profesionales y de apoyo a la gestión, o para la ejecución de trabajos artísticos que sólo puedan encomendarse a determinadas personas naturales | H19: PRESTAR SUS SERVICIOS PROFESIONALES DE APOYO ADMINISTRATIVO AL ÁREA DE GESTIÓN DEL DESARROLLO LOCAL, EN LA GESTIÓN CONTRACTUAL DEL FONDO DE DESARROLLO RURAL DE SUMAPAZ | I19: Inversión | J19: Un nuevo contrato social y ambiental para la Bogotá del Siglo XXI | K19: 57 | L19: =IF(ISERROR(VLOOKUP(K19,Proposito_programa!$C$2:$E$59,2,FALSE))," ",VLOOKUP(K19,Proposito_programa!$C$2:$E$59,2,FALSE)) -> Gestión pública local | M19: =IF(ISERROR(VLOOKUP(K19,Proposito_programa!$C$2:$E$59,3,FALSE))," ",VLOOKUP(K19,Proposito_programa!$C$2:$E$59,3,FALSE)) -> Propósito 5: Construir Bogotá - Región con gobierno abierto, transparente y ciudadanía consciente | N19: 1696 | O19: 1 | P19: 1010204948 | Q19: CHRISTIAN CAMILO RUBIANO GOMEZ | R19: Persona Natural | W19: 66000000 | Y19: 1 | Z19: 9000000 | AA19: 75000000 | AB19: 63600000 | AC19: 2022-01-13 | AD19: 2022-01-13 | AE19: 2022-12-12 | AF19: 333 | AG19: 1 | AH19: 45 | AM19: En ejecución | AN19: 0.848
A20: CPS-007-2022 | B20: 2022 | C20: FDRS-CD-007-2022 | D20: https://community.secop.gov.co/Public/Tendering/OpportunityDetail/Index?noticeUID=CO1.NTC.2549476&isFromPublicArea=True&isModal=False | E20: Contratos de prestación de servicios profesionales y de apoyo a la gestión | F20: Contratación directa | G20: Prestación de servicios profesionales y de apoyo a la gestión, o para la ejecución de trabajos artísticos que sólo puedan encomendarse a determinadas personas naturales | H20: PRESTAR LOS SERVICIOS PROFESIONALES DE APOYO AL ÁREA DE GESTIÓN DE DESARROLLO LOCAL DE LA ALCALDÍA LOCAL DE SUMAPAZ, EN TEMAS RELACIONADOS CON EMPLEABILIDAD Y ATENCIÓN A LA POBLACIÓN VULNERABLE | I20: Inversión | J20: Un nuevo contrato social y ambiental para la Bogotá del Siglo XXI | K20: 57 | L20: =IF(ISERROR(VLOOKUP(K20,Proposito_programa!$C$2:$E$59,2,FALSE))," ",VLOOKUP(K20,Proposito_programa!$C$2:$E$59,2,FALSE)) -> Gestión pública local | M20: =IF(ISERROR(VLOOKUP(K20,Proposito_programa!$C$2:$E$59,3,FALSE))," ",VLOOKUP(K20,Proposito_programa!$C$2:$E$59,3,FALSE)) -> Propósito 5: Construir Bogotá - Región con gobierno abierto, transparente y ciudadanía consciente | N20: 1696 | O20: 1 | P20: 1016101268 | Q20: BRAND SEBASTIAN MORENO GARCIA | R20: Persona Natural | W20: 55000000 | Y20: 1 | Z20: 5000000 | AA20: 60000000 | AB20: 52833333 | AC20: 2022-01-13 | AD20: 2022-01-14 | AE20: 2022-12-13 | AF20: 333 | AG20: 1 | AH20: 30 | AM20: En ejecución | AN20: 0.88055555
A21: CPS-008-2022 | B21: 2022 | C21: FDRS-CD-008-2022 | D21: https://community.secop.gov.co/Public/Tendering/OpportunityDetail/Index?noticeUID=CO1.NTC.2547129&isFromPublicArea=True&isModal=False | E21: Contratos de prestación de servicios profesionales y de apoyo a la gestión | F21: Contratación directa | G21: Prestación de servicios profesionales y de apoyo a la gestión, o para la ejecución de trabajos artísticos que sólo puedan encomendarse a determinadas personas naturales | H21: PRESTAR LOS SERVICIOS DE APOYO ADMINISTRATIVO AL ÁREA DE GESTIÓN DE DESARROLLO LOCAL, EN LA GESTIÓN DE PLANEACIÓN DE LA ALCALDÍA LOCAL DE SUMAPAZ | I21: Inversión | J21: Un nuevo contrato social y ambiental para la Bogotá del Siglo XXI | K21: 57 | L21: =IF(ISERROR(VLOOKUP(K21,Proposito_programa!$C$2:$E$59,2,FALSE))," ",VLOOKUP(K21,Proposito_programa!$C$2:$E$59,2,FALSE)) -> Gestión pública local | M21: =IF(ISERROR(VLOOKUP(K21,Proposito_programa!$C$2:$E$59,3,FALSE))," ",VLOOKUP(K21,Proposito_programa!$C$2:$E$59,3,FALSE)) -> Propósito 5: Construir Bogotá - Región con gobierno abierto, transparente y ciudadanía consciente | N21: 1696 | O21: 1 | P21: 1000601472 | Q21: JUAN FELIPE FLOREZ GALEANO | R21: Persona Natural | W21: 29700000 | X21: -10710000 | AA21: 18990000 | AB21: 18900000 | AC21: 2022-01-13 | AD21: 2022-01-13 | AE21: 2022-12-12 | AF21: 333 | AM21: Terminado | AN21: 0.9952606635
A22: CPS-009-2022 | B22: 2022 | C22: FDRS-CD-009-2022 | D22: https://community.secop.gov.co/Public/Tendering/OpportunityDetail/Index?noticeUID=CO1.NTC.2548981&isFromPublicArea=True&isModal=False | E22: Contratos de prestación de servicios profesionales y de apoyo a la gestión | F22: Contratación directa | G22: Prestación de servicios profesionales y de apoyo a la gestión, o para la ejecución de trabajos artísticos que sólo puedan encomendarse a determinadas personas naturales | H22: PRESTAR SUS SERVICIOS COMO TÉCNICO DE APOYO ADMINISTRATIVO AL ÁREA DE GESTIÓN DE DESARROLLO LOCAL EN LOS PROCESOS CONTRACTUALES, DE LA ALCALDÍA LOCAL DE SUMAPAZ | I22: Inversión | J22: Un nuevo contrato social y ambiental para la Bogotá del Siglo XXI | K22: 57 | L22: =IF(ISERROR(VLOOKUP(K22,Proposito_programa!$C$2:$E$59,2,FALSE))," ",VLOOKUP(K22,Proposito_programa!$C$2:$E$59,2,FALSE)) -> Gestión pública local | M22: =IF(ISERROR(VLOOKUP(K22,Proposito_programa!$C$2:$E$59,3,FALSE))," ",VLOOKUP(K22,Proposito_programa!$C$2:$E$59,3,FALSE)) -> Propósito 5: Construir Bogotá - Región con gobierno abierto, transparente y ciudadanía consciente | N22: 1696 | O22: 1 | P22: 53074893 | Q22: MARLEN MAZANORY PARRA BORREGO | R22: Persona Natural | W22: 44000000 | Y22: 1 | Z22: 6000000 | AA22: 50000000 | AB22: 42526667 | AC22: 2022-01-13 | AD22: 2022-01-13 | AE22: 2022-12-12 | AF22: 333 | AG22: 1 | AH22: 45 | AM22: En ejecución | AN22: 0.85053334
A23: CPS-010-2022 | B23: 2022 | C23: FDRS-CD-010-2022 | D23: https://community.secop.gov.co/Public/Tendering/OpportunityDetail/Index?noticeUID=CO1.NTC.2550288&isFromPublicArea=True&isModal=False | E23: Contratos de prestación de servicios profesionales y de apoyo a la gestión | F23: Contratación directa | G23: Prestación de servicios profesionales y de apoyo a la gestión, o para la ejecución de trabajos artísticos que sólo puedan encomendarse a determinadas personas naturales | H23: PRESTAR LOS SERVICIOS PROFESIONALES JURÍDICOS PARA APOYAR LOS ASUNTOS PRECONTRACTUALES, CONTRACTUALES Y POST-CONTRACTUALES DEL ÁREA DE GESTIÓN DE DESARROLLO LOCAL DE LA ALCALDÍA LOCAL DE SUMAPAZ | I23: Inversión | J23: Un nuevo contrato social y ambiental para la Bogotá del Siglo XXI | K23: 57 | L23: =IF(ISERROR(VLOOKUP(K23,Proposito_programa!$C$2:$E$59,2,FALSE))," ",VLOOKUP(K23,Proposito_programa!$C$2:$E$59,2,FALSE)) -> Gestión pública local | M23: =IF(ISERROR(VLOOKUP(K23,Proposito_programa!$C$2:$E$59,3,FALSE))," ",VLOOKUP(K23,Proposito_programa!$C$2:$E$59,3,FALSE)) -> Propósito 5: Construir Bogotá - Región con gobierno abierto, transparente y ciudadanía consciente | N23: 1696 | O23: 1 | P23: 1020796899 | Q23: MARIA CAMILA DIAZ MENCO | R23: Persona Natural | W23: 66000000 | AA23: 66000000 | AB23: 59000000 | AC23: 2022-01-13 | AD23: 2022-01-13 | AE23: 2022-12-12 | AF23: 333 | AM23: Terminado | AN23: 0.8939393939
A24: CPS-011-2022 | B24: 2022 | C24: FDRS-CD-011-2022 | D24: https://community.secop.gov.co/Public/Tendering/OpportunityDetail/Index?noticeUID=CO1.NTC.2550499&isFromPublicArea=True&isModal=False | E24: Contratos de prestación de servicios profesionales y de apoyo a la gestión | F24: Contratación directa | G24: Prestación de servicios profesionales y de apoyo a la gestión, o para la ejecución de trabajos artísticos que sólo puedan encomendarse a determinadas personas naturales | H24: PRESTAR LOS SERVICIOS PROFESIONALES PARA APOYAR LA PLANEACIÓN DE LOS PROYECTOS DE INVERSIÓN DE PARTICIPACIÓN QUE EJECUTE EL FONDO DE DESARROLLO RURAL DE SUMAPAZ | I24: Inversión | J24: Un nuevo contrato social y ambiental para la Bogotá del Siglo XXI | K24: 55 | L24: =IF(ISERROR(VLOOKUP(K24,Proposito_programa!$C$2:$E$59,2,FALSE))," ",VLOOKUP(K24,Proposito_programa!$C$2:$E$59,2,FALSE)) -> Fortalecimiento de cultura ciudadana y su institucionalidad | M24: =IF(ISERROR(VLOOKUP(K24,Proposito_programa!$C$2:$E$59,3,FALSE))," ",VLOOKUP(K24,Proposito_programa!$C$2:$E$59,3,FALSE)) -> Propósito 5: Construir Bogotá - Región con gobierno abierto, transparente y ciudadanía consciente | N24: 1691 | O24: 1 | P24: 1015415370 | Q24: ANGIE CAROLINA PRIETO ALVARADO | R24: Persona Natural | W24: 66000000 | Y24: 1 | Z24: 6000000 | AA24: 72000000 | AB24: 63400000 | AC24: 2022-01-13 | AD24: 2022-01-14 | AE24: 2022-12-13 | AF24: 333 | AG24: 1 | AH24: 43 | AM24: En ejecución | AN24: 0.8805555556
A25: CPS-012-2022 | B25: 2022 | C25: FDRS-CD-012-2022 | D25: https://community.secop.gov.co/Public/Tendering/OpportunityDetail/Index?noticeUID=CO1.NTC.2551226&isFromPublicArea=True&isModal=False | E25: Contratos de prestación de servicios profesionales y de apoyo a la gestión | F25: Contratación directa | G25: Prestación de servicios profesionales y de apoyo a la gestión, o para la ejecución de trabajos artísticos que sólo puedan encomendarse a determinadas personas naturales | H25: PRESTAR LOS SERVICIOS PROFESIONALES PARA APOYAR LA PLANEACIÓN, LA EJECUCIÓN Y SEGUIMIENTO DE LOS PROYECTOS DE INVERSIÓN EN LOS TEMAS DE RECREACIÓN Y DEPORTE QUE EJECUTE EL FONDO DE DESARROLLO RURAL DE SUMAPAZ | I25: Inversión | J25: Un nuevo contrato social y ambiental para la Bogotá del Siglo XXI | K25: 20 | L25: =IF(ISERROR(VLOOKUP(K25,Proposito_programa!$C$2:$E$59,2,FALSE))," ",VLOOKUP(K25,Proposito_programa!$C$2:$E$59,2,FALSE)) -> Bogotá, referente en cultura, deporte, recreación y actividad física, con parques para el desarrollo y la salud | M25: =IF(ISERROR(VLOOKUP(K25,Proposito_programa!$C$2:$E$59,3,FALSE))," ",VLOOKUP(K25,Proposito_programa!$C$2:$E$59,3,FALSE)) -> Propósito 1: Hacer un nuevo contrato social para incrementar la inclusión social, productiva y política | N25: 1590 | O25: 1 | P25: 1016062253 | Q25: JENNY MARCELA GONZALEZ MARTIN | R25: Persona Natural | W25: 66000000 | Y25: 1 | Z25: 6000000 | AA25: 72000000 | AB25: 63400000 | AC25: 2022-01-14 | AD25: 2022-01-14 | AE25: 2022-12-13 | AF25: 333 | AG25: 1 | AH25: 30 | AM25: En ejecución | AN25: 0.8805555556
A26: CPS-013-2022 | B26: 2022 | C26: FDRS-CD-013-2022 | D26: https://community.secop.gov.co/Public/Tendering/OpportunityDetail/Index?noticeUID=CO1.NTC.2552548&isFromPublicArea=True&isModal=False | E26: Contratos de prestación de servicios profesionales y de apoyo a la gestión | F26: Contratación directa | G26: Prestación de servicios profesionales y de apoyo a la gestión, o para la ejecución de trabajos artísticos que sólo puedan encomendarse a determinadas personas naturales | H26: PRESTAR SUS SERVICIOS COMO PROFESIONAL DE APOYO A LA GESTIÓN, PARA DAR RESPUESTA A DERECHOS DE PETICIÓN Y DEMÁS REQUERIMIENTOS RELACIONADOS CON LOS PROCESOS CONTRACTUALES DEL FONDO DE DESARROLLO RURAL DE SUMAPAZ | I26: Inversión | J26: Un nuevo contrato social y ambiental para la Bogotá del Siglo XXI | K26: 57 | L26: =IF(ISERROR(VLOOKUP(K26,Proposito_programa!$C$2:$E$59,2,FALSE))," ",VLOOKUP(K26,Proposito_programa!$C$2:$E$59,2,FALSE)) -> Gestión pública local | M26: =IF(ISERROR(VLOOKUP(K26,Proposito_programa!$C$2:$E$59,3,FALSE))," ",VLOOKUP(K26,Proposito_programa!$C$2:$E$59,3,FALSE)) -> Propósito 5: Construir Bogotá - Región con gobierno abierto, transparente y ciudadanía consciente | N26: 1696 | O26: 1 | P26: 1020802394 | Q26: JESSICA JULIETH CARDONA JARAMILLO | R26: Persona Natural | W26: 55000000 | Y26: 1 | Z26: 10000000 | AA26: 65000000 | AB26: 52833333 | AC26: 2022-01-14 | AD26: 2022-01-14 | AE26: 2022-12-13 | AF26: 333 | AG26: 1 | AH26: 60 | AM26: En ejecución | AN26: 0.8128205077
A27: CPS-014-2022 | B27: 2022 | C27: FDRS-CD-014-2022 | D27: https://community.secop.gov.co/Public/Tendering/OpportunityDetail/Index?noticeUID=CO1.NTC.2576896&isFromPublicArea=True&isModal=False | E27: Contratos de prestación de servicios profesionales y de apoyo a la gestión | F27: Contratación directa | G27: Prestación de servicios profesionales y de apoyo a la gestión, o para la ejecución de trabajos artísticos que sólo puedan encomendarse a determinadas personas naturales | H27: PRESTAR LOS SERVICIOS PROFESIONALES AL ÁREA DE GESTIÓN DEL DESARROLLO LOCAL, PARA APOYAR LOS ESTUDIOS DEL SECTOR EN LOS GASTOS DE FUNCIONAMIENTO Y LAS INICIATIVAS LOCALES DEL FONDO DE DESARROLLO RURAL DE SUMAPAZ | I27: Inversión | J27: Un nuevo contrato social y ambiental para la Bogotá del Siglo XXI | K27: 57 | L27: =IF(ISERROR(VLOOKUP(K27,Proposito_programa!$C$2:$E$59,2,FALSE))," ",VLOOKUP(K27,Proposito_programa!$C$2:$E$59,2,FALSE)) -> Gestión pública local | M27: =IF(ISERROR(VLOOKUP(K27,Proposito_programa!$C$2:$E$59,3,FALSE))," ",VLOOKUP(K27,Proposito_programa!$C$2:$E$59,3,FALSE)) -> Propósito 5: Construir Bogotá - Región con gobierno abierto, transparente y ciudadanía consciente | N27: 1696 | O27: 1 | P27: 79972956 | Q27: JUAN CARLOS HERNANEZ PEÑA | R27: Persona Natural | W27: 50600000 | AA27: 50600000 | AB27: 50600000 | AC27: 2022-01-17 | AD27: 2022-01-18 | AE27: 2022-12-17 | AF27: 333 | AM27: Terminado | AN27: 1
A28: CPS-015-2022 | B28: 2022 | C28: FDRS-CD-015-2022 | D28: https://community.secop.gov.co/Public/Tendering/OpportunityDetail/Index?noticeUID=CO1.NTC.2554841&isFromPublicArea=True&isModal=False | E28: Contratos de prestación de servicios profesionales y de apoyo a la gestión | F28: Contratación directa | G28: Prestación de servicios profesionales y de apoyo a la gestión, o para la ejecución de trabajos artísticos que sólo puedan encomendarse a determinadas personas naturales | H28: PRESTAR LOS SERVICIOS PROFESIONALES ESPECIALIZADOS PARA APOYAR LOS ASUNTOS LEGALES, CONTRACTUALES Y POST-CONTRACTUALES DE LA ALCALDÍA LOCAL DE SUMAPAZ | I28: Inversión | J28: Un nuevo contrato social y ambiental para la Bogotá del Siglo XXI | K28: 57 | L28: =IF(ISERROR(VLOOKUP(K28,Proposito_programa!$C$2:$E$59,2,FALSE))," ",VLOOKUP(K28,Proposito_programa!$C$2:$E$59,2,FALSE)) -> Gestión pública local | M28: =IF(ISERROR(VLOOKUP(K28,Proposito_programa!$C$2:$E$59,3,FALSE))," ",VLOOKUP(K28,Proposito_programa!$C$2:$E$59,3,FALSE)) -> Propósito 5: Construir Bogotá - Región con gobierno abierto, transparente y ciudadanía consciente | N28: 1696 | O28: 1 | P28: 52380146 | Q28: PATRICIA ABRIL OSPITIA | R28: Persona Natural | W28: 88000000 | AA28: 88000000 | AB28: 84533333 | AC28: 2022-01-14 | AD28: 2022-01-14 | AE28: 2022-12-13 | AF28: 333 | AM28: Terminado | AN28: 0.9606060568
A29: CPS-016-2022 | B29: 2022 | C29: FDRS-CD-016-2022 | D29: https://community.secop.gov.co/Public/Tendering/OpportunityDetail/Index?noticeUID=CO1.NTC.2563490&isFromPublicArea=True&isModal=False | E29: Contratos de prestación de servicios profesionales y de apoyo a la gestión | F29: Contratación directa | G29: Prestación de servicios profesionales y de apoyo a la gestión, o para la ejecución de trabajos artísticos que sólo puedan encomendarse a determinadas personas naturales | H29: PRESTAR LOS SERVICIOS TÉCNICOS PARA LA OPERACIÓN, SEGUIMIENTO Y CUMPLIMIENTO DE LOS PROCESOS Y PROCEDIMIENTOS DEL SERVICIO APOYOS PARA LA SEGURIDAD ECONÓMICA TIPO C, REQUERIDOS PARA EL OPORTUNO Y ADECUADO REGISTRO, CRUCE Y REPORTE DE LOS DATOS EN EL SISTEMA MISIONAL-SIRBE, QUE CONTRIBUYAN A LA GARANTÍA DE LOS DERECHOS DE LA POBLACIÓN MAYOR EN EL MARCO DE LA POLÍTICA PÚBLICA SOCIAL PARA EL ENVEJECIMIENTO Y LA VEJEZ EN EL DISTRITO CAPITAL A CARGO DE LA ALCALDÍA LOCAL | I29: Inversión | J29: Un nuevo contrato social y ambiental para la Bogotá del Siglo XXI | K29: 1 | L29: =IF(ISERROR(VLOOKUP(K29,Proposito_programa!$C$2:$E$59,2,FALSE))," ",VLOOKUP(K29,Proposito_programa!$C$2:$E$59,2,FALSE)) -> Subsidios y transferencias para la equidad | M29: =IF(ISERROR(VLOOKUP(K29,Proposito_programa!$C$2:$E$59,3,FALSE))," ",VLOOKUP(K29,Proposito_programa!$C$2:$E$59,3,FALSE)) -> Propósito 1: Hacer un nuevo contrato social para incrementar la inclusión social, productiva y política | N29: 1583 | O29: 1 | P29: 1022998108 | Q29: CRISTIAN ANDRES VASQUEZ CHINGATE | R29: Persona Natural | W29: 44000000 | AA29: 44000000 | AB29: 42133333 | AC29: 2022-01-14 | AD29: 2022-01-15 | AE29: 2022-12-14 | AF29: 333 | AM29: Terminado | AN29: 0.95757575
A30: CPS-017-2022 | B30: 2022 | C30: FDRS-CD-017-2022 | D30: https://community.secop.gov.co/Public/Tendering/OpportunityDetail/Index?noticeUID=CO1.NTC.2563639&isFromPublicArea=True&isModal=False | E30: Contratos de prestación de servicios profesionales y de apoyo a la gestión | F30: Contratación directa | G30: Prestación de servicios profesionales y de apoyo a la gestión, o para la ejecución de trabajos artísticos que sólo puedan encomendarse a determinadas personas naturales | H30: PRESTAR LOS SERVICIOS PROFESIONALES EN EL MANEJO, VALIDACIÓN Y ACTUALIZACIÓN DE LA INFORMACIÓN DE LOS APLICATIVOS SIPSE, SEGPLAN, TABLERO DE CONTROL DE SEGUIMIENTOS DE LOS PROYECTOS DE INVERSIÓN DEL FONDO DE DESARROLLO RURAL DE SUMAPAZ | I30: Inversión | J30: Un nuevo contrato social y ambiental para la Bogotá del Siglo XXI | K30: 57 | L30: =IF(ISERROR(VLOOKUP(K30,Proposito_programa!$C$2:$E$59,2,FALSE))," ",VLOOKUP(K30,Proposito_programa!$C$2:$E$59,2,FALSE)) -> Gestión pública local | M30: =IF(ISERROR(VLOOKUP(K30,Proposito_programa!$C$2:$E$59,3,FALSE))," ",VLOOKUP(K30,Proposito_programa!$C$2:$E$59,3,FALSE)) -> Propósito 5: Construir Bogotá - Región con gobierno abierto, transparente y ciudadanía consciente | N30: 1696 | O30: 1 | P30: 80016995 | Q30: JHOJAN ANDRES CASTAÑEDA SANCHEZ | R30: Persona Natural | W30: 66000000 | Y30: 1 | Z30: 6000000 | AA30: 72000000 | AB30: 63400000 | AC30: 2022-01-14 | AD30: 2022-01-14 | AE30: 2022-12-13 | AF30: 333 | AG30: 1 | AH30: 30 | AM30: En ejecución | AN30: 0.8805555556
A31: CPS-018-2022 | B31: 2022 | C31: FDRS-CD-018-2022 | D31: https://community.secop.gov.co/Public/Tendering/OpportunityDetail/Index?noticeUID=CO1.NTC.2563289&isFromPublicArea=True&isModal=False | E31: Contratos de prestación de servicios profesionales y de apoyo a la gestión | F31: Contratación directa | G31: Prestación de servicios profesionales y de apoyo a la gestión, o para la ejecución de trabajos artísticos que sólo puedan encomendarse a determinadas personas naturales | H31: PRESTAR SUS SERVICIOS PROFESIONALES DE APOYO AL ÁREA DE GESTIÓN DE DESARROLLO LOCAL DE LA ALCALDÍA LOCAL DE SUMAPAZ, EN TEMAS RELACIONADOS CON EMPLEABILIDAD Y ATENCIÓN A LA POBLACIÓN VULNERABLE | I31: Inversión | J31: Un nuevo contrato social y ambiental para la Bogotá del Siglo XXI | K31: 57 | L31: =IF(ISERROR(VLOOKUP(K31,Proposito_programa!$C$2:$E$59,2,FALSE))," ",VLOOKUP(K31,Proposito_programa!$C$2:$E$59,2,FALSE)) -> Gestión pública local | M31: =IF(ISERROR(VLOOKUP(K31,Proposito_programa!$C$2:$E$59,3,FALSE))," ",VLOOKUP(K31,Proposito_programa!$C$2:$E$59,3,FALSE)) -> Propósito 5: Construir Bogotá - Región con gobierno abierto, transparente y ciudadanía consciente | N31: 1696 | O31: 1 | P31: 1022390655 | Q31: LUIS ALBERTO MARTINEZ SICHACA | R31: Persona Natural | W31: 66000000 | AA31: 66000000 | AB31: 63400000 | AC31: 2022-01-14 | AD31: 2022-01-14 | AE31: 2022-12-13 | AF31: 333 | AM31: Terminado | AN31: 0.9606060606
A32: CPS-019-2022 | B32: 2022 | C32: FDRS-CD-019-2022 | D32: https://community.secop.gov.co/Public/Tendering/OpportunityDetail/Index?noticeUID=CO1.NTC.2563687&isFromPublicArea=True&isModal=False | E32: Contratos de prestación de servicios profesionales y de apoyo a la gestión | F32: Contratación directa | G32: Prestación de servicios profesionales y de apoyo a la gestión, o para la ejecución de trabajos artísticos que sólo puedan encomendarse a determinadas personas naturales | H32: PRESTAR LOS SERVICIOS PROFESIONALES AL ÁREA DE GESTIÓN DE DESARROLLO LOCAL, PARA ADELANTAR LA PLANEACIÓN, ESTRUCTURACIÓN Y SEGUIMIENTO A LOS PROYECTOS DE INVERSIÓN Y GASTOS DE FUNCIONAMIENTO RELACIONADOS CON EL PARQUE AUTOMOTOR DEL FONDO DE DESARROLLO RURAL DE SUMAPAZ | I32: Inversión | J32: Un nuevo contrato social y ambiental para la Bogotá del Siglo XXI | K32: 57 | L32: =IF(ISERROR(VLOOKUP(K32,Proposito_programa!$C$2:$E$59,2,FALSE))," ",VLOOKUP(K32,Proposito_programa!$C$2:$E$59,2,FALSE)) -> Gestión pública local | M32: =IF(ISERROR(VLOOKUP(K32,Proposito_programa!$C$2:$E$59,3,FALSE))," ",VLOOKUP(K32,Proposito_programa!$C$2:$E$59,3,FALSE)) -> Propósito 5: Construir Bogotá - Región con gobierno abierto, transparente y ciudadanía consciente | N32: 1696 | O32: 1 | P32: 1019076465 | Q32: EDILSON ARGEMIRO PORRAS CABALLERO | R32: Persona Natural | W32: 77000000 | Y32: 1 | Z32: 7000000 | AA32: 84000000 | AB32: 73966666 | AC32: 2022-01-14 | AD32: 2022-01-14 | AE32: 2022-12-13 | AF32: 333 | AG32: 1 | AH32: 30 | AM32: En ejecución | AN32: 0.8805555476
A33: CPS-020-2022 | B33: 2022 | C33: FDRS-CD-020-2022 | D33: https://community.secop.gov.co/Public/Tendering/OpportunityDetail/Index?noticeUID=CO1.NTC.2571221&isFromPublicArea=True&isModal=False | E33: Contratos de prestación de servicios profesionales y de apoyo a la gestión | F33: Contratación directa | G33: Prestación de servicios profesionales y de apoyo a la gestión, o para la ejecución de trabajos artísticos que sólo puedan encomendarse a determinadas personas naturales | H33: PRESTAR SUS SERVICIOS PROFESIONALES DE APOYO AL ÁREA DE GESTIÓN DE DESARROLLO LOCAL EN LOS TEMAS CONTABLES Y PRESUPUESTALES DEL FONDO DE DESARROLLO LOCAL DE SUMAPAZ | I33: Inversión | J33: Un nuevo contrato social y ambiental para la Bogotá del Siglo XXI | K33: 57 | L33: =IF(ISERROR(VLOOKUP(K33,Proposito_programa!$C$2:$E$59,2,FALSE))," ",VLOOKUP(K33,Proposito_programa!$C$2:$E$59,2,FALSE)) -> Gestión pública local | M33: =IF(ISERROR(VLOOKUP(K33,Proposito_programa!$C$2:$E$59,3,FALSE))," ",VLOOKUP(K33,Proposito_programa!$C$2:$E$59,3,FALSE)) -> Propósito 5: Construir Bogotá - Región con gobierno abierto, transparente y ciudadanía consciente | N33: 1696 | O33: 1 | P33: 79639287 | Q33: ELKIN RAUL OSWALDO CASTAÑEDA DURAN | R33: Persona Natural | W33: 71500000 | AA33: 71500000 | AB33: 71500000 | AC33: 2022-01-15 | AD33: 2022-01-15 | AE33: 2022-12-14 | AF33: 333 | AM33: Terminado | AN33: 1
A34: CPS-021-2022 | B34: 2022 | C34: FDRS-CD-021-2022 | D34: https://community.secop.gov.co/Public/Tendering/OpportunityDetail/Index?noticeUID=CO1.NTC.2571018&isFromPublicArea=True&isModal=False | E34: Contratos de prestación de servicios profesionales y de apoyo a la gestión | F34: Contratación directa | G34: Prestación de servicios profesionales y de apoyo a la gestión, o para la ejecución de trabajos artísticos que sólo puedan encomendarse a determinadas personas naturales | H34: PRESTAR LOS SERVICIOS PROFESIONALES VETERINARIOS PARA EL FORTALECIMIENTO DE LAS ACTIVIDADES DE BIENESTAR Y PROTECCIÓN ANIMAL EN LA LOCALIDAD DE SUMAPAZ | I34: Inversión | J34: Un nuevo contrato social y ambiental para la Bogotá del Siglo XXI | K34: 34 | L34: =IF(ISERROR(VLOOKUP(K34,Proposito_programa!$C$2:$E$59,2,FALSE))," ",VLOOKUP(K34,Proposito_programa!$C$2:$E$59,2,FALSE)) -> Bogotá protectora de los animales | M34: =IF(ISERROR(VLOOKUP(K34,Proposito_programa!$C$2:$E$59,3,FALSE))," ",VLOOKUP(K34,Proposito_programa!$C$2:$E$59,3,FALSE)) -> Propósito 2 : Cambiar Nuestros Hábitos de Vida para Reverdecer a Bogotá y Adaptarnos y Mitigar la Crisis Climática | N34: 1666 | O34: 1 | P34: 1022988839 | Q34: ALEXANDRA CORTES LOPEZ | R34: Persona Natural | W34: 103400000 | X34: -51700000 | AA34: 51700000 | AB34: 49506667 | AC34: 2022-01-15 | AD34: 2022-01-15 | AE34: 2022-12-14 | AF34: 333 | AM34: Terminado | AN34: 0.957575764
A35: CPS-022-2022 | B35: 2022 | C35: FDRS-CD-022-2022 | D35: https://community.secop.gov.co/Public/Tendering/OpportunityDetail/Index?noticeUID=CO1.NTC.2571219&isFromPublicArea=True&isModal=False | E35: Contratos de prestación de servicios profesionales y de apoyo a la gestión | F35: Contratación directa | G35: Prestación de servicios profesionales y de apoyo a la gestión, o para la ejecución de trabajos artísticos que sólo puedan encomendarse a determinadas personas naturales | H35: PRESTAR LOS SERVICIOS DE APOYO ADMINISTRATIVO AL ÁREA DE GESTIÓN DE DESARROLLO LOCAL DE SUMAPAZ | I35: Inversión | J35: Un nuevo contrato social y ambiental para la Bogotá del Siglo XXI | K35: 57 | L35: =IF(ISERROR(VLOOKUP(K35,Proposito_programa!$C$2:$E$59,2,FALSE))," ",VLOOKUP(K35,Proposito_programa!$C$2:$E$59,2,FALSE)) -> Gestión pública local | M35: =IF(ISERROR(VLOOKUP(K35,Proposito_programa!$C$2:$E$59,3,FALSE))," ",VLOOKUP(K35,Proposito_programa!$C$2:$E$59,3,FALSE)) -> Propósito 5: Construir Bogotá - Región con gobierno abierto, transparente y ciudadanía consciente | N35: 1696 | O35: 1 | P35: 1013620925 | Q35: JULIANA DE LOS ANGELES CARDONA DELGADO | R35: Persona Natural | W35: 44000000 | AA35: 44000000 | AB35: 41866666 | AC35: 2022-01-15 | AD35: 2022-01-17 | AE35: 2022-12-16 | AF35: 333 | AM35: Terminado | AN35: 0.9515151364
A36: CPS-023-2022 | B36: 2022 | C36: FDRS-CD-023-2022 | D36: https://community.secop.gov.co/Public/Tendering/OpportunityDetail/Index?noticeUID=CO1.NTC.2589102&isFromPublicArea=True&isModal=False | E36: Contratos de prestación de servicios profesionales y de apoyo a la gestión | F36: Contratación directa | G36: Prestación de servicios profesionales y de apoyo a la gestión, o para la ejecución de trabajos artísticos que sólo puedan encomendarse a determinadas personas naturales | H36: PRESTAR LOS SERVICIOS PROFESIONALES ESPECIALIZADOS PARA APOYAR LA PLANEACIÓN, SEGUIMIENTO, EJECUCIÓN Y CONTROL DE LOS PROYECTOS AMBIENTALES Y DE DESARROLLO RURAL SOSTENIBLE, DE LA ALCALDÍA LOCAL DE SUMAPAZ | I36: Inversión | J36: Un nuevo contrato social y ambiental para la Bogotá del Siglo XXI | K36: 23 | L36: =IF(ISERROR(VLOOKUP(K36,Proposito_programa!$C$2:$E$59,2,FALSE))," ",VLOOKUP(K36,Proposito_programa!$C$2:$E$59,2,FALSE)) -> Bogotá rural | M36: =IF(ISERROR(VLOOKUP(K36,Proposito_programa!$C$2:$E$59,3,FALSE))," ",VLOOKUP(K36,Proposito_programa!$C$2:$E$59,3,FALSE)) -> Propósito 1: Hacer un nuevo contrato social para incrementar la inclusión social, productiva y política | N36: 1634 | O36: 1 | P36: 52155157 | Q36: DALGY DANIT LEAL OJEDA | R36: Persona Natural | W36: 88000000 | Y36: 1 | Z36: 4000000 | AA36: 92000000 | AB36: 75466667 | AC36: 2022-01-17 | AD36: 2022-01-18 | AE36: 2022-12-17 | AF36: 333 | AG36: 1 | AH36: 15 | AM36: Terminado | AN36: 0.8202898587
A37: CPS-024-2022 | B37: 2022 | C37: FDRS-CD-024-2022 | D37: https://community.secop.gov.co/Public/Tendering/OpportunityDetail/Index?noticeUID=CO1.NTC.2581135&isFromPublicArea=True&isModal=False | E37: Contratos de prestación de servicios profesionales y de apoyo a la gestión | F37: Contratación directa | G37: Prestación de servicios profesionales y de apoyo a la gestión, o para la ejecución de trabajos artísticos que sólo puedan encomendarse a determinadas personas naturales | H37: PRESTAR LOS SERVICIOS DE APOYO ADMINISTRATIVO AL PARQUE AUTOMOTOR PESADO Y MAQUINARIA, DE PROPIEDAD DEL FONDO DE DESARROLLO RURAL DE SUMAPAZ | I37: Inversión | J37: Un nuevo contrato social y ambiental para la Bogotá del Siglo XXI | K37: 57 | L37: =IF(ISERROR(VLOOKUP(K37,Proposito_programa!$C$2:$E$59,2,FALSE))," ",VLOOKUP(K37,Proposito_programa!$C$2:$E$59,2,FALSE)) -> Gestión pública local | M37: =IF(ISERROR(VLOOKUP(K37,Proposito_programa!$C$2:$E$59,3,FALSE))," ",VLOOKUP(K37,Proposito_programa!$C$2:$E$59,3,FALSE)) -> Propósito 5: Construir Bogotá - Región con gobierno abierto, transparente y ciudadanía consciente | N37: 1696 | O37: 1 | P37: 1019019834 | Q37: EDWIN RUIZ VASQUEZ | R37: Persona Natural | W37: 44000000 | Y37: 1 | Z37: 4000000 | AA37: 48000000 | AB37: 41733333 | AC37: 2022-01-17 | AD37: 2022-01-18 | AE37: 2022-12-17 | AF37: 333 | AG37: 1 | AH37: 30 | AM37: En ejecución | AN37: 0.8694444375
A38: CPS-025-2022 | B38: 2022 | C38: FDRS-CD-025-2022 | D38: https://community.secop.gov.co/Public/Tendering/OpportunityDetail/Index?noticeUID=CO1.NTC.2584062&isFromPublicArea=True&isModal=False | E38: Contratos de prestación de servicios profesionales y de apoyo a la gestión | F38: Contratación directa | G38: Prestación de servicios profesionales y de apoyo a la gestión, o para la ejecución de trabajos artísticos que sólo puedan encomendarse a determinadas personas naturales | H38: PRESTAR SUS SERVICIOS PROFESIONALES PARA COORDINAR, LIDERAR Y ASESORAR LOS PLANES Y ESTRATEGIAS DE COMUNICACIÓN INTERNA Y EXTERNA PARA LA DIVULGACIÓN DE LOS PROGRAMAS, PROYECTOS Y ACTIVIDADES DE LA ALCALDÍA LOCAL DE SUMAPAZ | I38: Inversión | J38: Un nuevo contrato social y ambiental para la Bogotá del Siglo XXI | K38: 57 | L38: =IF(ISERROR(VLOOKUP(K38,Proposito_programa!$C$2:$E$59,2,FALSE))," ",VLOOKUP(K38,Proposito_programa!$C$2:$E$59,2,FALSE)) -> Gestión pública local | M38: =IF(ISERROR(VLOOKUP(K38,Proposito_programa!$C$2:$E$59,3,FALSE))," ",VLOOKUP(K38,Proposito_programa!$C$2:$E$59,3,FALSE)) -> Propósito 5: Construir Bogotá - Región con gobierno abierto, transparente y ciudadanía consciente | N38: 1696 | O38: 1 | P38: 1032460361 | Q38: FABIAN ANDRES FLOREZ RODRIGUEZ | R38: Persona Natural | W38: 77000000 | AA38: 77000000 | AB38: 73266666 | AC38: 2022-01-17 | AD38: 2022-01-18 | AE38: 2022-12-17 | AF38: 333 | AM38: Terminado | AN38: 0.9515151429
A39: CPS-026-2022 | B39: 2022 | C39: FDRS-CD-026-2022 | D39: https://community.secop.gov.co/Public/Tendering/OpportunityDetail/Index?noticeUID=CO1.NTC.2583656&isFromPublicArea=True&isModal=False | E39: Contratos de prestación de servicios profesionales y de apoyo a la gestión | F39: Contratación directa | G39: Prestación de servicios profesionales y de apoyo a la gestión, o para la ejecución de trabajos artísticos que sólo puedan encomendarse a determinadas personas naturales | H39: PRESTAR LOS SERVICIOS DE APOYO ADMINISTRATIVO Y TÉCNICO AL DESPACHO DE LA ALCALDÍA LOCAL DE SUMAPAZ | I39: Inversión | J39: Un nuevo contrato social y ambiental para la Bogotá del Siglo XXI | K39: 57 | L39: =IF(ISERROR(VLOOKUP(K39,Proposito_programa!$C$2:$E$59,2,FALSE))," ",VLOOKUP(K39,Proposito_programa!$C$2:$E$59,2,FALSE)) -> Gestión pública local | M39: =IF(ISERROR(VLOOKUP(K39,Proposito_programa!$C$2:$E$59,3,FALSE))," ",VLOOKUP(K39,Proposito_programa!$C$2:$E$59,3,FALSE)) -> Propósito 5: Construir Bogotá - Región con gobierno abierto, transparente y ciudadanía consciente | N39: 1696 | O39: 1 | P39: 1026253687 | Q39: KARINA OLAYA ANDRADE | R39: Persona Natural | W39: 44550000 | AA39: 44550000 | AB39: 42255000 | AC39: 2022-01-17 | AD39: 2022-01-18 | AE39: 2022-12-17 | AF39: 333 | AM39: Terminado | AN39: 0.9484848485
A40: CPS-027-2022 | B40: 2022 | C40: FDRS-CD-027-2022 | D40: https://community.secop.gov.co/Public/Tendering/OpportunityDetail/Index?noticeUID=CO1.NTC.2586541&isFromPublicArea=True&isModal=False | E40: Contratos de prestación de servicios profesionales y de apoyo a la gestión | F40: Contratación directa | G40: Prestación de servicios profesionales y de apoyo a la gestión, o para la ejecución de trabajos artísticos que sólo puedan encomendarse a determinadas personas naturales | H40: PRESTAR LOS SERVICIOS PROFESIONALES AL ÁREA DE GESTIÓN DE DESARROLLO LOCAL, EN LOS PROCESOS DE PLANEACIÓN, ADMINISTRATIVOS, FINANCIEROS Y PRESUPUESTALES, DE LA ALCALDÍA LOCAL DE SUMAPAZ | I40: Inversión | J40: Un nuevo contrato social y ambiental para la Bogotá del Siglo XXI | K40: 57 | L40: =IF(ISERROR(VLOOKUP(K40,Proposito_programa!$C$2:$E$59,2,FALSE))," ",VLOOKUP(K40,Proposito_programa!$C$2:$E$59,2,FALSE)) -> Gestión pública local | M40: =IF(ISERROR(VLOOKUP(K40,Proposito_programa!$C$2:$E$59,3,FALSE))," ",VLOOKUP(K40,Proposito_programa!$C$2:$E$59,3,FALSE)) -> Propósito 5: Construir Bogotá - Región con gobierno abierto, transparente y ciudadanía consciente | N40: 1696 | O40: 1 | P40: 39682218 | Q40: GEMA ORTEGA TRUJILLO | R40: Persona Natural | W40: 95700000 | Y40: 1 | Z40: 6960000 | AA40: 102660000 | AB40: 85260000 | AC40: 2022-01-17 | AD40: 2022-01-18 | AE40: 2022-12-17 | AF40: 333 | AG40: 1 | AH40: 24 | AM40: En ejecución | AN40: 0.8305084746
A41: CPS-028-2022 | B41: 2022 | C41: FDRS-CD-028-2022 | D41: https://community.secop.gov.co/Public/Tendering/OpportunityDetail/Index?noticeUID=CO1.NTC.2585955&isFromPublicArea=True&isModal=False | E41: Contratos de prestación de servicios profesionales y de apoyo a la gestión | F41: Contratación directa | G41: Prestación de servicios profesionales y de apoyo a la gestión, o para la ejecución de trabajos artísticos que sólo puedan encomendarse a determinadas personas naturales | H41: PRESTAR LOS SERVICIOS TÉCNICOS PARA QUE APOYE LAS ACTIVIDADES ADMINISTRATIVAS Y OPERATIVAS DEL PARQUE AUTOMOTOR EN LA ALCALDÍA LOCAL DE SUMAPAZ | I41: Inversión | J41: Un nuevo contrato social y ambiental para la Bogotá del Siglo XXI | K41: 57 | L41: =IF(ISERROR(VLOOKUP(K41,Proposito_programa!$C$2:$E$59,2,FALSE))," ",VLOOKUP(K41,Proposito_programa!$C$2:$E$59,2,FALSE)) -> Gestión pública local | M41: =IF(ISERROR(VLOOKUP(K41,Proposito_programa!$C$2:$E$59,3,FALSE))," ",VLOOKUP(K41,Proposito_programa!$C$2:$E$59,3,FALSE)) -> Propósito 5: Construir Bogotá - Región con gobierno abierto, transparente y ciudadanía consciente | N41: 1696 | O41: 1 | P41: 52558577 | Q41: GLORIA ISABEL AGUILERA ACOSTA | R41: Persona Natural | W41: 44000000 | Y41: 1 | Z41: 4000000 | AA41: 48000000 | AB41: 41733333 | AC41: 2022-01-17 | AD41: 2022-01-18 | AE41: 2022-12-17 | AF41: 333 | AG41: 1 | AH41: 30 | AM41: En ejecución | AN41: 0.8694444375
A42: CPS-029-2022 | B42: 2022 | C42: FDRS-CD-029-2022 | D42: https://community.secop.gov.co/Public/Tendering/OpportunityDetail/Index?noticeUID=CO1.NTC.2590082&isFromPublicArea=True&isModal=False | E42: Contratos de prestación de servicios profesionales y de apoyo a la gestión | F42: Contratación directa | G42: Prestación de servicios profesionales y de apoyo a la gestión, o para la ejecución de trabajos artísticos que sólo puedan encomendarse a determinadas personas naturales | H42: PRESTAR LOS SERVICIOS PROFESIONALES ESPECIALIZADOS PARA APOYAR LA GESTIÓN ADMINISTRATIVA, LOGÍSTICA Y FINANCIERA DEL ÁREA DE GESTIÓN DEL DESARROLLO LOCAL DE LA ALCALDÍA LOCAL DE SUMAPAZ | I42: Inversión | J42: Un nuevo contrato social y ambiental para la Bogotá del Siglo XXI | K42: 57 | L42: =IF(ISERROR(VLOOKUP(K42,Proposito_programa!$C$2:$E$59,2,FALSE))," ",VLOOKUP(K42,Proposito_programa!$C$2:$E$59,2,FALSE)) -> Gestión pública local | M42: =IF(ISERROR(VLOOKUP(K42,Proposito_programa!$C$2:$E$59,3,FALSE))," ",VLOOKUP(K42,Proposito_programa!$C$2:$E$59,3,FALSE)) -> Propósito 5: Construir Bogotá - Región con gobierno abierto, transparente y ciudadanía consciente | N42: 1696 | O42: 1 | P42: 79625519 | Q42: JAIME ANTONIO MAHECHA QUINTERO | R42: Persona Natural | W42: 88000000 | AA42: 88000000 | AB42: 83466666 | AC42: 2022-01-17 | AD42: 2022-01-18 | AE42: 2022-12-17 | AF42: 333 | AM42: Terminado | AN42: 0.9484848409
A43: CPS-030-2022 | B43: 2022 | C43: FDRS-CD-030-2022 | D43: https://community.secop.gov.co/Public/Tendering/OpportunityDetail/Index?noticeUID=CO1.NTC.2617861&isFromPublicArea=True&isModal=False | E43: Contratos de prestación de servicios profesionales y de apoyo a la gestión | F43: Contratación directa | G43: Prestación de servicios profesionales y de apoyo a la gestión, o para la ejecución de trabajos artísticos que sólo puedan encomendarse a determinadas personas naturales | H43: PRESTAR SUS SERVICIOS PROFESIONALES AL ÁREA DE GESTIÓN DE DESARROLLO LOCAL PARA REALIZAR LA FORMULACIÓN, EJECUCIÓN Y SEGUIMIENTO DEL PROYECTO DE INVERSIÓN "CONECTIVIDAD Y REDES DE COMUNICACIÓN | I43: Inversión | J43: Un nuevo contrato social y ambiental para la Bogotá del Siglo XXI | K43: 54 | L43: =IF(ISERROR(VLOOKUP(K43,Proposito_programa!$C$2:$E$59,2,FALSE))," ",VLOOKUP(K43,Proposito_programa!$C$2:$E$59,2,FALSE)) -> Transformación digital y gestión de TIC para un territorio inteligente | M43: =IF(ISERROR(VLOOKUP(K43,Proposito_programa!$C$2:$E$59,3,FALSE))," ",VLOOKUP(K43,Proposito_programa!$C$2:$E$59,3,FALSE)) -> Propósito 5: Construir Bogotá - Región con gobierno abierto, transparente y ciudadanía consciente | N43: 1692 | O43: 1 | P43: 79889352 | Q43: JESUS EDIMER RONCANCIO RONCANCIO | R43: Persona Natural | W43: 66000000 | AA43: 66000000 | AB43: 44400000 | AC43: 2022-01-20 | AD43: 2022-01-21 | AE43: 2022-12-20 | AF43: 333 | AM43: Terminado | AN43: 0.6727272727
A44: CPS-031-2022 | B44: 2022 | C44: FDRS-CD-031-2022 | D44: https://community.secop.gov.co/Public/Tendering/OpportunityDetail/Index?noticeUID=CO1.NTC.2589872&isFromPublicArea=True&isModal=False | E44: Contratos de prestación de servicios profesionales y de apoyo a la gestión | F44: Contratación directa | G44: Prestación de servicios profesionales y de apoyo a la gestión, o para la ejecución de trabajos artísticos que sólo puedan encomendarse a determinadas personas naturales | H44: PRESTAR LOS SERVICIOS PROFESIONALES PARA APOYAR LA PLANEACIÓN, EJECUCIÓN Y SEGUIMIENTO DE LOS PROYECTOS DE INVERSIÓN EN TEMAS DE EDUCACIÓN QUE EJECUTE EL FONDO DE DESARROLLO RURAL DE SUMAPAZ | I44: Inversión | J44: Un nuevo contrato social y ambiental para la Bogotá del Siglo XXI | K44: 18 | L44: =IF(ISERROR(VLOOKUP(K44,Proposito_programa!$C$2:$E$59,2,FALSE))," ",VLOOKUP(K44,Proposito_programa!$C$2:$E$59,2,FALSE)) -> Cierre de brechas para la inclusión productiva urbano rural | M44: =IF(ISERROR(VLOOKUP(K44,Proposito_programa!$C$2:$E$59,3,FALSE))," ",VLOOKUP(K44,Proposito_programa!$C$2:$E$59,3,FALSE)) -> Propósito 1: Hacer un nuevo contrato social para incrementar la inclusión social, productiva y política | N44: 1587 | O44: 1 | P44: 9770381 | Q44: JULIAN ANDRES CARVAJAL ZAMORA | R44: Persona Natural | W44: 77000000 | Y44: 1 | Z44: 7000000 | AA44: 84000000 | AB44: 73033333 | AC44: 2022-01-18 | AD44: 2022-01-18 | AE44: 2022-12-17 | AF44: 333 | AG44: 1 | AH44: 30 | AM44: En ejecución | AN44: 0.8694444405
A45: CPS-032-2022 | B45: 2022 | C45: FDRS-CD-032-2022 | D45: https://community.secop.gov.co/Public/Tendering/OpportunityDetail/Index?noticeUID=CO1.NTC.2592884&isFromPublicArea=True&isModal=False | E45: Contratos de prestación de servicios profesionales y de apoyo a la gestión | F45: Contratación directa | G45: Prestación de servicios profesionales y de apoyo a la gestión, o para la ejecución de trabajos artísticos que sólo puedan encomendarse a determinadas personas naturales | H45: PRESTAR LOS SERVICIOS PROFESIONALES PARA APOYAR LA PLANEACIÓN, EJECUCIÓN Y SEGUIMIENTO DEL PROYECTO DE INVERSIÓN RELACIONADO CON LOS PROCESOS DE CONSTRUCCIÓN DE MEMORIA, VERDAD, REPARACIÓN INTEGRAL A VÍCTIMAS, PAZ Y RECONCILIACIÓN, DEL FONDO DE DESARROLLO LOCAL DE SUMAPAZ | I45: Inversión | J45: Un nuevo contrato social y ambiental para la Bogotá del Siglo XXI | K45: 39 | L45: =IF(ISERROR(VLOOKUP(K45,Proposito_programa!$C$2:$E$59,2,FALSE))," ",VLOOKUP(K45,Proposito_programa!$C$2:$E$59,2,FALSE)) -> Bogotá territorio de paz y atención integral a las víctimas del conflicto armado | M45: =IF(ISERROR(VLOOKUP(K45,Proposito_programa!$C$2:$E$59,3,FALSE))," ",VLOOKUP(K45,Proposito_programa!$C$2:$E$59,3,FALSE)) -> Propósito 3: Inspirar confianza y legitimidad para vivir sin miedo y ser epicentro de cultura ciudadana, paz y reconciliación | N45: 1672 | O45: 1 | P45: 80727859 | Q45: JOSE REINERO GALEANO LEMUS | R45: Persona Natural | W45: 74800000 | AA45: 74800000 | AB45: 74800000 | AC45: 2022-01-18 | AD45: 2022-01-19 | AE45: 2022-12-18 | AF45: 333 | AM45: Terminado | AN45: 1
A46: CPS-033-2022 | B46: 2022 | C46: FDRS-CD-033-2022 | D46: https://community.secop.gov.co/Public/Tendering/OpportunityDetail/Index?noticeUID=CO1.NTC.2597450&isFromPublicArea=True&isModal=False | E46: Contratos de prestación de servicios profesionales y de apoyo a la gestión | F46: Contratación directa | G46: Prestación de servicios profesionales y de apoyo a la gestión, o para la ejecución de trabajos artísticos que sólo puedan encomendarse a determinadas personas naturales | H46: PRESTAR LOS SERVICIOS PROFESIONALES PARA APOYAR JURÍDICAMENTE LAS RESPUESTAS A LAS SOLICITUDES RADICADAS POR ENTES DE CONTROL, CONCEJO DE BOGOTÁ Y TEMAS RELACIONADOS CON PLANES DE MEJORAMIENTO | I46: Inversión | J46: Un nuevo contrato social y ambiental para la Bogotá del Siglo XXI | K46: 57 | L46: =IF(ISERROR(VLOOKUP(K46,Proposito_programa!$C$2:$E$59,2,FALSE))," ",VLOOKUP(K46,Proposito_programa!$C$2:$E$59,2,FALSE)) -> Gestión pública local | M46: =IF(ISERROR(VLOOKUP(K46,Proposito_programa!$C$2:$E$59,3,FALSE))," ",VLOOKUP(K46,Proposito_programa!$C$2:$E$59,3,FALSE)) -> Propósito 5: Construir Bogotá - Región con gobierno abierto, transparente y ciudadanía consciente | N46: 1696 | O46: 1 | P46: 52516975 | Q46: NINI JOHANA GUTIERREZ TORRES | R46: Persona Natural | W46: 66000000 | AA46: 66000000 | AB46: 66000000 | AC46: 2022-01-18 | AD46: 2022-01-19 | AE46: 2022-12-18 | AF46: 333 | AM46: Terminado | AN46: 1
A47: CPS-034-2022 | B47: 2022 | C47: FDRS-CD-034-2022 | D47: https://community.secop.gov.co/Public/Tendering/OpportunityDetail/Index?noticeUID=CO1.NTC.2625799&isFromPublicArea=True&isModal=False | E47: Contratos de prestación de servicios profesionales y de apoyo a la gestión | F47: Contratación directa | G47: Prestación de servicios profesionales y de apoyo a la gestión, o para la ejecución de trabajos artísticos que sólo puedan encomendarse a determinadas personas naturales | H47: PRESTAR LOS SERVICIOS COMO AUXILIAR ADMINISTRATIVA EN LA CORREGIDURÍA DE SAN JUAN | I47: Inversión | J47: Un nuevo contrato social y ambiental para la Bogotá del Siglo XXI | K47: 57 | L47: =IF(ISERROR(VLOOKUP(K47,Proposito_programa!$C$2:$E$59,2,FALSE))," ",VLOOKUP(K47,Proposito_programa!$C$2:$E$59,2,FALSE)) -> Gestión pública local | M47: =IF(ISERROR(VLOOKUP(K47,Proposito_programa!$C$2:$E$59,3,FALSE))," ",VLOOKUP(K47,Proposito_programa!$C$2:$E$59,3,FALSE)) -> Propósito 5: Construir Bogotá - Región con gobierno abierto, transparente y ciudadanía consciente | N47: 1696 | O47: 1 | P47: 1016031740 | Q47: DEICY AMPARO MORALES TORRES | R47: Persona Natural | W47: 29700000 | AA47: 29700000 | AB47: 27900000 | AC47: 2022-01-20 | AD47: 2022-01-21 | AE47: 2022-12-20 | AF47: 333 | AM47: Terminado | AN47: 0.9393939394
A48: CPS-035-2022 | B48: 2022 | C48: FDRS-CD-035-2022 | D48: https://community.secop.gov.co/Public/Tendering/OpportunityDetail/Index?noticeUID=CO1.NTC.2601800&isFromPublicArea=True&isModal=False | E48: Contratos de prestación de servicios profesionales y de apoyo a la gestión | F48: Contratación directa | G48: Prestación de servicios profesionales y de apoyo a la gestión, o para la ejecución de trabajos artísticos que sólo puedan encomendarse a determinadas personas naturales | H48: PRESTAR LOS SERVICIOS COMO AUXILIAR ADMINISTRATIVO AL SERVICIO DE LA JUNTA ADMINISTRADORA LOCAL DE SUMAPAZ | I48: Inversión | J48: Un nuevo contrato social y ambiental para la Bogotá del Siglo XXI | K48: 57 | L48: =IF(ISERROR(VLOOKUP(K48,Proposito_programa!$C$2:$E$59,2,FALSE))," ",VLOOKUP(K48,Proposito_programa!$C$2:$E$59,2,FALSE)) -> Gestión pública local | M48: =IF(ISERROR(VLOOKUP(K48,Proposito_programa!$C$2:$E$59,3,FALSE))," ",VLOOKUP(K48,Proposito_programa!$C$2:$E$59,3,FALSE)) -> Propósito 5: Construir Bogotá - Región con gobierno abierto, transparente y ciudadanía consciente | N48: 1696 | O48: 1 | P48: 1023019730 | Q48: EDISON FERNEY MARTINEZ MOLINA | R48: Persona Natural | W48: 29700000 | AA48: 29700000 | AB48: 27900000 | AC48: 2022-01-18 | AD48: 2022-01-21 | AE48: 2022-12-20 | AF48: 333 | AI48: 1030521003 | AJ48: FREDY HUMBERTO PEÑA FORERO | AK48: 2022-08-31 | AL48: 9270000 | AM48: Terminado | AN48: 0.9393939394
A49: CPS-036-2022 | B49: 2022 | C49: FDRS-CD-036-2022 | D49: https://community.secop.gov.co/Public/Tendering/OpportunityDetail/Index?noticeUID=CO1.NTC.2602141&isFromPublicArea=True&isModal=False | E49: Contratos de prestación de servicios profesionales y de apoyo a la gestión | F49: Contratación directa | G49: Prestación de servicios profesionales y de apoyo a la gestión, o para la ejecución de trabajos artísticos que sólo puedan encomendarse a determinadas personas naturales | H49: PRESTAR LOS SERVICIOS PROFESIONALES AL ÁREA DE GESTIÓN DE DESARROLLO LOCAL PARA ORIENTAR A LOS BENEFICIARIOS DEL MEJORAMIENTO HABITACIONAL Y SANEAMIENTO PREDIAL EN LOS PROYECTOS RELACIONADOS CON MEJORAMIENTO DE VIVIENDAS. | I49: Inversión | J49: Un nuevo contrato social y ambiental para la Bogotá del Siglo XXI | K49: 19 | L49: =IF(ISERROR(VLOOKUP(K49,Proposito_programa!$C$2:$E$59,2,FALSE))," ",VLOOKUP(K49,Proposito_programa!$C$2:$E$59,2,FALSE)) -> Vivienda y entornos dignos en el territorio urbano y rural | M49: =IF(ISERROR(VLOOKUP(K49,Proposito_programa!$C$2:$E$59,3,FALSE))," ",VLOOKUP(K49,Proposito_programa!$C$2:$E$59,3,FALSE)) -> Propósito 1: Hacer un nuevo contrato social para incrementar la inclusión social, productiva y política | N49: 1589 | O49: 1 | P49: 1018477511 | Q49: DANIELLA ZABALA AVELLA | R49: Persona Natural | W49: 50600000 | AA49: 50600000 | AB49: 42933333 | AC49: 2022-01-18 | AD49: 2022-01-21 | AE49: 2022-12-20 | AF49: 333 | AM49: Terminado | AN49: 0.8484848419
A50: CPS-037-2022 | B50: 2022 | C50: FDRS-CD-037-2022 | D50: https://community.secop.gov.co/Public/Tendering/OpportunityDetail/Index?noticeUID=CO1.NTC.2605551&isFromPublicArea=True&isModal=False | E50: Contratos de prestación de servicios profesionales y de apoyo a la gestión | F50: Contratación directa | G50: Prestación de servicios profesionales y de apoyo a la gestión, o para la ejecución de trabajos artísticos que sólo puedan encomendarse a determinadas personas naturales | H50: PRESTAR LOS SERVICIOS PROFESIONALES COORDINAR LA ARTICULACIÓN, ASISTENCIA Y ACOMPAÑAMIENTO DE LOS PROCESOS DE PLANEACIÓN LOCAL, PARA LA PROMOCIÓN DE LA PARTICIPACIÓN DE LAS MUJERES Y DE LA EQUIDAD DE GÉNERO, PARA MATERIALIZAR EN LA LOCALIDAD LAS ESTRATEGIAS DE TERRITORIALIZACIÓN Y TRANSVERSALIZACIÓN DE LA POLÍTICA PUBLICA DE MUJERES Y EQUIDAD DE GÉNERO, PPMYEG | I50: Inversión | J50: Un nuevo contrato social y ambiental para la Bogotá del Siglo XXI | K50: 40 | L50: =IF(ISERROR(VLOOKUP(K50,Proposito_programa!$C$2:$E$59,2,FALSE))," ",VLOOKUP(K50,Proposito_programa!$C$2:$E$59,2,FALSE)) -> Más mujeres viven una vida libre de violencias, se sienten seguras y acceden con confianza al sistema de justicia | M50: =IF(ISERROR(VLOOKUP(K50,Proposito_programa!$C$2:$E$59,3,FALSE))," ",VLOOKUP(K50,Proposito_programa!$C$2:$E$59,3,FALSE)) -> Propósito 3: Inspirar confianza y legitimidad para vivir sin miedo y ser epicentro de cultura ciudadana, paz y reconciliación | N50: 1674 | O50: 1 | P50: 52008301 | Q50: ANA ROSA BAUTISTA RINCON | R50: Persona Natural | W50: 66000000 | Y50: 1 | Z50: 6000000 | AA50: 72000000 | AB50: 62400000 | AC50: 2022-01-18 | AD50: 2022-01-19 | AE50: 2022-12-18 | AF50: 333 | AG50: 1 | AH50: 30 | AM50: En ejecución | AN50: 0.8666666667
A51: CPS-038-2022 | B51: 2022 | C51: FDRS-CD-038-2022 | D51: https://community.secop.gov.co/Public/Tendering/OpportunityDetail/Index?noticeUID=CO1.NTC.2604492&isFromPublicArea=True&isModal=False | E51: Contratos de prestación de servicios profesionales y de apoyo a la gestión | F51: Contratación directa | G51: Prestación de servicios profesionales y de apoyo a la gestión, o para la ejecución de trabajos artísticos que sólo puedan encomendarse a determinadas personas naturales | H51: PRESTAR LOS SERVICIOS PROFESIONALES PARA APOYAR LA PLANEACIÓN, EJECUCIÓN Y SEGUIMIENTO DE LOS PROYECTOS DE INVERSIÓN EN TEMAS DE CULTURA QUE EJECUTE EL FONDO DE DESARROLLO LOCAL DE SUMAPAZ | I51: Inversión | J51: Un nuevo contrato social y ambiental para la Bogotá del Siglo XXI | K51: 21 | L51: =IF(ISERROR(VLOOKUP(K51,Proposito_programa!$C$2:$E$59,2,FALSE))," ",VLOOKUP(K51,Proposito_programa!$C$2:$E$59,2,FALSE)) -> Creación y vida cotidiana: Apropiación ciudadana del arte, la cultura y el patrimonio, para la democracia cultural | M51: =IF(ISERROR(VLOOKUP(K51,Proposito_programa!$C$2:$E$59,3,FALSE))," ",VLOOKUP(K51,Proposito_programa!$C$2:$E$59,3,FALSE)) -> Propósito 1: Hacer un nuevo contrato social para incrementar la inclusión social, productiva y política | N51: 1633 | O51: 1 | P51: 28723701 | Q51: LUZ YOLANDA LEON FLOREZ | R51: Persona Natural | W51: 66000000 | Y51: 1 | Z51: 6000000 | AA51: 72000000 | AB51: 62400000 | AC51: 2022-01-18 | AD51: 2022-01-19 | AE51: 2022-12-18 | AF51: 333 | AG51: 1 | AH51: 30 | AM51: En ejecución | AN51: 0.8666666667
A52: CPS-039-2022 | B52: 2022 | C52: FDRS-CD-039-2022 | D52: https://community.secop.gov.co/Public/Tendering/OpportunityDetail/Index?noticeUID=CO1.NTC.2608184&isFromPublicArea=True&isModal=False | E52: Contratos de prestación de servicios profesionales y de apoyo a la gestión | F52: Contratación directa | G52: Prestación de servicios profesionales y de apoyo a la gestión, o para la ejecución de trabajos artísticos que sólo puedan encomendarse a determinadas personas naturales | H52: PRESTAR LOS SERVICIOS PROFESIONALES AL ÁREA DE GESTIÓN DE DESARROLLO LOCAL PARA APOYAR LA PLANEACIÓN, EJECUCIÓN Y SEGUIMIENTO A LOS PROYECTOS DE INVERSIÓN DE MEJORAMIENTO DE VIVIENDA RURAL QUE LE SEAN DESIGNADOS | I52: Inversión | J52: Un nuevo contrato social y ambiental para la Bogotá del Siglo XXI | K52: 19 | L52: =IF(ISERROR(VLOOKUP(K52,Proposito_programa!$C$2:$E$59,2,FALSE))," ",VLOOKUP(K52,Proposito_programa!$C$2:$E$59,2,FALSE)) -> Vivienda y entornos dignos en el territorio urbano y rural | M52: =IF(ISERROR(VLOOKUP(K52,Proposito_programa!$C$2:$E$59,3,FALSE))," ",VLOOKUP(K52,Proposito_programa!$C$2:$E$59,3,FALSE)) -> Propósito 1: Hacer un nuevo contrato social para incrementar la inclusión social, productiva y política | N52: 1589 | O52: 1 | P52: 79889687 | Q52: LUIS CARLOS LOPEZ MENDOZA | R52: Persona Natural | W52: 82500000 | AA52: 82500000 | AB52: 77750000 | AC52: 2022-01-19 | AD52: 2022-01-20 | AE52: 2022-12-19 | AF52: 333 | AM52: Terminado | AN52: 0.9424242424
A53: CPS-040-2022 | B53: 2022 | C53: FDRS-CD-040-2022 | D53: https://community.secop.gov.co/Public/Tendering/OpportunityDetail/Index?noticeUID=CO1.NTC.2648644&isFromPublicArea=True&isModal=False | E53: Contratos de prestación de servicios profesionales y de apoyo a la gestión | F53: Contratación directa | G53: Prestación de servicios profesionales y de apoyo a la gestión, o para la ejecución de trabajos artísticos que sólo puedan encomendarse a determinadas personas naturales | H53: PRESTAR LOS SERVICIOS PROFESIONALES PARA GESTIONAR LOS PROYECTOS AMBIENTALES LOCALES ENFOCADOS A LA GENERACIÓN DE ENERGÍA ELÉCTRICA RENOVABLE Y, ATENDER LA GESTIÓN AMBIENTAL EXTERNA EN LA LOCALIDAD | I53: Inversión | J53: Un nuevo contrato social y ambiental para la Bogotá del Siglo XXI | K53: 38 | L53: =IF(ISERROR(VLOOKUP(K53,Proposito_programa!$C$2:$E$59,2,FALSE))," ",VLOOKUP(K53,Proposito_programa!$C$2:$E$59,2,FALSE)) -> Ecoeficiencia, reciclaje, manejo de residuos e inclusión de la población recicladora | M53: =IF(ISERROR(VLOOKUP(K53,Proposito_programa!$C$2:$E$59,3,FALSE))," ",VLOOKUP(K53,Proposito_programa!$C$2:$E$59,3,FALSE)) -> Propósito 2 : Cambiar Nuestros Hábitos de Vida para Reverdecer a Bogotá y Adaptarnos y Mitigar la Crisis Climática | N53: 1669 | O53: 1 | P53: 1026277892 | Q53: WILLIAM ANDRES HERRERA PABON | R53: Persona Natural | W53: 66000000 | AA53: 66000000 | AB53: 66000000 | AC53: 2022-01-21 | AD53: 2022-01-24 | AE53: 2022-12-23 | AF53: 333 | AM53: Terminado | AN53: 1
A54: CPS-041-2022 | B54: 2022 | C54: FDRS-CD-041-2022 | D54: https://community.secop.gov.co/Public/Tendering/OpportunityDetail/Index?noticeUID=CO1.NTC.2642575&isFromPublicArea=True&isModal=False | E54: Contratos de prestación de servicios profesionales y de apoyo a la gestión | F54: Contratación directa | G54: Prestación de servicios profesionales y de apoyo a la gestión, o para la ejecución de trabajos artísticos que sólo puedan encomendarse a determinadas personas naturales | H54: PRESTAR LOS SERVICIOS PROFESIONALES PARA APOYAR LOS ASUNTOS JURÍDICOS EN LOS PROCESOS CONTRACTUALES Y POST-CONTRACTUALES Y LA GESTIÓN AMBIENTAL INTERNA Y EXTERNA DE LA ALCALDÍA LOCAL DE SUMAPAZ | I54: Inversión | J54: Un nuevo contrato social y ambiental para la Bogotá del Siglo XXI | K54: 30 | L54: =IF(ISERROR(VLOOKUP(K54,Proposito_programa!$C$2:$E$59,2,FALSE))," ",VLOOKUP(K54,Proposito_programa!$C$2:$E$59,2,FALSE)) -> Eficiencia en la atención de emergencias | M54: =IF(ISERROR(VLOOKUP(K54,Proposito_programa!$C$2:$E$59,3,FALSE))," ",VLOOKUP(K54,Proposito_programa!$C$2:$E$59,3,FALSE)) -> Propósito 2 : Cambiar Nuestros Hábitos de Vida para Reverdecer a Bogotá y Adaptarnos y Mitigar la Crisis Climática | N54: 1652 | O54: 1 | P54: 1019088970 | Q54: KAREN VIVIANA GONZALEZ ARIZA | R54: Persona Natural | W54: 71500000 | AA54: 71500000 | AB54: 66516666 | AC54: 2022-01-21 | AD54: 2022-01-24 | AE54: 2022-12-23 | AF54: 333 | AM54: Terminado | AN54: 0.930303021
A55: CPS-042-2022 | B55: 2022 | C55: FDRS-CD-042-2022 | D55: https://community.secop.gov.co/Public/Tendering/OpportunityDetail/Index?noticeUID=CO1.NTC.2627089&isFromPublicArea=True&isModal=False | E55: Contratos de prestación de servicios profesionales y de apoyo a la gestión | F55: Contratación directa | G55: Prestación de servicios profesionales y de apoyo a la gestión, o para la ejecución de trabajos artísticos que sólo puedan encomendarse a determinadas personas naturales | H55: PRESTAR LOS SERVICIOS PROFESIONALES PARA EL FORTALECIMIENTO DE PROCESOS DE RECONVERSIÓN Y TRANSFORMACIÓN DE INICIATIVAS PRODUCTIVAS AGROPECUARIAS LOCALES, CON ÉNFASIS EN LA AGROINDUSTRIA DEL SECTOR AGROALIMENTARIO, DE LA LOCALIDAD DE SUMAPAZ | I55: Inversión | J55: Un nuevo contrato social y ambiental para la Bogotá del Siglo XXI | K55: 6 | L55: =IF(ISERROR(VLOOKUP(K55,Proposito_programa!$C$2:$E$59,2,FALSE))," ",VLOOKUP(K55,Proposito_programa!$C$2:$E$59,2,FALSE)) -> Sistema Distrital de Cuidado | M55: =IF(ISERROR(VLOOKUP(K55,Proposito_programa!$C$2:$E$59,3,FALSE))," ",VLOOKUP(K55,Proposito_programa!$C$2:$E$59,3,FALSE)) -> Propósito 1: Hacer un nuevo contrato social para incrementar la inclusión social, productiva y política | N55: 1637 | O55: 1 | P55: 38246402 | Q55: PIEDAD CONSTANZA CIRO BASTO | R55: Persona Natural | W55: 62700000 | AA55: 62700000 | AB55: 58900000 | AC55: 2022-01-20 | AD55: 2022-01-21 | AE55: 2022-12-20 | AF55: 333 | AM55: Terminado | AN55: 0.9393939394
A56: CPS-043-2022 | B56: 2022 | C56: FDRS-CD-043-2022 | D56: https://community.secop.gov.co/Public/Tendering/OpportunityDetail/Index?noticeUID=CO1.NTC.2693710&isFromPublicArea=True&isModal=False | E56: Contratos de prestación de servicios profesionales y de apoyo a la gestión | F56: Contratación directa | G56: Prestación de servicios profesionales y de apoyo a la gestión, o para la ejecución de trabajos artísticos que sólo puedan encomendarse a determinadas personas naturales | H56: PRESTAR LOS SERVICIOS COMO TÉCNICO DE APOYO ADMINISTRATIVO AL ÁREA DE GESTIÓN POLICIVA DE LA ALCALDÍA LOCAL DE SUMAPAZ | I56: Inversión | J56: Un nuevo contrato social y ambiental para la Bogotá del Siglo XXI | K56: 57 | L56: =IF(ISERROR(VLOOKUP(K56,Proposito_programa!$C$2:$E$59,2,FALSE))," ",VLOOKUP(K56,Proposito_programa!$C$2:$E$59,2,FALSE)) -> Gestión pública local | M56: =IF(ISERROR(VLOOKUP(K56,Proposito_programa!$C$2:$E$59,3,FALSE))," ",VLOOKUP(K56,Proposito_programa!$C$2:$E$59,3,FALSE)) -> Propósito 5: Construir Bogotá - Región con gobierno abierto, transparente y ciudadanía consciente | N56: 1696 | O56: 1 | P56: 52524470 | Q56: MARCELA TORRES RAMIREZ | R56: Persona Natural | W56: 44000000 | Y56: 1 | Z56: 4000000 | AA56: =+W56+X56+Z56 -> 48000000 | AB56: 40000000 | AC56: 2022-01-24 | AD56: 2022-01-31 | AE56: 2022-12-30 | AF56: 333 | AG56: 1 | AH56: 30 | AM56: En ejecución | AN56: 0.8333333333
A57: CPS-044-2022 | B57: 2022 | C57: FDRS-CD-044-2022 | D57: https://community.secop.gov.co/Public/Tendering/OpportunityDetail/Index?noticeUID=CO1.NTC.2622737&isFromPublicArea=True&isModal=False | E57: Contratos de prestación de servicios profesionales y de apoyo a la gestión | F57: Contratación directa | G57: Prestación de servicios profesionales y de apoyo a la gestión, o para la ejecución de trabajos artísticos que sólo puedan encomendarse a determinadas personas naturales | H57: PRESTAR SUS SERVICIOS PROFESIONALES COMO ADMINISTRADOR DE LA RED DE LA ALCALDÍA LOCAL DE SUMAPAZ Y REALIZAR LA ACTUALIZACIÓN DE LOS DATOS EN LOS DIFERENTES SISTEMAS DE INFORMACIÓN | I57: Inversión | J57: Un nuevo contrato social y ambiental para la Bogotá del Siglo XXI | K57: 57 | L57: =IF(ISERROR(VLOOKUP(K57,Proposito_programa!$C$2:$E$59,2,FALSE))," ",VLOOKUP(K57,Proposito_programa!$C$2:$E$59,2,FALSE)) -> Gestión pública local | M57: =IF(ISERROR(VLOOKUP(K57,Proposito_programa!$C$2:$E$59,3,FALSE))," ",VLOOKUP(K57,Proposito_programa!$C$2:$E$59,3,FALSE)) -> Propósito 5: Construir Bogotá - Región con gobierno abierto, transparente y ciudadanía consciente | N57: 1696 | O57: 1 | P57: 80851526 | Q57: DIEGO ARMANDO ARIAS ROMERO | R57: Persona Natural | W57: 77000000 | Y57: 1 | Z57: 7000000 | AA57: 84000000 | AB57: 72333333 | AC57: 2022-01-20 | AD57: 2022-01-21 | AE57: 2022-12-20 | AF57: 333 | AG57: 1 | AH57: 30 | AM57: En ejecución | AN57: 0.8611111071
A58: CPS-045-2022 | B58: 2022 | C58: FDRS-CD-045-2022 | D58: https://community.secop.gov.co/Public/Tendering/OpportunityDetail/Index?noticeUID=CO1.NTC.2617212&isFromPublicArea=True&isModal=False | E58: Contratos de prestación de servicios profesionales y de apoyo a la gestión | F58: Contratación directa | G58: Prestación de servicios profesionales y de apoyo a la gestión, o para la ejecución de trabajos artísticos que sólo puedan encomendarse a determinadas personas naturales | H58: PRESTAR LOS SERVICIOS PROFESIONALES DE APOYO AL ÁREA DE GESTIÓN DE DESARROLLO LOCAL, DE LA ALCALDÍA LOCAL DE SUMAPAZ, ASOCIADOS AL FORTALECIMIENTO DE LA CULTURA CIUDADANA Y SU INSTITUCIONALIDAD QUE EJECUTA EL FONDO DE DESARROLLO RURAL DE SUMAPAZ | I58: Inversión | J58: Un nuevo contrato social y ambiental para la Bogotá del Siglo XXI | K58: 55 | L58: =IF(ISERROR(VLOOKUP(K58,Proposito_programa!$C$2:$E$59,2,FALSE))," ",VLOOKUP(K58,Proposito_programa!$C$2:$E$59,2,FALSE)) -> Fortalecimiento de cultura ciudadana y su institucionalidad | M58: =IF(ISERROR(VLOOKUP(K58,Proposito_programa!$C$2:$E$59,3,FALSE))," ",VLOOKUP(K58,Proposito_programa!$C$2:$E$59,3,FALSE)) -> Propósito 5: Construir Bogotá - Región con gobierno abierto, transparente y ciudadanía consciente | N58: 1691 | O58: 1 | P58: 1013642097 | Q58: CRISTIAN ANDRES TORRES MALAMBO | R58: Persona Natural | W58: 50600000 | Y58: 1 | Z58: 2300000 | AA58: 52900000 | AB58: 47686666 | AC58: 2022-01-19 | AD58: 2022-01-20 | AE58: 2022-12-19 | AF58: 333 | AG58: 1 | AH58: 15 | AM58: Terminado | AN58: 0.9014492628
A59: CPS-046-2022 | B59: 2022 | C59: FDRS-CD-046-2022 | D59: https://community.secop.gov.co/Public/Tendering/OpportunityDetail/Index?noticeUID=CO1.NTC.2618316&isFromPublicArea=True&isModal=False | E59: Contratos de prestación de servicios profesionales y de apoyo a la gestión | F59: Contratación directa | G59: Prestación de servicios profesionales y de apoyo a la gestión, o para la ejecución de trabajos artísticos que sólo puedan encomendarse a determinadas personas naturales | H59: PRESTAR LOS SERVICIOS PROFESIONALES PARA APOYAR LOS PROCESOS AFINES A LOS PROYECTOS DE INVERSIÓN EN TEMAS DE ACCESO A LA EDUCACIÓN SUPERIOR QUE EJECUTE EL FONDO DE DESARROLLO RURAL DE SUMAPAZ | I59: Inversión | J59: Un nuevo contrato social y ambiental para la Bogotá del Siglo XXI | K59: 18 | L59: =IF(ISERROR(VLOOKUP(K59,Proposito_programa!$C$2:$E$59,2,FALSE))," ",VLOOKUP(K59,Proposito_programa!$C$2:$E$59,2,FALSE)) -> Cierre de brechas para la inclusión productiva urbano rural | M59: =IF(ISERROR(VLOOKUP(K59,Proposito_programa!$C$2:$E$59,3,FALSE))," ",VLOOKUP(K59,Proposito_programa!$C$2:$E$59,3,FALSE)) -> Propósito 1: Hacer un nuevo contrato social para incrementar la inclusión social, productiva y política | N59: 1587 | O59: 1 | P59: 80161199 | Q59: DANIEL FERNANDO TUSSO CORTES | R59: Persona Natural | W59: 50600000 | Y59: 1 | Z59: 2300000 | AA59: 52900000 | AB59: 47686667 | AC59: 2022-01-19 | AD59: 2022-01-20 | AE59: 2022-12-19 | AF59: 333 | AG59: 1 | AH59: 15 | AM59: Terminado | AN59: 0.9014492817
A60: CPS-047-2022 | B60: 2022 | C60: FDRS-CD-047-2022 | D60: https://community.secop.gov.co/Public/Tendering/OpportunityDetail/Index?noticeUID=CO1.NTC.2627723&isFromPublicArea=True&isModal=False | E60: Contratos de prestación de servicios profesionales y de apoyo a la gestión | F60: Contratación directa | G60: Prestación de servicios profesionales y de apoyo a la gestión, o para la ejecución de trabajos artísticos que sólo puedan encomendarse a determinadas personas naturales | H60: PRESTAR SUS SERVICIOS DE APOYO LOGÍSTICO Y OPERATIVO, EN LAS SEDES DE LA ALCALDÍA LOCAL DE SUMAPAZ | I60: Inversión | J60: Un nuevo contrato social y ambiental para la Bogotá del Siglo XXI | K60: 57 | L60: =IF(ISERROR(VLOOKUP(K60,Proposito_programa!$C$2:$E$59,2,FALSE))," ",VLOOKUP(K60,Proposito_programa!$C$2:$E$59,2,FALSE)) -> Gestión pública local | M60: =IF(ISERROR(VLOOKUP(K60,Proposito_programa!$C$2:$E$59,3,FALSE))," ",VLOOKUP(K60,Proposito_programa!$C$2:$E$59,3,FALSE)) -> Propósito 5: Construir Bogotá - Región con gobierno abierto, transparente y ciudadanía consciente | N60: 1696 | O60: 1 | P60: 80559448 | Q60: PEDRO ALFONSO CASTRO MORALES | R60: Persona Natural | W60: 29700000 | Y60: 1 | Z60: 1350000 | AA60: 31050000 | AB60: 27900000 | AC60: 2022-01-20 | AD60: 2022-01-21 | AE60: 2022-12-20 | AF60: 333 | AG60: 1 | AH60: 15 | AM60: Terminado | AN60: 0.8985507246
A61: CPS-048-2022 | B61: 2022 | C61: FDRS-CD-048-2022 | D61: https://community.secop.gov.co/Public/Tendering/OpportunityDetail/Index?noticeUID=CO1.NTC.2627373&isFromPublicArea=True&isModal=False | E61: Contratos de prestación de servicios profesionales y de apoyo a la gestión | F61: Contratación directa | G61: Prestación de servicios profesionales y de apoyo a la gestión, o para la ejecución de trabajos artísticos que sólo puedan encomendarse a determinadas personas naturales | H61: PRESTAR LOS SERVICIOS PROFESIONALES PARA APOYAR EL PROCESO DE PLANEACIÓN Y SEGUIMIENTO DE LOS PLANES, PROGRAMAS Y PROYECTOS DE INVERSIÓN DEL FONDO DE DESARROLLO RURAL DE SUMAPAZ | I61: Inversión | J61: Un nuevo contrato social y ambiental para la Bogotá del Siglo XXI | K61: 57 | L61: =IF(ISERROR(VLOOKUP(K61,Proposito_programa!$C$2:$E$59,2,FALSE))," ",VLOOKUP(K61,Proposito_programa!$C$2:$E$59,2,FALSE)) -> Gestión pública local | M61: =IF(ISERROR(VLOOKUP(K61,Proposito_programa!$C$2:$E$59,3,FALSE))," ",VLOOKUP(K61,Proposito_programa!$C$2:$E$59,3,FALSE)) -> Propósito 5: Construir Bogotá - Región con gobierno abierto, transparente y ciudadanía consciente | N61: 1696 | O61: 1 | P61: 1010179712 | Q61: MARIO ALONSO SERRANO ACOSTA | R61: Persona Natural | W61: 71500000 | Y61: 1 | Z61: 3250000 | AA61: 74750000 | AB61: 67166667 | AC61: 2022-01-20 | AD61: 2022-01-21 | AE61: 2022-12-20 | AF61: 333 | AG61: 1 | AH61: 15 | AI61: 79519356 | AJ61: MILTON ROBERTO TORRES TORRES | AK61: 2022-09-01 | AL61: 23833333 | AM61: Terminado | AN61: 0.8985507291
A62: CPS-049-2022 | B62: 2022 | C62: FDRS-CD-049-2022 | D62: https://community.secop.gov.co/Public/Tendering/OpportunityDetail/Index?noticeUID=CO1.NTC.2627271&isFromPublicArea=True&isModal=False | E62: Contratos de prestación de servicios profesionales y de apoyo a la gestión | F62: Contratación directa | G62: Prestación de servicios profesionales y de apoyo a la gestión, o para la ejecución de trabajos artísticos que sólo puedan encomendarse a determinadas personas naturales | H62: PRESTAR LOS SERVICIOS DE APOYO A LA GESTIÓN DOCUMENTAL DE LA ALCALDÍA LOCAL EN LA IMPLEMENTACIÓN DE LOS PROCESOS DE CLASIFICACIÓN, ORDENACIÓN, SELECCIÓN NATURAL, FOLIACIÓN, IDENTIFICACIÓN, LEVANTAMIENTO DE INVENTARIOS, ALMACENAMIENTO Y APLICACIÓN DE PROTOCOLOS DE ELIMINACIÓN Y TRANSFERENCIAS DOCUMENTALES | I62: Inversión | J62: Un nuevo contrato social y ambiental para la Bogotá del Siglo XXI | K62: 57 | L62: =IF(ISERROR(VLOOKUP(K62,Proposito_programa!$C$2:$E$59,2,FALSE))," ",VLOOKUP(K62,Proposito_programa!$C$2:$E$59,2,FALSE)) -> Gestión pública local | M62: =IF(ISERROR(VLOOKUP(K62,Proposito_programa!$C$2:$E$59,3,FALSE))," ",VLOOKUP(K62,Proposito_programa!$C$2:$E$59,3,FALSE)) -> Propósito 5: Construir Bogotá - Región con gobierno abierto, transparente y ciudadanía consciente | N62: 1696 | O62: 1 | P62: 1030671895 | Q62: MARIA PAULA CONTRERAS MORALES | R62: Persona Natural | W62: 29700000 | Y62: 1 | Z62: 1350000 | AA62: 31050000 | AB62: 27900000 | AC62: 2022-01-20 | AD62: 2022-01-21 | AE62: 2022-12-20 | AF62: 333 | AG62: 1 | AH62: 15 | AM62: En ejecución | AN62: 0.8985507246
A63: CPS-051-2022 | B63: 2022 | C63: FDRS-CD-051-2022 | D63: https://community.secop.gov.co/Public/Tendering/OpportunityDetail/Index?noticeUID=CO1.NTC.2644600&isFromPublicArea=True&isModal=False | E63: Contratos de prestación de servicios profesionales y de apoyo a la gestión | F63: Contratación directa | G63: Prestación de servicios profesionales y de apoyo a la gestión, o para la ejecución de trabajos artísticos que sólo puedan encomendarse a determinadas personas naturales | H63: PRESTAR SUS SERVICIOS PROFESIONALES AL ÁREA DE GESTIÓN DE DESARROLLO LOCAL PARA APOYAR LA INTERVENCIÓN Y SEGUIMIENTO A LOS PROYECTOS DE INFRAESTRUCTURA Y PUENTES | I63: Inversión | J63: Un nuevo contrato social y ambiental para la Bogotá del Siglo XXI | K63: 49 | L63: =IF(ISERROR(VLOOKUP(K63,Proposito_programa!$C$2:$E$59,2,FALSE))," ",VLOOKUP(K63,Proposito_programa!$C$2:$E$59,2,FALSE)) -> Movilidad segura, sostenible y accesible | M63: =IF(ISERROR(VLOOKUP(K63,Proposito_programa!$C$2:$E$59,3,FALSE))," ",VLOOKUP(K63,Proposito_programa!$C$2:$E$59,3,FALSE)) -> Propósito 4: Hacer de Bogotá Región un modelo de movilidad multimodal, incluyente y sostenible | N63: 1688 | O63: 1 | P63: 53167430 | Q63: DIANA LORENA HILARION PLAZAS | R63: Persona Natural | W63: 30000000 | Y63: 1 | Z63: 15000000 | AA63: 45000000 | AB63: 45000000 | AC63: 2022-01-21 | AD63: 2022-01-24 | AE63: 2022-07-23 | AF63: 180 | AG63: 1 | AH63: 90 | AM63: Terminado | AN63: 1
A64: CPS-052-2022 | B64: 2022 | C64: FDRS-CD-052-2022 | D64: https://community.secop.gov.co/Public/Tendering/OpportunityDetail/Index?noticeUID=CO1.NTC.2675554&isFromPublicArea=True&isModal=False | E64: Contratos de prestación de servicios profesionales y de apoyo a la gestión | F64: Contratación directa | G64: Prestación de servicios profesionales y de apoyo a la gestión, o para la ejecución de trabajos artísticos que sólo puedan encomendarse a determinadas personas naturales | H64: PRESTAR SUS SERVICIOS PROFESIONALES PARA APOYAR AL EQUIPO DE PRENSA Y COMUNICACIONES DE LA ALCALDÍA LOCAL EN LA REALIZACIÓN DE PRODUCTOS Y PIEZAS DIGITALES, IMPRESAS Y PUBLICITARIAS DE GRAN FORMATO Y DE ANIMACIÓN GRÁFICA, ASÍ COMO APOYAR LA PRODUCCIÓN Y MONTAJE DE EVENTOS | I64: Inversión | J64: Un nuevo contrato social y ambiental para la Bogotá del Siglo XXI | K64: 57 | L64: =IF(ISERROR(VLOOKUP(K64,Proposito_programa!$C$2:$E$59,2,FALSE))," ",VLOOKUP(K64,Proposito_programa!$C$2:$E$59,2,FALSE)) -> Gestión pública local | M64: =IF(ISERROR(VLOOKUP(K64,Proposito_programa!$C$2:$E$59,3,FALSE))," ",VLOOKUP(K64,Proposito_programa!$C$2:$E$59,3,FALSE)) -> Propósito 5: Construir Bogotá - Región con gobierno abierto, transparente y ciudadanía consciente | N64: 1696 | O64: 1 | P64: 1012368691 | Q64: JENNY VIVIANA CASTAÑEDA RAMIREZ | R64: Persona Natural | W64: 66000000 | AA64: 66000000 | AB64: 61200000 | AC64: 2022-01-23 | AD64: 2022-01-25 | AE64: 2022-12-24 | AF64: 333 | AM64: Terminado | AN64: 0.9272727273
A65: CPS-053-2022 | B65: 2022 | C65: FDRS-CD-053-2022 | D65: https://community.secop.gov.co/Public/Tendering/OpportunityDetail/Index?noticeUID=CO1.NTC.2627249&isFromPublicArea=True&isModal=False | E65: Contratos de prestación de servicios profesionales y de apoyo a la gestión | F65: Contratación directa | G65: Prestación de servicios profesionales y de apoyo a la gestión, o para la ejecución de trabajos artísticos que sólo puedan encomendarse a determinadas personas naturales | H65: PRESTAR LOS SERVICIOS PROFESIONALES PARA LA OPERACIÓN, PRESTACIÓN SEGUIMIENTO Y CUMPLIMIENTO DE LOS PROCEDIMIENTOS ADMINISTRATIVOS, OPERATIVOS, OPERATIVOS Y PROGRAMÁTICOS DEL SERVICIO APOYO ECONÓMICO TIPO C, QUE CONTRIBUYEN A LA GARANTÍA DE LOS DERECHOS DE LA POBLACIÓN MAYOR EN EL MARCO DE LA POLÍTICA PÚBLICA SOCIAL PARA EL ENVEJECIMIENTO Y LA VEJEZ EN EL DISTRITO CAPITAL A CARGO DE LA ALCALDÍA LOCAL DE SUMAPAZ | I65: Inversión | J65: Un nuevo contrato social y ambiental para la Bogotá del Siglo XXI | K65: 1 | L65: =IF(ISERROR(VLOOKUP(K65,Proposito_programa!$C$2:$E$59,2,FALSE))," ",VLOOKUP(K65,Proposito_programa!$C$2:$E$59,2,FALSE)) -> Subsidios y transferencias para la equidad | M65: =IF(ISERROR(VLOOKUP(K65,Proposito_programa!$C$2:$E$59,3,FALSE))," ",VLOOKUP(K65,Proposito_programa!$C$2:$E$59,3,FALSE)) -> Propósito 1: Hacer un nuevo contrato social para incrementar la inclusión social, productiva y política | N65: 1583 | O65: 1 | P65: 52372021 | Q65: MILENY HILARION RIOS | R65: Persona Natural | W65: 50600000 | Y65: 1 | Z65: 2146667 | AA65: 52746667 | AB65: 47533333 | AC65: 2022-01-20 | AD65: 2022-01-21 | AE65: 2022-12-20 | AF65: 333 | AG65: 1 | AH65: 14 | AM65: Terminado | AN65: 0.9011627787
A66: CPS-055-2022 | B66: 2022 | C66: FDRS-CD-055-2022 | D66: https://community.secop.gov.co/Public/Tendering/OpportunityDetail/Index?noticeUID=CO1.NTC.2636264&isFromPublicArea=True&isModal=False | E66: Contratos de prestación de servicios profesionales y de apoyo a la gestión | F66: Contratación directa | G66: Prestación de servicios profesionales y de apoyo a la gestión, o para la ejecución de trabajos artísticos que sólo puedan encomendarse a determinadas personas naturales | H66: PRESTAR SUS SERVICIOS PROFESIONALES AL ÁREA DE GESTIÓN DE DESARROLLO LOCAL PARA APOYAR LA PLANEACIÓN, EJECUCIÓN Y SEGUIMIENTO A LOS PROYECTOS DE INVERSIÓN RELACIONADOS CON LA INFRAESTRUCTURA DE PUENTES | I66: Inversión | J66: Un nuevo contrato social y ambiental para la Bogotá del Siglo XXI | K66: 49 | L66: =IF(ISERROR(VLOOKUP(K66,Proposito_programa!$C$2:$E$59,2,FALSE))," ",VLOOKUP(K66,Proposito_programa!$C$2:$E$59,2,FALSE)) -> Movilidad segura, sostenible y accesible | M66: =IF(ISERROR(VLOOKUP(K66,Proposito_programa!$C$2:$E$59,3,FALSE))," ",VLOOKUP(K66,Proposito_programa!$C$2:$E$59,3,FALSE)) -> Propósito 4: Hacer de Bogotá Región un modelo de movilidad multimodal, incluyente y sostenible | N66: 1688 | O66: 1 | P66: 1014239239 | Q66: ANAMARIA GOMEZ COLMENARES | R66: Persona Natural | W66: 66000000 | Y66: 1 | Z66: 3000000 | AA66: 69000000 | AB66: 62000000 | AC66: 2022-01-20 | AD66: 2022-01-21 | AE66: 2022-12-20 | AF66: 333 | AG66: 1 | AH66: 15 | AM66: En ejecución | AN66: 0.8985507246
A67: CPS-056-2022 | B67: 2022 | C67: FDRS-CD-056-2022 | D67: https://community.secop.gov.co/Public/Tendering/OpportunityDetail/Index?noticeUID=CO1.NTC.2636026&isFromPublicArea=True&isModal=False | E67: Contratos de prestación de servicios profesionales y de apoyo a la gestión | F67: Contratación directa | G67: Prestación de servicios profesionales y de apoyo a la gestión, o para la ejecución de trabajos artísticos que sólo puedan encomendarse a determinadas personas naturales | H67: PRESTAR SUS SERVICIOS PROFESIONALES DE APOYO AL AREA DE GESTION DEL DESARROLLO LOCAL EN LA GESTION CONTRACTUAL DEL FONDO DE DESARROLLO LOCAL DE SUMAPAZ | I67: Inversión | J67: Un nuevo contrato social y ambiental para la Bogotá del Siglo XXI | K67: 57 | L67: =IF(ISERROR(VLOOKUP(K67,Proposito_programa!$C$2:$E$59,2,FALSE))," ",VLOOKUP(K67,Proposito_programa!$C$2:$E$59,2,FALSE)) -> Gestión pública local | M67: =IF(ISERROR(VLOOKUP(K67,Proposito_programa!$C$2:$E$59,3,FALSE))," ",VLOOKUP(K67,Proposito_programa!$C$2:$E$59,3,FALSE)) -> Propósito 5: Construir Bogotá - Región con gobierno abierto, transparente y ciudadanía consciente | N67: 1696 | O67: 1 | P67: 1076201668 | Q67: MICHAEL STEVEN CASTILLO VIASUS | R67: Persona Natural | W67: 50600000 | Y67: 1 | Z67: 4600000 | AA67: 55200000 | AB67: 46920000 | AC67: 2022-01-20 | AD67: 2022-01-25 | AE67: 2022-12-24 | AF67: 333 | AG67: 1 | AH67: 30 | AM67: En ejecución | AN67: 0.85
A68: CPS-057-2022 | B68: 2022 | C68: FDRS-CD-057-2022 | D68: https://community.secop.gov.co/Public/Tendering/OpportunityDetail/Index?noticeUID=CO1.NTC.2635638&isFromPublicArea=True&isModal=False | E68: Contratos de prestación de servicios profesionales y de apoyo a la gestión | F68: Contratación directa | G68: Prestación de servicios profesionales y de apoyo a la gestión, o para la ejecución de trabajos artísticos que sólo puedan encomendarse a determinadas personas naturales | H68: PRESTAR LOS SERVICIOS PROFESIONALES JURÍDICOS PARA APOYAR LOS ASUNTOS PRECONTRACTUALES, CONTRACTUALES Y POST-CONTRACTUALES DEL ÁREA DE GESTIÓN DE DESARROLLO LOCAL DE LA ALCALDÍA LOCAL DE SUMAPAZ | I68: Inversión | J68: Un nuevo contrato social y ambiental para la Bogotá del Siglo XXI | K68: 57 | L68: =IF(ISERROR(VLOOKUP(K68,Proposito_programa!$C$2:$E$59,2,FALSE))," ",VLOOKUP(K68,Proposito_programa!$C$2:$E$59,2,FALSE)) -> Gestión pública local | M68: =IF(ISERROR(VLOOKUP(K68,Proposito_programa!$C$2:$E$59,3,FALSE))," ",VLOOKUP(K68,Proposito_programa!$C$2:$E$59,3,FALSE)) -> Propósito 5: Construir Bogotá - Región con gobierno abierto, transparente y ciudadanía consciente | N68: 1696 | O68: 1 | P68: 104917459 | Q68: LAURA CONSUELO GIL MESA | R68: Persona Natural | W68: 66000000 | Y68: 1 | Z68: 10000000 | AA68: 76000000 | AB68: 61000000 | AC68: 2022-01-20 | AD68: 2022-01-21 | AE68: 2022-12-20 | AF68: 333 | AG68: 1 | AH68: 50 | AI68: 1214213207 | AJ68: LINNA NATALY CABRA COY | AK68: 2022-09-01 | AL68: 23200000 | AM68: En ejecución | AN68: 0.8026315789
A69: CPS-058-2022 | B69: 2022 | C69: FDRS-CD-058-2022 | D69: https://community.secop.gov.co/Public/Tendering/OpportunityDetail/Index?noticeUID=CO1.NTC.2641821&isFromPublicArea=True&isModal=False | E69: Contratos de prestación de servicios profesionales y de apoyo a la gestión | F69: Contratación directa | G69: Prestación de servicios profesionales y de apoyo a la gestión, o para la ejecución de trabajos artísticos que sólo puedan encomendarse a determinadas personas naturales | H69: PRESTAR LOS SERVICIOS COMO TÉCNICO ADMINISTRATIVO AL SERVICIO DE LA JUNTA ADMINISTRADORA LOCAL DE SUMAPAZ | I69: Inversión | J69: Un nuevo contrato social y ambiental para la Bogotá del Siglo XXI | K69: 57 | L69: =IF(ISERROR(VLOOKUP(K69,Proposito_programa!$C$2:$E$59,2,FALSE))," ",VLOOKUP(K69,Proposito_programa!$C$2:$E$59,2,FALSE)) -> Gestión pública local | M69: =IF(ISERROR(VLOOKUP(K69,Proposito_programa!$C$2:$E$59,3,FALSE))," ",VLOOKUP(K69,Proposito_programa!$C$2:$E$59,3,FALSE)) -> Propósito 5: Construir Bogotá - Región con gobierno abierto, transparente y ciudadanía consciente | N69: 1696 | O69: 1 | P69: 52231511 | Q69: CARLA NIAMED LOZANO TAUTIVA | R69: Persona Natural | W69: 44000000 | AA69: 44000000 | AB69: 40933333 | AC69: 2022-01-21 | AD69: 2022-01-24 | AE69: 2022-12-23 | AF69: 333 | AM69: Terminado | AN69: =IF(ISERROR(AB69/AA69),"-",(AB69/AA69)) -> 0.9303030227
A70: CPS-059-2022 | B70: 2022 | C70: FDRS-CD-059-2022 | D70: https://community.secop.gov.co/Public/Tendering/OpportunityDetail/Index?noticeUID=CO1.NTC.2641297&isFromPublicArea=True&isModal=False | E70: Contratos de prestación de servicios profesionales y de apoyo a la gestión | F70: Contratación directa | G70: Prestación de servicios profesionales y de apoyo a la gestión, o para la ejecución de trabajos artísticos que sólo puedan encomendarse a determinadas personas naturales | H70: PRESTAR LOS SERVICIOS PROFESIONALES ADMINISTRATIVOS Y OPERATIVOS AL ÁREA DE GESTIÓN DE DESARROLLO LOCAL, DE LA ALCALDÍA LOCAL DE SUMAPAZ, PARA DAR CUMPLIMIENTO AL PLAN DE DESARROLLO LOCAL | I70: Inversión | J70: Un nuevo contrato social y ambiental para la Bogotá del Siglo XXI | K70: 57 | L70: =IF(ISERROR(VLOOKUP(K70,Proposito_programa!$C$2:$E$59,2,FALSE))," ",VLOOKUP(K70,Proposito_programa!$C$2:$E$59,2,FALSE)) -> Gestión pública local | M70: =IF(ISERROR(VLOOKUP(K70,Proposito_programa!$C$2:$E$59,3,FALSE))," ",VLOOKUP(K70,Proposito_programa!$C$2:$E$59,3,FALSE)) -> Propósito 5: Construir Bogotá - Región con gobierno abierto, transparente y ciudadanía consciente | N70: 1696 | O70: 1 | P70: 1136888698 | Q70: DANNA MARCELA FORERO RODRIGUEZ | R70: Persona Natural | W70: 50600000 | Y70: 1 | Z70: 4600000 | AA70: 55200000 | AB70: 47073333 | AC70: 2022-01-21 | AD70: 2022-01-24 | AE70: 2022-12-23 | AF70: 333 | AG70: 1 | AH70: 30 | AM70: En ejecución | AN70: =IF(ISERROR(AB70/AA70),"-",(AB70/AA70)) -> 0.8527777717
A71: CPS-060-2022 | B71: 2022 | C71: FDRS-CD-060-2022 | D71: https://community.secop.gov.co/Public/Tendering/OpportunityDetail/Index?noticeUID=CO1.NTC.2645673&isFromPublicArea=True&isModal=False | E71: Contratos de prestación de servicios profesionales y de apoyo a la gestión | F71: Contratación directa | G71: Prestación de servicios profesionales y de apoyo a la gestión, o para la ejecución de trabajos artísticos que sólo puedan encomendarse a determinadas personas naturales | H71: PRESTAR LOS SERVICIOS DE APOYO A LA GESTIÓN DOCUMENTAL DE LA ALCALDÍA LOCAL EN LA IMPLEMENTACIÓN DE LOS PROCESOS DE CLASIFICACIÓN, ORDENACIÓN, SELECCIÓN NATURAL, FOLIACIÓN, IDENTIFICACIÓN, LEVANTAMIENTO DE INVENTARIOS, ALMACENAMIENTO Y APLICACIÓN DE PROTOCOLOS DE ELIMINACIÓN Y TRANSFERENCIAS DOCUMENTALES | I71: Inversión | J71: Un nuevo contrato social y ambiental para la Bogotá del Siglo XXI | K71: 57 | L71: =IF(ISERROR(VLOOKUP(K71,Proposito_programa!$C$2:$E$59,2,FALSE))," ",VLOOKUP(K71,Proposito_programa!$C$2:$E$59,2,FALSE)) -> Gestión pública local | M71: =IF(ISERROR(VLOOKUP(K71,Proposito_programa!$C$2:$E$59,3,FALSE))," ",VLOOKUP(K71,Proposito_programa!$C$2:$E$59,3,FALSE)) -> Propósito 5: Construir Bogotá - Región con gobierno abierto, transparente y ciudadanía consciente | N71: 1696 | O71: 1 | P71: 1015419501 | Q71: NATALIA SANCHEZ MARIN | R71: Persona Natural | W71: 29700000 | AA71: 29700000 | AB71: 19530000 | AC71: 2022-01-21 | AD71: 2022-01-24 | AE71: 2022-12-23 | AF71: 333 | AM71: Terminado | AN71: 0.6575757576
A72: CPS-061-2022 | B72: 2022 | C72: FDRS-CD-061-2022 | D72: https://community.secop.gov.co/Public/Tendering/OpportunityDetail/Index?noticeUID=CO1.NTC.2645708&isFromPublicArea=True&isModal=False | E72: Contratos de prestación de servicios profesionales y de apoyo a la gestión | F72: Contratación directa | G72: Prestación de servicios profesionales y de apoyo a la gestión, o para la ejecución de trabajos artísticos que sólo puedan encomendarse a determinadas personas naturales | H72: PRESTAR LOS SERVICIOS DE APOYO ADMINISTRATIVO AL PARQUE AUTOMOTOR PESADO Y MAQUINARIA, DE PROPIEDAD DEL FONDO DE DESARROLLO RURAL DE SUMAPAZ | I72: Inversión | J72: Un nuevo contrato social y ambiental para la Bogotá del Siglo XXI | K72: 57 | L72: =IF(ISERROR(VLOOKUP(K72,Proposito_programa!$C$2:$E$59,2,FALSE))," ",VLOOKUP(K72,Proposito_programa!$C$2:$E$59,2,FALSE)) -> Gestión pública local | M72: =IF(ISERROR(VLOOKUP(K72,Proposito_programa!$C$2:$E$59,3,FALSE))," ",VLOOKUP(K72,Proposito_programa!$C$2:$E$59,3,FALSE)) -> Propósito 5: Construir Bogotá - Región con gobierno abierto, transparente y ciudadanía consciente | N72: 1696 | O72: 1 | P72: 1030562593 | Q72: JOHANA MARITZA GOMEZ NEUTO | R72: Persona Natural | W72: 44000000 | Y72: 1 | Z72: 1600000 | AA72: 45600000 | AB72: 40800000 | AC72: 2022-01-21 | AD72: 2022-01-25 | AE72: 2022-12-24 | AF72: 333 | AG72: 1 | AH72: 12 | AM72: En ejecución | AN72: 0.8947368421
A73: CPS-062-2022 | B73: 2022 | C73: FDRS-CD-062-2022 | D73: https://community.secop.gov.co/Public/Tendering/OpportunityDetail/Index?noticeUID=CO1.NTC.2645645&isFromPublicArea=True&isModal=False | E73: Contratos de prestación de servicios profesionales y de apoyo a la gestión | F73: Contratación directa | G73: Prestación de servicios profesionales y de apoyo a la gestión, o para la ejecución de trabajos artísticos que sólo puedan encomendarse a determinadas personas naturales | H73: PRESTAR LOS SERVICIOS COMO INSPECTOR DE PARQUE AUTOMOTOR DE LA MAQUINARIA Y VEHÍCULOS PESADOS DE PROPIEDAD O TENENCIA DEL FONDO DE DESARROLLO LOCAL DE SUMAPAZ | I73: Inversión | J73: Un nuevo contrato social y ambiental para la Bogotá del Siglo XXI | K73: 49 | L73: =IF(ISERROR(VLOOKUP(K73,Proposito_programa!$C$2:$E$59,2,FALSE))," ",VLOOKUP(K73,Proposito_programa!$C$2:$E$59,2,FALSE)) -> Movilidad segura, sostenible y accesible | M73: =IF(ISERROR(VLOOKUP(K73,Proposito_programa!$C$2:$E$59,3,FALSE))," ",VLOOKUP(K73,Proposito_programa!$C$2:$E$59,3,FALSE)) -> Propósito 4: Hacer de Bogotá Región un modelo de movilidad multimodal, incluyente y sostenible | N73: 1688 | O73: 1 | P73: 11388875 | Q73: WILLIAM OSVALDO RUBIANO TELLEZ | R73: Persona Natural | W73: 16200000 | Y73: 1 | Z73: 8100000 | AA73: 24300000 | AB73: 24210000 | AC73: 2022-01-21 | AD73: 2022-01-24 | AE73: 2022-07-23 | AF73: 180 | AG73: 1 | AH73: 90 | AM73: Terminado | AN73: 0.9962962963
A74: CPS-063-2022 | B74: 2022 | C74: FDRS-CD-063-2022 | D74: https://community.secop.gov.co/Public/Tendering/OpportunityDetail/Index?noticeUID=CO1.NTC.2648241&isFromPublicArea=True&isModal=False | E74: Contratos de prestación de servicios profesionales y de apoyo a la gestión | F74: Contratación directa | G74: Prestación de servicios profesionales y de apoyo a la gestión, o para la ejecución de trabajos artísticos que sólo puedan encomendarse a determinadas personas naturales | H74: PRESTAR LOS SERVICIOS PROFESIONALES PARA APOYAR TÉCNICAMENTE A LOS RESPONSABLES E INTEGRANTES DE LOS PROCESOS EN LA IMPLEMENTACIÓN DE HERRAMIENTAS DE GESTIÓN, SIGUIENDO LOS LINEAMIENTOS METODOLÓGICOS ESTABLECIDOS POR LA OFICINA ASESORA DE PLANEACIÓN DE LA SECRETARÍA DISTRITAL DE GOBIERNO | I74: Inversión | J74: Un nuevo contrato social y ambiental para la Bogotá del Siglo XXI | K74: 57 | L74: =IF(ISERROR(VLOOKUP(K74,Proposito_programa!$C$2:$E$59,2,FALSE))," ",VLOOKUP(K74,Proposito_programa!$C$2:$E$59,2,FALSE)) -> Gestión pública local | M74: =IF(ISERROR(VLOOKUP(K74,Proposito_programa!$C$2:$E$59,3,FALSE))," ",VLOOKUP(K74,Proposito_programa!$C$2:$E$59,3,FALSE)) -> Propósito 5: Construir Bogotá - Región con gobierno abierto, transparente y ciudadanía consciente | N74: 1696 | O74: 1 | P74: 52211430 | Q74: GLORIA ESPERANZA PIRAJON TEJEDOR | R74: Persona Natural | W74: 82500000 | Y74: 1 | Z74: 7500000 | AA74: 90000000 | AB74: 76750000 | AC74: 2022-01-21 | AD74: 2022-01-24 | AE74: 2022-12-23 | AF74: 333 | AG74: 1 | AH74: 30 | AM74: En ejecución | AN74: 0.8527777778
A75: CPS-064-2022 | B75: 2022 | C75: FDRS-CD-064-2022 | D75: https://community.secop.gov.co/Public/Tendering/OpportunityDetail/Index?noticeUID=CO1.NTC.2648342&isFromPublicArea=True&isModal=False | E75: Contratos de prestación de servicios profesionales y de apoyo a la gestión | F75: Contratación directa | G75: Prestación de servicios profesionales y de apoyo a la gestión, o para la ejecución de trabajos artísticos que sólo puedan encomendarse a determinadas personas naturales | H75: PRESTAR LOS SERVICIOS PROFESIONALES PARA APOYAR EL DESARROLLO DE LOS PROYECTOS DE MITIGACIÓN Y GESTIÓN DEL RIESGO Y ADAPTACIÓN AL CAMBIO CLIMÁTICO PARA LA CONSERVACIÓN DEL MEDIO AMBIENTE Y LOS RECURSOS NATURALES RENOVABLES EXISTENTES EN LA LOCALIDAD DE SUMAPAZ | I75: Inversión | J75: Un nuevo contrato social y ambiental para la Bogotá del Siglo XXI | K75: 30 | L75: =IF(ISERROR(VLOOKUP(K75,Proposito_programa!$C$2:$E$59,2,FALSE))," ",VLOOKUP(K75,Proposito_programa!$C$2:$E$59,2,FALSE)) -> Eficiencia en la atención de emergencias | M75: =IF(ISERROR(VLOOKUP(K75,Proposito_programa!$C$2:$E$59,3,FALSE))," ",VLOOKUP(K75,Proposito_programa!$C$2:$E$59,3,FALSE)) -> Propósito 2 : Cambiar Nuestros Hábitos de Vida para Reverdecer a Bogotá y Adaptarnos y Mitigar la Crisis Climática | N75: 1652 | O75: 1 | P75: 1032656281 | Q75: WILMAR GILDARDO TORRES TORRES | R75: Persona Natural | W75: 66000000 | AA75: 66000000 | AB75: 61400000 | AC75: 2022-01-21 | AD75: 2022-01-24 | AE75: 2022-12-23 | AF75: 333 | AM75: Terminado | AN75: 0.9303030303
A76: CPS-065-2022 | B76: 2022 | C76: FDRS-CD-065-2022 | D76: https://community.secop.gov.co/Public/Tendering/OpportunityDetail/Index?noticeUID=CO1.NTC.2650055&isFromPublicArea=True&isModal=False | E76: Contratos de prestación de servicios profesionales y de apoyo a la gestión | F76: Contratación directa | G76: Prestación de servicios profesionales y de apoyo a la gestión, o para la ejecución de trabajos artísticos que sólo puedan encomendarse a determinadas personas naturales | H76: PRESTAR SUS SERVICIOS ARTÍSTICOS Y MUSICALES PARA APOYAR LA GESTIÓN CULTURAL DE LA LOCALIDAD DE SUMAPAZ | I76: Inversión | J76: Un nuevo contrato social y ambiental para la Bogotá del Siglo XXI | K76: 21 | L76: =IF(ISERROR(VLOOKUP(K76,Proposito_programa!$C$2:$E$59,2,FALSE))," ",VLOOKUP(K76,Proposito_programa!$C$2:$E$59,2,FALSE)) -> Creación y vida cotidiana: Apropiación ciudadana del arte, la cultura y el patrimonio, para la democracia cultural | M76: =IF(ISERROR(VLOOKUP(K76,Proposito_programa!$C$2:$E$59,3,FALSE))," ",VLOOKUP(K76,Proposito_programa!$C$2:$E$59,3,FALSE)) -> Propósito 1: Hacer un nuevo contrato social para incrementar la inclusión social, productiva y política | N76: 1633 | O76: 1 | P76: 11336536 | Q76: HELBERTH ENRIQUE BALLESTAS BARRIOS | R76: Persona Natural | W76: 49500000 | AA76: 49500000 | AB76: 46050000 | AC76: 2022-01-21 | AD76: 2022-01-24 | AE76: 2022-12-23 | AF76: 333 | AM76: Terminado | AN76: 0.9303030303
A77: CPS-066-2022 | B77: 2022 | C77: FDRS-CD-066-2022 | D77: https://community.secop.gov.co/Public/Tendering/OpportunityDetail/Index?noticeUID=CO1.NTC.2648440&isFromPublicArea=True&isModal=False | E77: Contratos de prestación de servicios profesionales y de apoyo a la gestión | F77: Contratación directa | G77: Prestación de servicios profesionales y de apoyo a la gestión, o para la ejecución de trabajos artísticos que sólo puedan encomendarse a determinadas personas naturales | H77: PRESTAR LOS SERVICIOS PROFESIONALES JURÍDICOS PARA APOYAR LOS ASUNTOS PRECONTRACTUALES, CONTRACTUALES Y POST-CONTRACTUALES DEL ÁREA DE GESTIÓN DE DESARROLLO LOCAL DE LA ALCALDÍA LOCAL DE SUMAPAZ | I77: Inversión | J77: Un nuevo contrato social y ambiental para la Bogotá del Siglo XXI | K77: 57 | L77: =IF(ISERROR(VLOOKUP(K77,Proposito_programa!$C$2:$E$59,2,FALSE))," ",VLOOKUP(K77,Proposito_programa!$C$2:$E$59,2,FALSE)) -> Gestión pública local | M77: =IF(ISERROR(VLOOKUP(K77,Proposito_programa!$C$2:$E$59,3,FALSE))," ",VLOOKUP(K77,Proposito_programa!$C$2:$E$59,3,FALSE)) -> Propósito 5: Construir Bogotá - Región con gobierno abierto, transparente y ciudadanía consciente | N77: 1696 | O77: 1 | P77: 53115076 | Q77: LINA MARIA ECHEVERRI LOMBANA | R77: Persona Natural | W77: 66000000 | AA77: 66000000 | AB77: 58200000 | AC77: 2022-01-21 | AD77: 2022-01-24 | AE77: 2022-12-23 | AF77: 333 | AM77: En ejecución | AN77: 0.8818181818
A78: CPS-067-2022 | B78: 2022 | C78: FDRS-CD-067-2022 | D78: https://community.secop.gov.co/Public/Tendering/OpportunityDetail/Index?noticeUID=CO1.NTC.2651394&isFromPublicArea=True&isModal=False | E78: Contratos de prestación de servicios profesionales y de apoyo a la gestión | F78: Contratación directa | G78: Prestación de servicios profesionales y de apoyo a la gestión, o para la ejecución de trabajos artísticos que sólo puedan encomendarse a determinadas personas naturales | H78: PRESTAR SUS SERVICIOS PROFESIONALES DE APOYO ADMINISTRATIVO Y OPERACIONAL AL FONDO MÁS Y MEJORES OPORTUNIDADES PARA LA POBLACIÓN VULNERABLE DEL FONDO DE DESARROLLO RURAL DE SUMAPAZ | I78: Inversión | J78: Un nuevo contrato social y ambiental para la Bogotá del Siglo XXI | K78: 1 | L78: =IF(ISERROR(VLOOKUP(K78,Proposito_programa!$C$2:$E$59,2,FALSE))," ",VLOOKUP(K78,Proposito_programa!$C$2:$E$59,2,FALSE)) -> Subsidios y transferencias para la equidad | M78: =IF(ISERROR(VLOOKUP(K78,Proposito_programa!$C$2:$E$59,3,FALSE))," ",VLOOKUP(K78,Proposito_programa!$C$2:$E$59,3,FALSE)) -> Propósito 1: Hacer un nuevo contrato social para incrementar la inclusión social, productiva y política | N78: 1583 | O78: 1 | P78: 52185103 | Q78: MARIBEL JOHANA REYES NIVIA | R78: Persona Natural | W78: 50600000 | AA78: 50600000 | AB78: 47073333 | AC78: 2022-01-21 | AD78: 2022-01-24 | AE78: 2022-12-23 | AF78: 333 | AM78: Terminado | AN78: 0.9303030237
A79: CPS-068-2022 | B79: 2022 | C79: FDRS-CD-068-2022 | D79: https://community.secop.gov.co/Public/Tendering/OpportunityDetail/Index?noticeUID=CO1.NTC.2650885&isFromPublicArea=True&isModal=False | E79: Contratos de prestación de servicios profesionales y de apoyo a la gestión | F79: Contratación directa | G79: Prestación de servicios profesionales y de apoyo a la gestión, o para la ejecución de trabajos artísticos que sólo puedan encomendarse a determinadas personas naturales | H79: PRESTAR LOS SERVICIOS PROFESIONALES EN LA EJECUCIÓN DE PROYECTOS DE EDUCACIÓN DE LA ALCALDÍA LOCAL DE SUMAPAZ | I79: Inversión | J79: Un nuevo contrato social y ambiental para la Bogotá del Siglo XXI | K79: 18 | L79: =IF(ISERROR(VLOOKUP(K79,Proposito_programa!$C$2:$E$59,2,FALSE))," ",VLOOKUP(K79,Proposito_programa!$C$2:$E$59,2,FALSE)) -> Cierre de brechas para la inclusión productiva urbano rural | M79: =IF(ISERROR(VLOOKUP(K79,Proposito_programa!$C$2:$E$59,3,FALSE))," ",VLOOKUP(K79,Proposito_programa!$C$2:$E$59,3,FALSE)) -> Propósito 1: Hacer un nuevo contrato social para incrementar la inclusión social, productiva y política | N79: 1587 | O79: 1 | P79: 20645897 | Q79: YASMIN ANDREA CIFUENTES | R79: Persona Natural | W79: 50600000 | Y79: 1 | Z79: 4600000 | AA79: 55200000 | AB79: 47073333 | AC79: 2022-01-21 | AD79: 2022-01-24 | AE79: 2022-12-23 | AF79: 333 | AG79: 1 | AH79: 30 | AM79: En ejecución | AN79: 0.8527777717
A80: CPS-069-2022 | B80: 2022 | C80: FDRS-CD-069-2022 | D80: https://community.secop.gov.co/Public/Tendering/OpportunityDetail/Index?noticeUID=CO1.NTC.2675289&isFromPublicArea=True&isModal=False | E80: Contratos de prestación de servicios profesionales y de apoyo a la gestión | F80: Contratación directa | G80: Prestación de servicios profesionales y de apoyo a la gestión, o para la ejecución de trabajos artísticos que sólo puedan encomendarse a determinadas personas naturales | H80: PRESTAR LOS SERVICIOS TÉCNICOS PARA APOYAR A LA ALCALDÍA LOCAL DE SUMAPAZ EN LA IMPLEMENTACIÓN DEL SISTEMA INTEGRADO DE GESTIÓN Y EL SG-SST, ORIENTADOS POR EL NIVEL CENTRAL | I80: Inversión | J80: Un nuevo contrato social y ambiental para la Bogotá del Siglo XXI | K80: 57 | L80: =IF(ISERROR(VLOOKUP(K80,Proposito_programa!$C$2:$E$59,2,FALSE))," ",VLOOKUP(K80,Proposito_programa!$C$2:$E$59,2,FALSE)) -> Gestión pública local | M80: =IF(ISERROR(VLOOKUP(K80,Proposito_programa!$C$2:$E$59,3,FALSE))," ",VLOOKUP(K80,Proposito_programa!$C$2:$E$59,3,FALSE)) -> Propósito 5: Construir Bogotá - Región con gobierno abierto, transparente y ciudadanía consciente | N80: 1696 | O80: 1 | P80: 1022969793 | Q80: ISIS KATHERINE ESPITIA TORRES | R80: Persona Natural | W80: 24000000 | Y80: 1 | Z80: 12000000 | AA80: 36000000 | AB80: 28933333 | AC80: 2022-01-23 | AD80: 2022-01-24 | AE80: 2022-07-23 | AF80: 180 | AG80: 1 | AH80: 90 | AM80: Terminado | AN80: =IF(ISERROR(AB80/AA80),"-",(AB80/AA80)) -> 0.8037036944
A81: CPS-070-2022 | B81: 2022 | C81: FDRS-CD-070-2022 | D81: https://community.secop.gov.co/Public/Tendering/OpportunityDetail/Index?noticeUID=CO1.NTC.2651842&isFromPublicArea=True&isModal=False | E81: Contratos de prestación de servicios profesionales y de apoyo a la gestión | F81: Contratación directa | G81: Prestación de servicios profesionales y de apoyo a la gestión, o para la ejecución de trabajos artísticos que sólo puedan encomendarse a determinadas personas naturales | H81: PRESTAR LOS SERVICIOS PROFESIONALES JURÍDICOS PARA APOYAR LOS ASUNTOS PRECONTRACTUALES, CONTRACTUALES Y POST-CONTRACTUALES DEL ÁREA DE GESTIÓN DE DESARROLLO LOCAL DE LA ALCALDÍA LOCAL DE SUMAPAZ | I81: Inversión | J81: Un nuevo contrato social y ambiental para la Bogotá del Siglo XXI | K81: 57 | L81: =IF(ISERROR(VLOOKUP(K81,Proposito_programa!$C$2:$E$59,2,FALSE))," ",VLOOKUP(K81,Proposito_programa!$C$2:$E$59,2,FALSE)) -> Gestión pública local | M81: =IF(ISERROR(VLOOKUP(K81,Proposito_programa!$C$2:$E$59,3,FALSE))," ",VLOOKUP(K81,Proposito_programa!$C$2:$E$59,3,FALSE)) -> Propósito 5: Construir Bogotá - Región con gobierno abierto, transparente y ciudadanía consciente | N81: 1696 | O81: 1 | P81: 39818802 | Q81: MARIA MARGARITA MESA BUITRAGO | R81: Persona Natural | W81: 66000000 | Y81: 1 | Z81: 10000000 | AA81: 76000000 | AB81: 61200000 | AC81: 2022-01-21 | AD81: 2022-01-25 | AE81: 2022-12-24 | AF81: 333 | AG81: 1 | AH81: 50 | AI81: 52900762 | AJ81: JENNY CAROLINA GIRÓN CUERVO | AK81: 2022-10-01 | AL81: 16800000 | AM81: En ejecución | AN81: 0.8052631579
A82: CPS-071-2022 | B82: 2022 | C82: FDRS-CD-071-2022 | D82: https://community.secop.gov.co/Public/Tendering/OpportunityDetail/Index?noticeUID=CO1.NTC.2653916&isFromPublicArea=True&isModal=False | E82: Contratos de prestación de servicios profesionales y de apoyo a la gestión | F82: Contratación directa | G82: Prestación de servicios profesionales y de apoyo a la gestión, o para la ejecución de trabajos artísticos que sólo puedan encomendarse a determinadas personas naturales | H82: PRESTAR LOS SERVICIOS PROFESIONALES PARA APOYAR LA PLANEACIÓN, EJECUCIÓN Y SEGUIMIENTO DE LOS PROYECTOS DE INVERSIÓN Y RUBROS DE FUNCIONAMIENTO QUE LE SEAN DESIGNADOS, DEL FONDO DE DESARROLLO RURAL DE SUMAPAZ | I82: Inversión | J82: Un nuevo contrato social y ambiental para la Bogotá del Siglo XXI | K82: 57 | L82: =IF(ISERROR(VLOOKUP(K82,Proposito_programa!$C$2:$E$59,2,FALSE))," ",VLOOKUP(K82,Proposito_programa!$C$2:$E$59,2,FALSE)) -> Gestión pública local | M82: =IF(ISERROR(VLOOKUP(K82,Proposito_programa!$C$2:$E$59,3,FALSE))," ",VLOOKUP(K82,Proposito_programa!$C$2:$E$59,3,FALSE)) -> Propósito 5: Construir Bogotá - Región con gobierno abierto, transparente y ciudadanía consciente | N82: 1696 | O82: 1 | P82: 1048205442 | Q82: ROSA MARIA MENDOZA DE LOS REYES | R82: Persona Natural | W82: 66000000 | Y82: 1 | Z82: 6000000 | AA82: 72000000 | AB82: 60400000 | AC82: 2022-01-21 | AD82: 2022-01-25 | AE82: 2022-12-24 | AF82: 333 | AG82: 1 | AH82: 30 | AI82: 80062594 | AJ82: MARIO FERNANDO NIÑO LEAL | AK82: 2022-09-05 | AL82: 22000000 | AM82: En ejecución | AN82: 0.8388888889
A83: CPS-072-2022 | B83: 2022 | C83: FDRS--CD-072-2022 | D83: https://community.secop.gov.co/Public/Tendering/OpportunityDetail/Index?noticeUID=CO1.NTC.2662995&isFromPublicArea=True&isModal=False | E83: Contratos de prestación de servicios profesionales y de apoyo a la gestión | F83: Contratación directa | G83: Prestación de servicios profesionales y de apoyo a la gestión, o para la ejecución de trabajos artísticos que sólo puedan encomendarse a determinadas personas naturales | H83: PRESTAR LOS SERVICIOS PROFESIONALES AL ÁREA DE GESTIÓN DE DESARROLLO LOCAL PARA APOYAR LA PLANEACIÓN, EJECUCIÓN Y SEGUIMIENTO A LOS PROYECTOS DE INVERSIÓN DE INFRAESTRUCTURA VIAL QUE LE SEAN DESIGNADOS | I83: Inversión | J83: Un nuevo contrato social y ambiental para la Bogotá del Siglo XXI | K83: 49 | L83: =IF(ISERROR(VLOOKUP(K83,Proposito_programa!$C$2:$E$59,2,FALSE))," ",VLOOKUP(K83,Proposito_programa!$C$2:$E$59,2,FALSE)) -> Movilidad segura, sostenible y accesible | M83: =IF(ISERROR(VLOOKUP(K83,Proposito_programa!$C$2:$E$59,3,FALSE))," ",VLOOKUP(K83,Proposito_programa!$C$2:$E$59,3,FALSE)) -> Propósito 4: Hacer de Bogotá Región un modelo de movilidad multimodal, incluyente y sostenible | N83: 1688 | O83: 1 | P83: 1014264950 | Q83: VALENTINA MARTINEZ MUÑOZ | R83: Persona Natural | W83: 71500000 | Y83: 1 | Z83: 6500000 | AA83: 78000000 | AB83: 66516666 | AC83: 2022-01-22 | AD83: 2022-01-24 | AE83: 2022-12-23 | AF83: 333 | AG83: 1 | AH83: 30 | AM83: En ejecución | AN83: 0.8527777692
A84: CPS-073-2022 | B84: 2022 | C84: FDRS-CD-073-2022 | D84: https://community.secop.gov.co/Public/Tendering/OpportunityDetail/Index?noticeUID=CO1.NTC.2662094&isFromPublicArea=True&isModal=False | E84: Contratos de prestación de servicios profesionales y de apoyo a la gestión | F84: Contratación directa | G84: Prestación de servicios profesionales y de apoyo a la gestión, o para la ejecución de trabajos artísticos que sólo puedan encomendarse a determinadas personas naturales | H84: PRESTAR LOS SERVICIOS PROFESIONALES PARA LA OPERACIÓN, PRESTACIÓN, SEGUIMIENTO Y CUMPLIMIENTO DE LOS PROCEDIMIENTOS ADMINISTRATIVOS, OPERATIVOS Y PROGRAMÁTICOS DEL SERVICIO APOYO ECONÓMICO TIPO C, QUE CONTRIBUYAN A LA GARANTÍA DE LOS DERECHOS DE LA POBLACIÓN MAYOR EN EL MARCO DE LA POLÍTICA PÚBLICA SOCIAL PARA EL ENVEJECIMIENTO Y LA VEJEZ EN EL DISTRITO CAPITAL A CARGO DE LA ALCALDÍA LOCAL DE SUMAPAZ | I84: Inversión | J84: Un nuevo contrato social y ambiental para la Bogotá del Siglo XXI | K84: 1 | L84: =IF(ISERROR(VLOOKUP(K84,Proposito_programa!$C$2:$E$59,2,FALSE))," ",VLOOKUP(K84,Proposito_programa!$C$2:$E$59,2,FALSE)) -> Subsidios y transferencias para la equidad | M84: =IF(ISERROR(VLOOKUP(K84,Proposito_programa!$C$2:$E$59,3,FALSE))," ",VLOOKUP(K84,Proposito_programa!$C$2:$E$59,3,FALSE)) -> Propósito 1: Hacer un nuevo contrato social para incrementar la inclusión social, productiva y política | N84: 1583 | O84: 1 | P84: 1018414927 | Q84: LEILA MARCELA LUGO | R84: Persona Natural | W84: 66000000 | AA84: =+W84+X84+Z84 -> 66000000 | AB84: 61200000 | AC84: 2022-01-22 | AD84: 2022-01-25 | AE84: 2022-12-24 | AF84: 333 | AM84: Terminado | AN84: 0.9272727273
A85: CPS-074-2022 | B85: 2022 | C85: FDRS-CD-074-2022 | D85: https://community.secop.gov.co/Public/Tendering/OpportunityDetail/Index?noticeUID=CO1.NTC.2712874&isFromPublicArea=True&isModal=False | E85: Contratos de prestación de servicios profesionales y de apoyo a la gestión | F85: Contratación directa | G85: Prestación de servicios profesionales y de apoyo a la gestión, o para la ejecución de trabajos artísticos que sólo puedan encomendarse a determinadas personas naturales | H85: PRESTAR LOS SERVICIOS COMO AUXILIAR ADMINISTRATIVO Y ARTICULADOR COMUNITARIO EN LA EJECUCIÓN DEL PROYECTO DE EDUCACIÓN DE LA ALCALDÍA LOCAL DE SUMAPAZ | I85: Inversión | J85: Un nuevo contrato social y ambiental para la Bogotá del Siglo XXI | K85: 18 | L85: =IF(ISERROR(VLOOKUP(K85,Proposito_programa!$C$2:$E$59,2,FALSE))," ",VLOOKUP(K85,Proposito_programa!$C$2:$E$59,2,FALSE)) -> Cierre de brechas para la inclusión productiva urbano rural | M85: =IF(ISERROR(VLOOKUP(K85,Proposito_programa!$C$2:$E$59,3,FALSE))," ",VLOOKUP(K85,Proposito_programa!$C$2:$E$59,3,FALSE)) -> Propósito 1: Hacer un nuevo contrato social para incrementar la inclusión social, productiva y política | N85: 1587 | O85: 1 | P85: 1022399769 | Q85: JUAN SEBASTIAN MONTAÑEZ ROMERO | R85: Persona Natural | W85: 29700000 | Y85: 1 | Z85: 2700000 | AA85: 32400000 | AB85: 27450000 | AC85: 2022-01-25 | AD85: 2022-01-26 | AE85: 2022-12-25 | AF85: 333 | AG85: 1 | AH85: 30 | AM85: En ejecución | AN85: 0.8472222222
A86: CPS-075-2022 | B86: 2022 | C86: FDRS-CD-075-2022 | D86: https://community.secop.gov.co/Public/Tendering/OpportunityDetail/Index?noticeUID=CO1.NTC.2669822&isFromPublicArea=True&isModal=False | E86: Contratos de prestación de servicios profesionales y de apoyo a la gestión | F86: Contratación directa | G86: Prestación de servicios profesionales y de apoyo a la gestión, o para la ejecución de trabajos artísticos que sólo puedan encomendarse a determinadas personas naturales | H86: PRESTAR SUS SERVICIOS COMO AUXILIAR ADMINISTRATIVO PARA OPERATIVIZAR LOS CENTROS DE CONECTIVIDAD CAMPESINA DE LA LOCALIDAD DE SUMAPAZ, DEL PROYECTO 1692 | I86: Inversión | J86: Un nuevo contrato social y ambiental para la Bogotá del Siglo XXI | K86: 54 | L86: =IF(ISERROR(VLOOKUP(K86,Proposito_programa!$C$2:$E$59,2,FALSE))," ",VLOOKUP(K86,Proposito_programa!$C$2:$E$59,2,FALSE)) -> Transformación digital y gestión de TIC para un territorio inteligente | M86: =IF(ISERROR(VLOOKUP(K86,Proposito_programa!$C$2:$E$59,3,FALSE))," ",VLOOKUP(K86,Proposito_programa!$C$2:$E$59,3,FALSE)) -> Propósito 5: Construir Bogotá - Región con gobierno abierto, transparente y ciudadanía consciente | N86: 1692 | O86: 1 | P86: 1023001200 | Q86: GLORIA YINET RIVEROS ESPINOSA | R86: Persona Natural | W86: 29700000 | X86: -14220000 | AA86: 15480000 | AB86: 15480000 | AC86: 2022-01-22 | AD86: 2022-01-26 | AE86: 2022-12-25 | AF86: 333 | AM86: Terminado | AN86: 1
A87: CPS-076-2022 | B87: 2022 | C87: FDRS-CD-076-2022 | D87: https://community.secop.gov.co/Public/Tendering/OpportunityDetail/Index?noticeUID=CO1.NTC.2680301&isFromPublicArea=True&isModal=False | E87: Contratos de prestación de servicios profesionales y de apoyo a la gestión | F87: Contratación directa | G87: Prestación de servicios profesionales y de apoyo a la gestión, o para la ejecución de trabajos artísticos que sólo puedan encomendarse a determinadas personas naturales | H87: PRESTAR SUS SERVICIOS COMO AUXILIAR ADMINISTRATIVO PARA OPERATIVIZAR LOS CENTROS DE CONECTIVIDAD CAMPESINA DE LA LOCALIDAD DE SUMAPAZ, DEL PROYECTO 1692 | I87: Inversión | J87: Un nuevo contrato social y ambiental para la Bogotá del Siglo XXI | K87: 54 | L87: =IF(ISERROR(VLOOKUP(K87,Proposito_programa!$C$2:$E$59,2,FALSE))," ",VLOOKUP(K87,Proposito_programa!$C$2:$E$59,2,FALSE)) -> Transformación digital y gestión de TIC para un territorio inteligente | M87: =IF(ISERROR(VLOOKUP(K87,Proposito_programa!$C$2:$E$59,3,FALSE))," ",VLOOKUP(K87,Proposito_programa!$C$2:$E$59,3,FALSE)) -> Propósito 5: Construir Bogotá - Región con gobierno abierto, transparente y ciudadanía consciente | N87: 1692 | O87: 1 | P87: 1022965898 | Q87: NESTOR VILLALBA BAQUERO | R87: Persona Natural | W87: 29700000 | X87: -14220000 | AA87: 15480000 | AB87: 15480000 | AC87: 2022-01-23 | AD87: 2022-01-26 | AE87: 2022-12-25 | AF87: 333 | AM87: Terminado | AN87: 1
A88: CPS-077-2022 | B88: 2022 | C88: FDRS-CD-077-2022 | D88: https://community.secop.gov.co/Public/Tendering/OpportunityDetail/Index?noticeUID=CO1.NTC.2675265&isFromPublicArea=True&isModal=False | E88: Contratos de prestación de servicios profesionales y de apoyo a la gestión | F88: Contratación directa | G88: Prestación de servicios profesionales y de apoyo a la gestión, o para la ejecución de trabajos artísticos que sólo puedan encomendarse a determinadas personas naturales | H88: PRESTAR SUS SERVICIOS COMO AUXILIAR ADMINISTRATIVO PARA OPERATIVIZAR LOS CENTROS DE CONECTIVIDAD CAMPESINA DE LA LOCALIDAD DE SUMAPAZ, DEL PROYECTO 1692 | I88: Inversión | J88: Un nuevo contrato social y ambiental para la Bogotá del Siglo XXI | K88: 54 | L88: =IF(ISERROR(VLOOKUP(K88,Proposito_programa!$C$2:$E$59,2,FALSE))," ",VLOOKUP(K88,Proposito_programa!$C$2:$E$59,2,FALSE)) -> Transformación digital y gestión de TIC para un territorio inteligente | M88: =IF(ISERROR(VLOOKUP(K88,Proposito_programa!$C$2:$E$59,3,FALSE))," ",VLOOKUP(K88,Proposito_programa!$C$2:$E$59,3,FALSE)) -> Propósito 5: Construir Bogotá - Región con gobierno abierto, transparente y ciudadanía consciente | N88: 1692 | O88: 1 | P88: 1023022723 | Q88: YURI ALEJANDRA MOLINA GARCIA | R88: Persona Natural | W88: 29700000 | X88: -14220000 | AA88: 15480000 | AB88: 15480000 | AC88: 2022-01-23 | AD88: 2022-01-26 | AE88: 2022-12-25 | AF88: 333 | AM88: Terminado | AN88: 1
A89: CPS-078-2022 | B89: 2022 | C89: FDRS-CD-078-2022 | D89: https://community.secop.gov.co/Public/Tendering/OpportunityDetail/Index?noticeUID=CO1.NTC.2681496&isFromPublicArea=True&isModal=False | E89: Contratos de prestación de servicios profesionales y de apoyo a la gestión | F89: Contratación directa | G89: Prestación de servicios profesionales y de apoyo a la gestión, o para la ejecución de trabajos artísticos que sólo puedan encomendarse a determinadas personas naturales | H89: PRESTAR SUS SERVICIOS COMO AUXILIAR ADMINISTRATIVO PARA OPERATIVIZAR LOS CENTROS DE CONECTIVIDAD CAMPESINA DE LA LOCALIDAD DE SUMAPAZ, DEL PROYECTO 1692 | I89: Inversión | J89: Un nuevo contrato social y ambiental para la Bogotá del Siglo XXI | K89: 54 | L89: =IF(ISERROR(VLOOKUP(K89,Proposito_programa!$C$2:$E$59,2,FALSE))," ",VLOOKUP(K89,Proposito_programa!$C$2:$E$59,2,FALSE)) -> Transformación digital y gestión de TIC para un territorio inteligente | M89: =IF(ISERROR(VLOOKUP(K89,Proposito_programa!$C$2:$E$59,3,FALSE))," ",VLOOKUP(K89,Proposito_programa!$C$2:$E$59,3,FALSE)) -> Propósito 5: Construir Bogotá - Región con gobierno abierto, transparente y ciudadanía consciente | N89: 1692 | O89: 1 | P89: 53054010 | Q89: MARIA CRISTINA BARBOSA DIAZ | R89: Persona Natural | W89: 29700000 | X89: -14580000 | AA89: 15120000 | AB89: 15120000 | AC89: 2022-01-23 | AD89: 2022-01-31 | AE89: 2022-12-30 | AF89: 333 | AM89: Terminado | AN89: 1
A90: CPS-079-2022 | B90: 2022 | C90: FDRS-CD-079-2022 | D90: https://community.secop.gov.co/Public/Tendering/OpportunityDetail/Index?noticeUID=CO1.NTC.2675537&isFromPublicArea=True&isModal=False | E90: Contratos de prestación de servicios profesionales y de apoyo a la gestión | F90: Contratación directa | G90: Prestación de servicios profesionales y de apoyo a la gestión, o para la ejecución de trabajos artísticos que sólo puedan encomendarse a determinadas personas naturales | H90: PRESTAR LOS SERVICIOS PROFESIONALES PARA LA ORIENTACIÓN, FORMULACIÓN, ESTRUCTURACIÓN Y PUESTA EN MARCHA DE INICIATIVAS PRODUCTIVAS EN FAVOR DE LAS VÍCTIMAS DEL CONFLICTO ARMADO, RECONOCIDAS Y NO RECONOCIDAS DE LA LOCALIDAD DE SUMAPAZ | I90: Inversión | J90: Un nuevo contrato social y ambiental para la Bogotá del Siglo XXI | K90: 39 | L90: =IF(ISERROR(VLOOKUP(K90,Proposito_programa!$C$2:$E$59,2,FALSE))," ",VLOOKUP(K90,Proposito_programa!$C$2:$E$59,2,FALSE)) -> Bogotá territorio de paz y atención integral a las víctimas del conflicto armado | M90: =IF(ISERROR(VLOOKUP(K90,Proposito_programa!$C$2:$E$59,3,FALSE))," ",VLOOKUP(K90,Proposito_programa!$C$2:$E$59,3,FALSE)) -> Propósito 3: Inspirar confianza y legitimidad para vivir sin miedo y ser epicentro de cultura ciudadana, paz y reconciliación | N90: 1672 | O90: 1 | P90: 1014256316 | Q90: KAREN NATALIA NEIRA BAUTISTA | R90: Persona Natural | W90: 60500000 | AA90: 60500000 | AB90: 56283333 | AC90: 2022-01-23 | AD90: 2022-01-24 | AE90: 2022-12-23 | AF90: 333 | AM90: Terminado | AN90: 0.9303030248
A91: CPS-080-2022 | B91: 2022 | C91: FDRS-CD-080-2022 | D91: https://community.secop.gov.co/Public/Tendering/OpportunityDetail/Index?noticeUID=CO1.NTC.2710061&isFromPublicArea=True&isModal=False | E91: Contratos de prestación de servicios profesionales y de apoyo a la gestión | F91: Contratación directa | G91: Prestación de servicios profesionales y de apoyo a la gestión, o para la ejecución de trabajos artísticos que sólo puedan encomendarse a determinadas personas naturales | H91: PRESTAR LOS SERVICIOS PROFESIONALES PARA APOYAR EL FORTALECIMIENTO DEL SERVICIO DE ASISTENCIA TÉCNICA AGROPECUARIA DE LA LOCALIDAD DE SUMAPAZ | I91: Inversión | J91: Un nuevo contrato social y ambiental para la Bogotá del Siglo XXI | K91: 23 | L91: =IF(ISERROR(VLOOKUP(K91,Proposito_programa!$C$2:$E$59,2,FALSE))," ",VLOOKUP(K91,Proposito_programa!$C$2:$E$59,2,FALSE)) -> Bogotá rural | M91: =IF(ISERROR(VLOOKUP(K91,Proposito_programa!$C$2:$E$59,3,FALSE))," ",VLOOKUP(K91,Proposito_programa!$C$2:$E$59,3,FALSE)) -> Propósito 1: Hacer un nuevo contrato social para incrementar la inclusión social, productiva y política | N91: 1634 | O91: 1 | P91: 1016004490 | Q91: MAURICIO GONZALEZ LEAL | R91: Persona Natural | W91: 71500000 | AA91: 71500000 | AB91: 58716999 | AC91: 2022-01-25 | AD91: 2022-01-26 | AE91: 2022-12-25 | AF91: 333 | AI91: 7180598 | AJ91: OSCAR JAVIER BARAJAS ALVARADO | AK91: 2022-07-21 | AL91: 41600000 | AM91: En ejecución | AN91: 0.8212167692
A92: CPS-081-2022 | B92: 2022 | C92: FDRS-CD-081-2022 | D92: https://community.secop.gov.co/Public/Tendering/OpportunityDetail/Index?noticeUID=CO1.NTC.2675750&isFromPublicArea=True&isModal=False | E92: Contratos de prestación de servicios profesionales y de apoyo a la gestión | F92: Contratación directa | G92: Prestación de servicios profesionales y de apoyo a la gestión, o para la ejecución de trabajos artísticos que sólo puedan encomendarse a determinadas personas naturales | H92: PRESTAR LOS SERVICIOS ADMINISTRATIVOS AL ÁREA DE GESTIÓN DE DESARROLLO LOCAL, EN EL APOYO A LA GESTIÓN DE LOS PROYECTOS DE INVERSIÓN DE LA ALCALDÍA LOCAL DE SUMAPAZ | I92: Inversión | J92: Un nuevo contrato social y ambiental para la Bogotá del Siglo XXI | K92: 57 | L92: =IF(ISERROR(VLOOKUP(K92,Proposito_programa!$C$2:$E$59,2,FALSE))," ",VLOOKUP(K92,Proposito_programa!$C$2:$E$59,2,FALSE)) -> Gestión pública local | M92: =IF(ISERROR(VLOOKUP(K92,Proposito_programa!$C$2:$E$59,3,FALSE))," ",VLOOKUP(K92,Proposito_programa!$C$2:$E$59,3,FALSE)) -> Propósito 5: Construir Bogotá - Región con gobierno abierto, transparente y ciudadanía consciente | N92: 1696 | O92: 1 | P92: 1020755846 | Q92: DIANA MARCELA TORRENTE QUINTERO | R92: Persona Natural | W92: 29700000 | X92: -7470000 | AA92: 22230000 | AB92: 22230000 | AC92: 2022-01-23 | AD92: 2022-01-24 | AE92: 2022-12-23 | AF92: 333 | AM92: Terminado | AN92: 1
A93: CPS-082-2022 | B93: 2022 | C93: FDRS-CD-082-2022 | D93: https://community.secop.gov.co/Public/Tendering/OpportunityDetail/Index?noticeUID=CO1.NTC.2676130&isFromPublicArea=True&isModal=False | E93: Contratos de prestación de servicios profesionales y de apoyo a la gestión | F93: Contratación directa | G93: Prestación de servicios profesionales y de apoyo a la gestión, o para la ejecución de trabajos artísticos que sólo puedan encomendarse a determinadas personas naturales | H93: PRESTAR SUS SERVICIOS DE APOYO PARA DESARROLLAR ACTIVIDADES LOGÍSTICAS Y OPERATIVAS, EN LOS BIENES Y/O PREDIOS EN DONDE FUNCIONA LA ALCALDÍA LOCAL DE SUMAPAZ | I93: Inversión | J93: Un nuevo contrato social y ambiental para la Bogotá del Siglo XXI | K93: 57 | L93: =IF(ISERROR(VLOOKUP(K93,Proposito_programa!$C$2:$E$59,2,FALSE))," ",VLOOKUP(K93,Proposito_programa!$C$2:$E$59,2,FALSE)) -> Gestión pública local | M93: =IF(ISERROR(VLOOKUP(K93,Proposito_programa!$C$2:$E$59,3,FALSE))," ",VLOOKUP(K93,Proposito_programa!$C$2:$E$59,3,FALSE)) -> Propósito 5: Construir Bogotá - Región con gobierno abierto, transparente y ciudadanía consciente | N93: 1696 | O93: 1 | P93: 79358856 | Q93: LEOPOLDO MARTINEZ MARTINEZ | R93: Persona Natural | W93: 39870000 | X93: -10170000 | Y93: 1 | Z93: 2700000 | AA93: =+W93+X93+Z93 -> 32400000 | AB93: 27630000 | AC93: 2022-01-23 | AD93: 2022-01-24 | AE93: 2022-12-23 | AF93: 333 | AG93: 1 | AH93: 30 | AM93: En ejecución | AN93: 0.8527777778
A94: CPS-083-2022 | B94: 2022 | C94: FDRS-CD-083-2022 | D94: https://community.secop.gov.co/Public/Tendering/OpportunityDetail/Index?noticeUID=CO1.NTC.2682417&isFromPublicArea=True&isModal=False | E94: Contratos de prestación de servicios profesionales y de apoyo a la gestión | F94: Contratación directa | G94: Prestación de servicios profesionales y de apoyo a la gestión, o para la ejecución de trabajos artísticos que sólo puedan encomendarse a determinadas personas naturales | H94: PRESTAR LOS SERVICIOS DE APOYO ADMINISTRATIVO EN LOS PROCESOS QUE SE ADELANTAN EN EL ALMACÉN DE LA ALCALDÍA LOCAL DE SUMAPAZ | I94: Inversión | J94: Un nuevo contrato social y ambiental para la Bogotá del Siglo XXI | K94: 57 | L94: =IF(ISERROR(VLOOKUP(K94,Proposito_programa!$C$2:$E$59,2,FALSE))," ",VLOOKUP(K94,Proposito_programa!$C$2:$E$59,2,FALSE)) -> Gestión pública local | M94: =IF(ISERROR(VLOOKUP(K94,Proposito_programa!$C$2:$E$59,3,FALSE))," ",VLOOKUP(K94,Proposito_programa!$C$2:$E$59,3,FALSE)) -> Propósito 5: Construir Bogotá - Región con gobierno abierto, transparente y ciudadanía consciente | N94: 1696 | O94: 1 | P94: 1030591646 | Q94: ANDREI ESTEBAN VARGAS BENITEZ | R94: Persona Natural | W94: 16200000 | Y94: 1 | Z94: 8100000 | AA94: =+W94+X94+Z94 -> 24300000 | AB94: 24300000 | AC94: 2022-01-23 | AD94: 2022-01-25 | AE94: 2022-07-24 | AF94: 180 | AG94: 1 | AH94: 90 | AM94: Terminado | AN94: 1
A95: CPS-084-2022 | B95: 2022 | C95: FDRS-CD-084-2022 | D95: https://community.secop.gov.co/Public/Tendering/OpportunityDetail/Index?noticeUID=CO1.NTC.2681443&isFromPublicArea=True&isModal=False | E95: Contratos de prestación de servicios profesionales y de apoyo a la gestión | F95: Contratación directa | G95: Prestación de servicios profesionales y de apoyo a la gestión, o para la ejecución de trabajos artísticos que sólo puedan encomendarse a determinadas personas naturales | H95: PRESTAR SUS SERVICIOS PROFESIONALES AL ÁREA DE GESTIÓN DE DESARROLLO LOCAL, EN LA GESTIÓN DEL PROYECTO DE RECREACIÓN Y DEPORTE DE LA ALCALDÍA LOCAL DE SUMAPAZ | I95: Inversión | J95: Un nuevo contrato social y ambiental para la Bogotá del Siglo XXI | K95: 20 | L95: =IF(ISERROR(VLOOKUP(K95,Proposito_programa!$C$2:$E$59,2,FALSE))," ",VLOOKUP(K95,Proposito_programa!$C$2:$E$59,2,FALSE)) -> Bogotá, referente en cultura, deporte, recreación y actividad física, con parques para el desarrollo y la salud | M95: =IF(ISERROR(VLOOKUP(K95,Proposito_programa!$C$2:$E$59,3,FALSE))," ",VLOOKUP(K95,Proposito_programa!$C$2:$E$59,3,FALSE)) -> Propósito 1: Hacer un nuevo contrato social para incrementar la inclusión social, productiva y política | N95: 1590 | O95: 1 | P95: 1032408884 | Q95: STEFANY ADRIANA CASTAÑEDA SANCHEZ | R95: Persona Natural | W95: 50600000 | AA95: 50600000 | AB95: 46920000 | AC95: 2022-01-23 | AD95: 2022-01-25 | AE95: 2022-12-24 | AF95: 333 | AM95: Terminado | AN95: 0.9272727273
A96: CPS-085-2022 | B96: 2022 | C96: FDRS-CD-085-2022 | D96: https://community.secop.gov.co/Public/Tendering/OpportunityDetail/Index?noticeUID=CO1.NTC.2697898&isFromPublicArea=True&isModal=False | E96: Contratos de prestación de servicios profesionales y de apoyo a la gestión | F96: Contratación directa | G96: Prestación de servicios profesionales y de apoyo a la gestión, o para la ejecución de trabajos artísticos que sólo puedan encomendarse a determinadas personas naturales | H96: PRESTAR SUS SERVICIOS COMO AUXILIAR ADMINISTRATIVO PARA OPERATIVIZAR LOS CENTROS DE CONECTIVIDAD CAMPESINA DE LA LOCALIDAD DE SUMAPAZ, DEL PROYECTO 1692 | I96: Inversión | J96: Un nuevo contrato social y ambiental para la Bogotá del Siglo XXI | K96: 54 | L96: =IF(ISERROR(VLOOKUP(K96,Proposito_programa!$C$2:$E$59,2,FALSE))," ",VLOOKUP(K96,Proposito_programa!$C$2:$E$59,2,FALSE)) -> Transformación digital y gestión de TIC para un territorio inteligente | M96: =IF(ISERROR(VLOOKUP(K96,Proposito_programa!$C$2:$E$59,3,FALSE))," ",VLOOKUP(K96,Proposito_programa!$C$2:$E$59,3,FALSE)) -> Propósito 5: Construir Bogotá - Región con gobierno abierto, transparente y ciudadanía consciente | N96: 1692 | O96: 1 | P96: 1007297824 | Q96: ADRIANA LUCIA MARTIN PALACIOS | R96: Persona Natural | W96: 20350000 | X96: -9743334 | AA96: 10606666 | AB96: 10606666 | AC96: 2022-01-25 | AD96: 2022-01-26 | AE96: 2022-12-25 | AF96: 333 | AM96: Terminado | AN96: 1
A97: CPS-086-2022 | B97: 2022 | C97: FDRS-CD- 086-2020 | D97: https://community.secop.gov.co/Public/Tendering/OpportunityDetail/Index?noticeUID=CO1.NTC.2696630&isFromPublicArea=True&isModal=False | E97: Contratos de prestación de servicios profesionales y de apoyo a la gestión | F97: Contratación directa | G97: Prestación de servicios profesionales y de apoyo a la gestión, o para la ejecución de trabajos artísticos que sólo puedan encomendarse a determinadas personas naturales | H97: PRESTAR LOS SERVICIOS PROFESIONALES COMO ABOGADO, PARA EL TRÁMITE DE LOS ASUNTOS JURÍDICOS Y LEGALES, QUE REQUIERAN LOS PROCESOS MISIONALES Y ADMINISTRATIVOS QUE SE ADELANTAN EN EL FONDO DESARROLLO LOCAL SUMAPAZ | I97: Inversión | J97: Un nuevo contrato social y ambiental para la Bogotá del Siglo XXI | K97: 57 | L97: =IF(ISERROR(VLOOKUP(K97,Proposito_programa!$C$2:$E$59,2,FALSE))," ",VLOOKUP(K97,Proposito_programa!$C$2:$E$59,2,FALSE)) -> Gestión pública local | M97: =IF(ISERROR(VLOOKUP(K97,Proposito_programa!$C$2:$E$59,3,FALSE))," ",VLOOKUP(K97,Proposito_programa!$C$2:$E$59,3,FALSE)) -> Propósito 5: Construir Bogotá - Región con gobierno abierto, transparente y ciudadanía consciente | N97: 1696 | O97: 1 | P97: 1012413960 | Q97: JANEIRY ROMERO HERNANDEZ | R97: Persona Natural | W97: 55000000 | Y97: 1 | Z97: 4666667 | AA97: 59666667 | AB97: 49666666 | AC97: 2022-01-24 | AD97: 2022-02-03 | AE97: 2023-01-02 | AF97: 333 | AG97: 1 | AH97: 28 | AM97: En ejecución | AN97: 0.8324022188
A98: CPS-087-2022 | B98: 2022 | C98: FDRS-CD-087-2022 | D98: https://community.secop.gov.co/Public/Tendering/OpportunityDetail/Index?noticeUID=CO1.NTC.2694098&isFromPublicArea=True&isModal=False | E98: Contratos de prestación de servicios profesionales y de apoyo a la gestión | F98: Contratación directa | G98: Prestación de servicios profesionales y de apoyo a la gestión, o para la ejecución de trabajos artísticos que sólo puedan encomendarse a determinadas personas naturales | H98: PRESTAR LOS SERVICIOS PROFESIONALES DE APOYO SOCIAL AL ÁREA DE GESTIÓN DE DESARROLLO LOCAL DE LA ALCALDÍA LOCAL DE SUMAPAZ, RELACIONADOS CON EMPLEABILIDAD Y ATENCIÓN A LA POBLACIÓN VULNERABLE | I98: Inversión | J98: Un nuevo contrato social y ambiental para la Bogotá del Siglo XXI | K98: 57 | L98: =IF(ISERROR(VLOOKUP(K98,Proposito_programa!$C$2:$E$59,2,FALSE))," ",VLOOKUP(K98,Proposito_programa!$C$2:$E$59,2,FALSE)) -> Gestión pública local | M98: =IF(ISERROR(VLOOKUP(K98,Proposito_programa!$C$2:$E$59,3,FALSE))," ",VLOOKUP(K98,Proposito_programa!$C$2:$E$59,3,FALSE)) -> Propósito 5: Construir Bogotá - Región con gobierno abierto, transparente y ciudadanía consciente | N98: 1696 | O98: 1 | P98: 1010220400 | Q98: MARIA DANIELA VARGAS PAREDES | R98: Persona Natural | W98: 62700000 | AA98: 62700000 | AB98: 57950000 | AC98: 2022-01-25 | AD98: 2022-01-26 | AE98: 2022-12-25 | AF98: 333 | AM98: Terminado | AN98: 0.9242424242
A99: CPS-088-2022 | B99: 2022 | C99: FDRS-CD-088-2022 | D99: https://community.secop.gov.co/Public/Tendering/OpportunityDetail/Index?noticeUID=CO1.NTC.2695884&isFromPublicArea=True&isModal=False | E99: Contratos de prestación de servicios profesionales y de apoyo a la gestión | F99: Contratación directa | G99: Prestación de servicios profesionales y de apoyo a la gestión, o para la ejecución de trabajos artísticos que sólo puedan encomendarse a determinadas personas naturales | H99: PRESTAR LOS SERVICIOS PROFESIONALES AL ÁREA DE GESTIÓN DE DESARROLLO LOCAL BRINDANDO APOYO TÉCNICO EN LA PLANEACIÓN, EJECUCIÓN Y SEGUIMIENTO DEL PROYECTO DE INVERSIÓN DE CONSTRUCCIÓN DE SEDES | I99: Inversión | J99: Un nuevo contrato social y ambiental para la Bogotá del Siglo XXI | K99: 56 | L99: =IF(ISERROR(VLOOKUP(K99,Proposito_programa!$C$2:$E$59,2,FALSE))," ",VLOOKUP(K99,Proposito_programa!$C$2:$E$59,2,FALSE)) -> Gestión pública efectiva | M99: =IF(ISERROR(VLOOKUP(K99,Proposito_programa!$C$2:$E$59,3,FALSE))," ",VLOOKUP(K99,Proposito_programa!$C$2:$E$59,3,FALSE)) -> Propósito 5: Construir Bogotá - Región con gobierno abierto, transparente y ciudadanía consciente | N99: 1693 | O99: 1 | P99: 79746334 | Q99: JOSE DAVID CRISTANCHO PEREZ | R99: Persona Natural | W99: 66000000 | AA99: 66000000 | AB99: 18800000 | AC99: 2022-01-24 | AD99: 2022-01-27 | AE99: 2022-12-26 | AF99: 333 | AM99: Terminado | AN99: 0.2848484848
A100: CPS-089-2022 | B100: 2022 | C100: FDRS-CD-089-2022 | D100: https://community.secop.gov.co/Public/Tendering/OpportunityDetail/Index?noticeUID=CO1.NTC.2696868&isFromPublicArea=True&isModal=False | E100: Contratos de prestación de servicios profesionales y de apoyo a la gestión | F100: Contratación directa | G100: Prestación de servicios profesionales y de apoyo a la gestión, o para la ejecución de trabajos artísticos que sólo puedan encomendarse a determinadas personas naturales | H100: PRESTAR LOS SERVICIOS PROFESIONALES PARA APOYAR LA EJECUCIÓN DE LA META DE BENEFICIAR 150 PERSONAS A TRAVÉS DE ESTRATEGIAS PARA EL FORTALECIMIENTOS DE LOS MECANISMOS DE JUSTICIA COMUNITARIA Y ACCESO A LA JUSTICIA EN LA LOCALIDAD DE SUMAPAZ | I100: Inversión | J100: Un nuevo contrato social y ambiental para la Bogotá del Siglo XXI | K100: 48 | L100: =IF(ISERROR(VLOOKUP(K100,Proposito_programa!$C$2:$E$59,2,FALSE))," ",VLOOKUP(K100,Proposito_programa!$C$2:$E$59,2,FALSE)) -> Plataforma institucional para la seguridad y justicia | M100: =IF(ISERROR(VLOOKUP(K100,Proposito_programa!$C$2:$E$59,3,FALSE))," ",VLOOKUP(K100,Proposito_programa!$C$2:$E$59,3,FALSE)) -> Propósito 3: Inspirar confianza y legitimidad para vivir sin miedo y ser epicentro de cultura ciudadana, paz y reconciliación | N100: 1683 | O100: 1 | P100: 1032379433 | Q100: LAURA JULIANA CUERVO MORALES | R100: Persona Natural | W100: 62700000 | AA100: 62700000 | AB100: 57950000 | AC100: 2022-01-24 | AD100: 2022-01-26 | AE100: 2022-12-25 | AF100: 333 | AM100: Terminado | AN100: 0.9242424242
A101: CPS-090-2022 | B101: 2022 | C101: FDRS-CD-090-2022 | D101: https://community.secop.gov.co/Public/Tendering/OpportunityDetail/Index?noticeUID=CO1.NTC.2770291&isFromPublicArea=True&isModal=False | E101: Contratos de prestación de servicios profesionales y de apoyo a la gestión | F101: Contratación directa | G101: Prestación de servicios profesionales y de apoyo a la gestión, o para la ejecución de trabajos artísticos que sólo puedan encomendarse a determinadas personas naturales | H101: PRESTAR LOS SERVICIOS PROFESIONALES PARA EL DESPACHO DE LA ALCALDÍA LOCAL DE SUMAPAZ, EN LOS PROCESOS LEGALES, JURÍDICOS, ADMINISTRATIVOS Y OPERATIVOS PARA DAR CUMPLIMIENTO AL PLAN DE DESARROLLO LOCAL | I101: Inversión | J101: Un nuevo contrato social y ambiental para la Bogotá del Siglo XXI | K101: 57 | L101: =IF(ISERROR(VLOOKUP(K101,Proposito_programa!$C$2:$E$59,2,FALSE))," ",VLOOKUP(K101,Proposito_programa!$C$2:$E$59,2,FALSE)) -> Gestión pública local | M101: =IF(ISERROR(VLOOKUP(K101,Proposito_programa!$C$2:$E$59,3,FALSE))," ",VLOOKUP(K101,Proposito_programa!$C$2:$E$59,3,FALSE)) -> Propósito 5: Construir Bogotá - Región con gobierno abierto, transparente y ciudadanía consciente | N101: 1696 | O101: 1 | P101: 1032380039 | Q101: ANGELICA MARIA SILVA BERNAL | R101: Persona Natural | W101: 77000000 | AA101: 77000000 | AB101: 67433333 | AC101: 2022-01-28 | AD101: 2022-02-02 | AE101: 2023-01-01 | AF101: 333 | AM101: Terminado | AN101: 0.8757575714
A102: CPS-091-2022 | B102: 2022 | C102: FDRS-CD-091-2022 | D102: https://community.secop.gov.co/Public/Tendering/OpportunityDetail/Index?noticeUID=CO1.NTC.2726803&isFromPublicArea=True&isModal=False | E102: Contratos de prestación de servicios profesionales y de apoyo a la gestión | F102: Contratación directa | G102: Prestación de servicios profesionales y de apoyo a la gestión, o para la ejecución de trabajos artísticos que sólo puedan encomendarse a determinadas personas naturales | H102: PRESTAR LOS SERVICIOS DE APOYO A LA GESTIÓN DOCUMENTAL DE LA ALCALDÍA LOCAL EN LA IMPLEMENTACIÓN DE LOS PROCESOS DE CLASIFICACIÓN, ORDENACIÓN, SELECCIÓN NATURAL, FOLIACIÓN, IDENTIFICACIÓN, LEVANTAMIENTO DE INVENTARIOS, ALMACENAMIENTO Y APLICACIÓN DE PROTOCOLOS DE ELIMINACIÓN Y TRANSFERENCIAS DOCUMENTALES | I102: Inversión | J102: Un nuevo contrato social y ambiental para la Bogotá del Siglo XXI | K102: 57 | L102: =IF(ISERROR(VLOOKUP(K102,Proposito_programa!$C$2:$E$59,2,FALSE))," ",VLOOKUP(K102,Proposito_programa!$C$2:$E$59,2,FALSE)) -> Gestión pública local | M102: =IF(ISERROR(VLOOKUP(K102,Proposito_programa!$C$2:$E$59,3,FALSE))," ",VLOOKUP(K102,Proposito_programa!$C$2:$E$59,3,FALSE)) -> Propósito 5: Construir Bogotá - Región con gobierno abierto, transparente y ciudadanía consciente | N102: 1696 | O102: 1 | P102: 1073606208 | Q102: DIANA MERALDA OVIEDO RODRIGUEZ | R102: Persona Natural | W102: 29700000 | AA102: 29700000 | AB102: 26820000 | AC102: 2022-01-26 | AD102: 2022-02-03 | AE102: 2023-01-02 | AF102: 333 | AM102: Terminado | AN102: 0.903030303
A103: CPS-092-2022 | B103: 2022 | C103: FDRS-CD-092-2022 | D103: https://community.secop.gov.co/Public/Tendering/OpportunityDetail/Index?noticeUID=CO1.NTC.2726646&isFromPublicArea=True&isModal=False | E103: Contratos de prestación de servicios profesionales y de apoyo a la gestión | F103: Contratación directa | G103: Prestación de servicios profesionales y de apoyo a la gestión, o para la ejecución de trabajos artísticos que sólo puedan encomendarse a determinadas personas naturales | H103: PRESTAR SUS SERVICIOS COMO AUXILIAR DE APOYO ADMINISTRATIVO AL ÁREA DE GESTIÓN DEL DESARROLLO LOCAL EN LA ALCALDÍA LOCAL DE SUMAPAZ | I103: Inversión | J103: Un nuevo contrato social y ambiental para la Bogotá del Siglo XXI | K103: 57 | L103: =IF(ISERROR(VLOOKUP(K103,Proposito_programa!$C$2:$E$59,2,FALSE))," ",VLOOKUP(K103,Proposito_programa!$C$2:$E$59,2,FALSE)) -> Gestión pública local | M103: =IF(ISERROR(VLOOKUP(K103,Proposito_programa!$C$2:$E$59,3,FALSE))," ",VLOOKUP(K103,Proposito_programa!$C$2:$E$59,3,FALSE)) -> Propósito 5: Construir Bogotá - Región con gobierno abierto, transparente y ciudadanía consciente | N103: 1696 | O103: 1 | P103: 1013589893 | Q103: LINA MARCELA SALAZAR BERMUDEZ | R103: Persona Natural | W103: 24200000 | X103: -17306667 | AA103: 6893333 | AB103: 2053333 | AC103: 2022-01-26 | AD103: 2022-02-03 | AE103: 2023-01-02 | AF103: 333 | AM103: Terminado | AN103: 0.2978723065
A104: CPS-093-2022 | B104: 2022 | C104: FDRS-CD-093-2022 | D104: https://community.secop.gov.co/Public/Tendering/OpportunityDetail/Index?noticeUID=CO1.NTC.2714375&isFromPublicArea=True&isModal=False | E104: Contratos de prestación de servicios profesionales y de apoyo a la gestión | F104: Contratación directa | G104: Prestación de servicios profesionales y de apoyo a la gestión, o para la ejecución de trabajos artísticos que sólo puedan encomendarse a determinadas personas naturales | H104: PRESTAR LOS SERVICIOS COMO AUXILIAR ADMINISTRATIVO EN LA GESTIÓN DE INFRAESTRUCTURA EN LA ALCALDÍA LOCAL DE SUMAPAZ | I104: Inversión | J104: Un nuevo contrato social y ambiental para la Bogotá del Siglo XXI | K104: 19 | L104: =IF(ISERROR(VLOOKUP(K104,Proposito_programa!$C$2:$E$59,2,FALSE))," ",VLOOKUP(K104,Proposito_programa!$C$2:$E$59,2,FALSE)) -> Vivienda y entornos dignos en el territorio urbano y rural | M104: =IF(ISERROR(VLOOKUP(K104,Proposito_programa!$C$2:$E$59,3,FALSE))," ",VLOOKUP(K104,Proposito_programa!$C$2:$E$59,3,FALSE)) -> Propósito 1: Hacer un nuevo contrato social para incrementar la inclusión social, productiva y política | N104: 1589 | O104: 1 | P104: 1073600284 | Q104: MAYRA ALEJANDRA OVIEDO RODRIGUEZ | R104: Persona Natural | W104: 29700000 | AA104: 29700000 | AB104: 27450000 | AC104: 2022-01-26 | AD104: 2022-01-26 | AE104: 2022-12-25 | AF104: 333 | AM104: Terminado | AN104: 0.9242424242
A105: CPS-094-2022 | B105: 2022 | C105: FDRS-094-2022 | D105: https://community.secop.gov.co/Public/Tendering/OpportunityDetail/Index?noticeUID=CO1.NTC.2755017&isFromPublicArea=True&isModal=False | E105: Contratos de prestación de servicios profesionales y de apoyo a la gestión | F105: Contratación directa | G105: Prestación de servicios profesionales y de apoyo a la gestión, o para la ejecución de trabajos artísticos que sólo puedan encomendarse a determinadas personas naturales | H105: PRESTAR LOS SERVICIOS PROFESIONALES PARA APOYAR LA EJECUCIÓN DE LA META DE BENEFICIAR A 150 PERSONAS A TRAVÉS DE LA ATENCIÓN Y SEGUIMIENTO A LAS SOLICITUDES DE LEGALIZACIÓN DE PREDIOS Y CREACIÓN DE ESTRATEGIAS PARA EL FORTALECIMIENTOS DE LOS MECANISMOS DE JUSTICIA COMUNITARIA DE LA ALCALDÍA LOCAL DE SUMAPAZ | I105: Inversión | J105: Un nuevo contrato social y ambiental para la Bogotá del Siglo XXI | K105: 48 | L105: =IF(ISERROR(VLOOKUP(K105,Proposito_programa!$C$2:$E$59,2,FALSE))," ",VLOOKUP(K105,Proposito_programa!$C$2:$E$59,2,FALSE)) -> Plataforma institucional para la seguridad y justicia | M105: =IF(ISERROR(VLOOKUP(K105,Proposito_programa!$C$2:$E$59,3,FALSE))," ",VLOOKUP(K105,Proposito_programa!$C$2:$E$59,3,FALSE)) -> Propósito 3: Inspirar confianza y legitimidad para vivir sin miedo y ser epicentro de cultura ciudadana, paz y reconciliación | N105: 1683 | O105: 1 | P105: 13706284 | Q105: JHON EDISSON PARDO HERREÑO | R105: Persona Natural | W105: 62700000 | AA105: 62700000 | AB105: 56810000 | AC105: 2022-01-27 | AD105: 2022-02-02 | AE105: 2023-01-01 | AF105: 333 | AM105: En ejecución | AN105: 0.9060606061
A106: CPS-095-2022 | B106: 2022 | C106: FDRS-CD-095-2022 | D106: https://community.secop.gov.co/Public/Tendering/OpportunityDetail/Index?noticeUID=CO1.NTC.2712183&isFromPublicArea=True&isModal=False | E106: Contratos de prestación de servicios profesionales y de apoyo a la gestión | F106: Contratación directa | G106: Prestación de servicios profesionales y de apoyo a la gestión, o para la ejecución de trabajos artísticos que sólo puedan encomendarse a determinadas personas naturales | H106: PRESTAR LOS SERVICIOS PROFESIONALES PARA APOYAR LA PLANEACIÓN, SEGUIMIENTO, EJECUCIÓN Y CONTROL DE LAS ACTIVIDADES AGROPECUARIAS ENFOCADAS A PROMOVER EL DESARROLLO RURAL SOSTENIBLE, EN LA LOCALIDAD DE SUMAPAZ | I106: Inversión | J106: Un nuevo contrato social y ambiental para la Bogotá del Siglo XXI | K106: 6 | L106: =IF(ISERROR(VLOOKUP(K106,Proposito_programa!$C$2:$E$59,2,FALSE))," ",VLOOKUP(K106,Proposito_programa!$C$2:$E$59,2,FALSE)) -> Sistema Distrital de Cuidado | M106: =IF(ISERROR(VLOOKUP(K106,Proposito_programa!$C$2:$E$59,3,FALSE))," ",VLOOKUP(K106,Proposito_programa!$C$2:$E$59,3,FALSE)) -> Propósito 1: Hacer un nuevo contrato social para incrementar la inclusión social, productiva y política | N106: 1637 | O106: 1 | P106: 79266150 | Q106: GUILLERMO ENRIQUE MONTAÑO CALDERON | R106: Persona Natural | W106: 66000000 | Y106: 1 | Z106: 6000000 | AA106: 72000000 | AB106: 61000000 | AC106: 2022-01-25 | AD106: 2022-01-26 | AE106: 2022-12-25 | AF106: 333 | AG106: 1 | AH106: 30 | AM106: En ejecución | AN106: 0.8472222222
A107: CPS-096-2022 | B107: 2022 | C107: FDRS-CD-096-2022 | D107: https://community.secop.gov.co/Public/Tendering/OpportunityDetail/Index?noticeUID=CO1.NTC.2714707&isFromPublicArea=True&isModal=False | E107: Contratos de prestación de servicios profesionales y de apoyo a la gestión | F107: Contratación directa | G107: Prestación de servicios profesionales y de apoyo a la gestión, o para la ejecución de trabajos artísticos que sólo puedan encomendarse a determinadas personas naturales | H107: PRESTAR SUS SERVICIOS PROFESIONALES PARA APOYAR AL EQUIPO DE PRENSA Y COMUNICACIONES DE LA ALCALDÍA LOCAL EN LA CREACIÓN, REALIZACIÓN, PRODUCCIÓN Y EDICIÓN DE VIDEOS, ASÍ COMO EL REGISTRO, EDICIÓN Y LA PRESENTACIÓN DE FOTOGRAFÍAS DE LOS ACONTECIMIENTOS, HECHOS Y EVENTOS EXTERNOS E INTERNOS DE LA ALCALDÍA LOCAL, PARA SER UTILIZADOS COMO INSUMOS DE COMUNICACIÓN EN LOS MEDIOS, ESPECIALMENTE ESCRITOS, DIGITALES Y AUDIOVISUALES | I107: Inversión | J107: Un nuevo contrato social y ambiental para la Bogotá del Siglo XXI | K107: 57 | L107: =IF(ISERROR(VLOOKUP(K107,Proposito_programa!$C$2:$E$59,2,FALSE))," ",VLOOKUP(K107,Proposito_programa!$C$2:$E$59,2,FALSE)) -> Gestión pública local | M107: =IF(ISERROR(VLOOKUP(K107,Proposito_programa!$C$2:$E$59,3,FALSE))," ",VLOOKUP(K107,Proposito_programa!$C$2:$E$59,3,FALSE)) -> Propósito 5: Construir Bogotá - Región con gobierno abierto, transparente y ciudadanía consciente | N107: 1696 | O107: 1 | P107: 81715533 | Q107: LUIS ANGEL ARROYAVE VILARO | R107: Persona Natural | W107: 66000000 | AA107: 66000000 | AB107: 59800000 | AC107: 2022-01-26 | AD107: 2022-01-28 | AE107: 2022-12-27 | AF107: 333 | AI107: 37578805 | AJ107: MARIA LUCIA MONCAYO AGUDELO | AK107: 2022-08-03 | AL107: 29200000 | AM107: En ejecución | AN107: 0.9060606061
A108: CPS-097-2022 | B108: 2022 | C108: FDRS-CD-097-2022 | D108: https://community.secop.gov.co/Public/Tendering/OpportunityDetail/Index?noticeUID=CO1.NTC.2733884&isFromPublicArea=True&isModal=False | E108: Contratos de prestación de servicios profesionales y de apoyo a la gestión | F108: Contratación directa | G108: Prestación de servicios profesionales y de apoyo a la gestión, o para la ejecución de trabajos artísticos que sólo puedan encomendarse a determinadas personas naturales | H108: PRESTAR LOS SERVICIOS ADMINISTRATIVOS PARA APOYAR LAS LABORES DE OFICIOS VARIOS Y DE NOTIFICACIÓN PARA LA CUENCA DEL RIO BLANCO, DE LA ALCALDÍA LOCAL DE SUMAPAZ | I108: Inversión | J108: Un nuevo contrato social y ambiental para la Bogotá del Siglo XXI | K108: 57 | L108: =IF(ISERROR(VLOOKUP(K108,Proposito_programa!$C$2:$E$59,2,FALSE))," ",VLOOKUP(K108,Proposito_programa!$C$2:$E$59,2,FALSE)) -> Gestión pública local | M108: =IF(ISERROR(VLOOKUP(K108,Proposito_programa!$C$2:$E$59,3,FALSE))," ",VLOOKUP(K108,Proposito_programa!$C$2:$E$59,3,FALSE)) -> Propósito 5: Construir Bogotá - Región con gobierno abierto, transparente y ciudadanía consciente | N108: 1696 | O108: 1 | P108: 1033767652 | Q108: IVAN DARIO CHINGATE MICAN | R108: Persona Natural | W108: 24200000 | Y108: 1 | Z108: 2126667 | AA108: 26326667 | AB108: 21926666 | AC108: 2022-01-26 | AD108: 2022-02-02 | AE108: 2023-01-01 | AF108: 333 | AG108: 1 | AH108: 29 | AM108: En ejecución | AN108: 0.8328690449
A109: CPS-098-2022 | B109: 2022 | C109: FDRS-CD-098-2022 | D109: https://community.secop.gov.co/Public/Tendering/OpportunityDetail/Index?noticeUID=CO1.NTC.2724478&isFromPublicArea=True&isModal=False | E109: Contratos de prestación de servicios profesionales y de apoyo a la gestión | F109: Contratación directa | G109: Prestación de servicios profesionales y de apoyo a la gestión, o para la ejecución de trabajos artísticos que sólo puedan encomendarse a determinadas personas naturales | H109: PRESTAR LOS SERVICIOS PROFESIONALES COMO ABOGADO (A) DE APOYO AL ÁREA DE GESTIÓN POLICIVA- JURÍDICA DE LA ALCALDÍA LOCAL DE SUMAPAZ | I109: Inversión | J109: Un nuevo contrato social y ambiental para la Bogotá del Siglo XXI | K109: 57 | L109: =IF(ISERROR(VLOOKUP(K109,Proposito_programa!$C$2:$E$59,2,FALSE))," ",VLOOKUP(K109,Proposito_programa!$C$2:$E$59,2,FALSE)) -> Gestión pública local | M109: =IF(ISERROR(VLOOKUP(K109,Proposito_programa!$C$2:$E$59,3,FALSE))," ",VLOOKUP(K109,Proposito_programa!$C$2:$E$59,3,FALSE)) -> Propósito 5: Construir Bogotá - Región con gobierno abierto, transparente y ciudadanía consciente | N109: 1696 | O109: 1 | P109: 79632494 | Q109: ELZON FERNEY DELGADO MORALES | R109: Persona Natural | W109: 77000000 | AA109: 77000000 | AB109: 71166666 | AC109: 2022-01-26 | AD109: 2022-01-26 | AE109: 2022-12-25 | AF109: 333 | AM109: Terminado | AN109: 0.9242424156
A110: CPS-099-2022 | B110: 2022 | C110: FDRS-CD-099-2022 | D110: https://community.secop.gov.co/Public/Tendering/OpportunityDetail/Index?noticeUID=CO1.NTC.2710089&isFromPublicArea=True&isModal=False | E110: Contratos de prestación de servicios profesionales y de apoyo a la gestión | F110: Contratación directa | G110: Prestación de servicios profesionales y de apoyo a la gestión, o para la ejecución de trabajos artísticos que sólo puedan encomendarse a determinadas personas naturales | H110: PRESTAR LOS SERVICIOS PROFESIONALES ESPECIALIZADOS PARA APOYAR EL PROCESO DE PLANEACIÓN Y SEGUIMIENTO DE LOS PLANES, PROGRAMAS Y PROYECTOS DE INVERSIÓN DEL FONDO DE DESARROLLO RURAL DE SUMAPAZ | I110: Inversión | J110: Un nuevo contrato social y ambiental para la Bogotá del Siglo XXI | K110: 57 | L110: =IF(ISERROR(VLOOKUP(K110,Proposito_programa!$C$2:$E$59,2,FALSE))," ",VLOOKUP(K110,Proposito_programa!$C$2:$E$59,2,FALSE)) -> Gestión pública local | M110: =IF(ISERROR(VLOOKUP(K110,Proposito_programa!$C$2:$E$59,3,FALSE))," ",VLOOKUP(K110,Proposito_programa!$C$2:$E$59,3,FALSE)) -> Propósito 5: Construir Bogotá - Región con gobierno abierto, transparente y ciudadanía consciente | N110: 1696 | O110: 1 | P110: 1023861638 | Q110: LUIS ALBERTO GALEANO ESCUCHA | R110: Persona Natural | W110: 88000000 | Y110: 1 | Z110: 8000000 | AA110: 96000000 | AB110: 78133333 | AC110: 2022-01-25 | AD110: 2022-02-01 | AE110: 2022-12-31 | AF110: 333 | AM110: En ejecución | AN110: 0.8138888854
A111: CPS-100-2022 | B111: 2022 | C111: FDRS-CD-100-2022 | D111: https://community.secop.gov.co/Public/Tendering/OpportunityDetail/Index?noticeUID=CO1.NTC.2712076&isFromPublicArea=True&isModal=False | E111: Contratos de prestación de servicios profesionales y de apoyo a la gestión | F111: Contratación directa | G111: Prestación de servicios profesionales y de apoyo a la gestión, o para la ejecución de trabajos artísticos que sólo puedan encomendarse a determinadas personas naturales | H111: PRESTAR LOS SERVICIOS PROFESIONALES AL ÁREA DE GESTIÓN DE DESARROLLO LOCAL PARA APOYAR LA PLANEACIÓN, EJECUCIÓN Y SEGUIMIENTO A LOS PROYECTOS DE INVERSIÓN QUE LE SEAN DESIGNADOS | I111: Inversión | J111: Un nuevo contrato social y ambiental para la Bogotá del Siglo XXI | K111: 6 | L111: =IF(ISERROR(VLOOKUP(K111,Proposito_programa!$C$2:$E$59,2,FALSE))," ",VLOOKUP(K111,Proposito_programa!$C$2:$E$59,2,FALSE)) -> Sistema Distrital de Cuidado | M111: =IF(ISERROR(VLOOKUP(K111,Proposito_programa!$C$2:$E$59,3,FALSE))," ",VLOOKUP(K111,Proposito_programa!$C$2:$E$59,3,FALSE)) -> Propósito 1: Hacer un nuevo contrato social para incrementar la inclusión social, productiva y política | N111: 1643 | O111: 1 | P111: 1022991460 | Q111: MARIA CAMILA NIEVES PARRA | R111: Persona Natural | W111: 77000000 | AA111: 77000000 | AB111: 42466666 | AC111: 2022-01-25 | AD111: 2022-01-27 | AE111: 2022-12-26 | AF111: 333 | AM111: En ejecución | AN111: 0.5515151429
A112: CPS-101-2022 | B112: 2022 | C112: FDRS-CD-101-2022 | D112: https://community.secop.gov.co/Public/Tendering/OpportunityDetail/Index?noticeUID=CO1.NTC.2756078&isFromPublicArea=True&isModal=False | E112: Contratos de prestación de servicios profesionales y de apoyo a la gestión | F112: Contratación directa | G112: Prestación de servicios profesionales y de apoyo a la gestión, o para la ejecución de trabajos artísticos que sólo puedan encomendarse a determinadas personas naturales | H112: PRESTAR LOS SERVICIOS PROFESIONALES COMO ABOGADO (A) DE APOYO AL ÁREA DE GESTIÓN POLICIVA-JURÍDICA DE LA ALCALDÍA LOCAL DE SUMAPAZ | I112: Inversión | J112: Un nuevo contrato social y ambiental para la Bogotá del Siglo XXI | K112: 57 | L112: =IF(ISERROR(VLOOKUP(K112,Proposito_programa!$C$2:$E$59,2,FALSE))," ",VLOOKUP(K112,Proposito_programa!$C$2:$E$59,2,FALSE)) -> Gestión pública local | M112: =IF(ISERROR(VLOOKUP(K112,Proposito_programa!$C$2:$E$59,3,FALSE))," ",VLOOKUP(K112,Proposito_programa!$C$2:$E$59,3,FALSE)) -> Propósito 5: Construir Bogotá - Región con gobierno abierto, transparente y ciudadanía consciente | N112: 1696 | O112: 1 | P112: 1024555613 | Q112: DUVAN HERNAN HERNANDEZ TORRES | R112: Persona Natural | W112: 50600000 | Y112: 1 | Z112: 4446667 | AA112: 55046667 | AB112: 45846666 | AC112: 2022-01-27 | AD112: 2022-02-02 | AE112: 2023-01-01 | AF112: 333 | AG112: 1 | AH112: 30 | AM112: En ejecución | AN112: 0.8328690636
A113: CPS-102-2022 | B113: 2022 | C113: FDRS-CD-102-2022 | D113: https://community.secop.gov.co/Public/Tendering/OpportunityDetail/Index?noticeUID=CO1.NTC.2715614&isFromPublicArea=True&isModal=False | E113: Contratos de prestación de servicios profesionales y de apoyo a la gestión | F113: Contratación directa | G113: Prestación de servicios profesionales y de apoyo a la gestión, o para la ejecución de trabajos artísticos que sólo puedan encomendarse a determinadas personas naturales | H113: PRESTAR LOS SERVICIOS PROFESIONALES PARA APOYAR LA GESTIÓN PARA EL FORTALECIMIENTO DEL SERVICIO DE ASISTENCIA TÉCNICA AGROPECUARIA DE LA LOCALIDAD DE SUMAPAZ | I113: Inversión | J113: Un nuevo contrato social y ambiental para la Bogotá del Siglo XXI | K113: 23 | L113: =IF(ISERROR(VLOOKUP(K113,Proposito_programa!$C$2:$E$59,2,FALSE))," ",VLOOKUP(K113,Proposito_programa!$C$2:$E$59,2,FALSE)) -> Bogotá rural | M113: =IF(ISERROR(VLOOKUP(K113,Proposito_programa!$C$2:$E$59,3,FALSE))," ",VLOOKUP(K113,Proposito_programa!$C$2:$E$59,3,FALSE)) -> Propósito 1: Hacer un nuevo contrato social para incrementar la inclusión social, productiva y política | N113: 1634 | O113: 1 | P113: 1070010719 | Q113: LUIS MIGUEL CABRERA ORTEGA | R113: Persona Natural | W113: 60500000 | AA113: 60500000 | AB113: 55916667 | AC113: 2022-01-26 | AD113: 2022-01-26 | AE113: 2022-12-25 | AF113: 333 | AM113: Terminado | AN113: 0.9242424298
A114: CPS-103-2022 | B114: 2022 | C114: FDRS-CD-103-2022 | D114: https://community.secop.gov.co/Public/Tendering/OpportunityDetail/Index?noticeUID=CO1.NTC.2724779&isFromPublicArea=True&isModal=False | E114: Contratos de prestación de servicios profesionales y de apoyo a la gestión | F114: Contratación directa | G114: Prestación de servicios profesionales y de apoyo a la gestión, o para la ejecución de trabajos artísticos que sólo puedan encomendarse a determinadas personas naturales | H114: PRESTAR SUS SERVICIOS PROFESIONALES ESPECIALIZADOS DE APOYO AL ÁREA DE GESTIÓN DE DESARROLLO LOCAL, PARA LA EJECUCIÓN DE LOS PROYECTOS DE INVERSIÓN DEL FONDO DE DESARROLLO LOCAL DE SUMAPAZ | I114: Inversión | J114: Un nuevo contrato social y ambiental para la Bogotá del Siglo XXI | K114: 57 | L114: =IF(ISERROR(VLOOKUP(K114,Proposito_programa!$C$2:$E$59,2,FALSE))," ",VLOOKUP(K114,Proposito_programa!$C$2:$E$59,2,FALSE)) -> Gestión pública local | M114: =IF(ISERROR(VLOOKUP(K114,Proposito_programa!$C$2:$E$59,3,FALSE))," ",VLOOKUP(K114,Proposito_programa!$C$2:$E$59,3,FALSE)) -> Propósito 5: Construir Bogotá - Región con gobierno abierto, transparente y ciudadanía consciente | N114: 1696 | O114: 1 | P114: 79470610 | Q114: JOSE ANDRES CAMELO ORTIZ | R114: Persona Natural | W114: 82500000 | AA114: 82500000 | AB114: 75000000 | AC114: 2022-01-26 | AD114: 2022-02-01 | AE114: 2022-12-31 | AF114: 333 | AM114: Terminado | AN114: 0.9090909091
A115: CPS-104-2022 | B115: 2022 | C115: FDRS-CD-104-2022 | D115: https://community.secop.gov.co/Public/Tendering/OpportunityDetail/Index?noticeUID=CO1.NTC.2714790&isFromPublicArea=True&isModal=False | E115: Contratos de prestación de servicios profesionales y de apoyo a la gestión | F115: Contratación directa | G115: Prestación de servicios profesionales y de apoyo a la gestión, o para la ejecución de trabajos artísticos que sólo puedan encomendarse a determinadas personas naturales | H115: PRESTAR LOS SERVICIOS PROFESIONALES DE ACOMPAÑAMIENTO PSICOSOCIAL PARA APOYAR LA EJECUCIÓN DE LA META ATENDER A 200 PERSONAS EN ESTRATEGIAS DE ACCESO A LA JUSTICIA INTEGRAL EN LA LOCALIDAD DE SUMAPAZ | I115: Inversión | J115: Un nuevo contrato social y ambiental para la Bogotá del Siglo XXI | K115: 48 | L115: =IF(ISERROR(VLOOKUP(K115,Proposito_programa!$C$2:$E$59,2,FALSE))," ",VLOOKUP(K115,Proposito_programa!$C$2:$E$59,2,FALSE)) -> Plataforma institucional para la seguridad y justicia | M115: =IF(ISERROR(VLOOKUP(K115,Proposito_programa!$C$2:$E$59,3,FALSE))," ",VLOOKUP(K115,Proposito_programa!$C$2:$E$59,3,FALSE)) -> Propósito 3: Inspirar confianza y legitimidad para vivir sin miedo y ser epicentro de cultura ciudadana, paz y reconciliación | N115: 1683 | O115: 1 | P115: 1023029369 | Q115: KAREN NAYIBE MARTINEZ MOLINA | R115: Persona Natural | W115: 62700000 | AA115: 62700000 | AB115: 57760000 | AC115: 2022-01-26 | AD115: 2022-01-27 | AE115: 2022-12-26 | AF115: 333 | AM115: Terminado | AN115: 0.9212121212
A116: CPS-105-2022 | B116: 2022 | C116: FDRS-CD-105-2022 | D116: https://community.secop.gov.co/Public/Tendering/OpportunityDetail/Index?noticeUID=CO1.NTC.2756397&isFromPublicArea=True&isModal=False | E116: Contratos de prestación de servicios profesionales y de apoyo a la gestión | F116: Contratación directa | G116: Prestación de servicios profesionales y de apoyo a la gestión, o para la ejecución de trabajos artísticos que sólo puedan encomendarse a determinadas personas naturales | H116: PRESTAR LOS SERVICIOS PROFESIONALES COMO ABOGADO (A) DE APOYO AL ÁREA DE GESTIÓN POLICIVA-JURÍDICA DE LA ALCALDÍA LOCAL DE SUMAPAZ | I116: Inversión | J116: Un nuevo contrato social y ambiental para la Bogotá del Siglo XXI | K116: 57 | L116: =IF(ISERROR(VLOOKUP(K116,Proposito_programa!$C$2:$E$59,2,FALSE))," ",VLOOKUP(K116,Proposito_programa!$C$2:$E$59,2,FALSE)) -> Gestión pública local | M116: =IF(ISERROR(VLOOKUP(K116,Proposito_programa!$C$2:$E$59,3,FALSE))," ",VLOOKUP(K116,Proposito_programa!$C$2:$E$59,3,FALSE)) -> Propósito 5: Construir Bogotá - Región con gobierno abierto, transparente y ciudadanía consciente | N116: 1696 | O116: 1 | P116: 80025622 | Q116: MILTON DAVID BECERRA RAMIREZ | R116: Persona Natural | W116: 77000000 | AA116: 77000000 | AB116: 68600000 | AC116: 2022-01-27 | AD116: 2022-02-07 | AE116: 2023-01-06 | AF116: 333 | AM116: En ejecución | AN116: 0.8909090909
A117: CPS-106-2022 | B117: 2022 | C117: FDRS-CD-106-2022 | D117: https://community.secop.gov.co/Public/Tendering/OpportunityDetail/Index?noticeUID=CO1.NTC.2756246&isFromPublicArea=True&isModal=False | E117: Contratos de prestación de servicios profesionales y de apoyo a la gestión | F117: Contratación directa | G117: Prestación de servicios profesionales y de apoyo a la gestión, o para la ejecución de trabajos artísticos que sólo puedan encomendarse a determinadas personas naturales | H117: PRESTAR LOS SERVICIOS COMO AUXILIAR ADMINISTRATIVA EN LA CORREGIDURÍA DE BETANIA | I117: Inversión | J117: Un nuevo contrato social y ambiental para la Bogotá del Siglo XXI | K117: 57 | L117: =IF(ISERROR(VLOOKUP(K117,Proposito_programa!$C$2:$E$59,2,FALSE))," ",VLOOKUP(K117,Proposito_programa!$C$2:$E$59,2,FALSE)) -> Gestión pública local | M117: =IF(ISERROR(VLOOKUP(K117,Proposito_programa!$C$2:$E$59,3,FALSE))," ",VLOOKUP(K117,Proposito_programa!$C$2:$E$59,3,FALSE)) -> Propósito 5: Construir Bogotá - Región con gobierno abierto, transparente y ciudadanía consciente | N117: 1696 | O117: 1 | P117: 1032656360 | Q117: DIANA LUCIA RAMIREZ MUÑOZ | R117: Persona Natural | W117: 29700000 | AA117: 29700000 | AB117: 26460000 | AC117: 2022-01-27 | AD117: 2022-02-07 | AE117: 2023-01-06 | AF117: 333 | AM117: En ejecución | AN117: 0.8909090909
A118: CPS-107-2022 | B118: 2022 | C118: FDRS-CD-107-2022 | D118: https://community.secop.gov.co/Public/Tendering/OpportunityDetail/Index?noticeUID=CO1.NTC.2763803&isFromPublicArea=True&isModal=False | E118: Contratos de prestación de servicios profesionales y de apoyo a la gestión | F118: Contratación directa | G118: Prestación de servicios profesionales y de apoyo a la gestión, o para la ejecución de trabajos artísticos que sólo puedan encomendarse a determinadas personas naturales | H118: PRESTAR LOS SERVICIOS PROFESIONALES PARA APOYAR LA ADMINISTRACIÓN Y OPERACIÓN DE LOS CENTROS DE CONECTIVIDAD CAMPESINA DE LA LOCALIDAD DE SUMAPAZ | I118: Inversión | J118: Un nuevo contrato social y ambiental para la Bogotá del Siglo XXI | K118: 54 | L118: =IF(ISERROR(VLOOKUP(K118,Proposito_programa!$C$2:$E$59,2,FALSE))," ",VLOOKUP(K118,Proposito_programa!$C$2:$E$59,2,FALSE)) -> Transformación digital y gestión de TIC para un territorio inteligente | M118: =IF(ISERROR(VLOOKUP(K118,Proposito_programa!$C$2:$E$59,3,FALSE))," ",VLOOKUP(K118,Proposito_programa!$C$2:$E$59,3,FALSE)) -> Propósito 5: Construir Bogotá - Región con gobierno abierto, transparente y ciudadanía consciente | N118: 1692 | O118: 1 | P118: 52215660 | Q118: CLARA LEONOR CABRERA | R118: Persona Natural | W118: 55000000 | X118: -25166667 | AA118: 29833333 | AB118: 29833333 | AC118: 2022-01-27 | AD118: 2022-02-02 | AE118: 2023-01-01 | AF118: 333 | AM118: Terminado | AN118: 1
A119: CPS-108-2022 | B119: 2022 | C119: FDRS-CD-108-2022 | D119: https://community.secop.gov.co/Public/Tendering/OpportunityDetail/Index?noticeUID=CO1.NTC.2724677&isFromPublicArea=True&isModal=False | E119: Contratos de prestación de servicios profesionales y de apoyo a la gestión | F119: Contratación directa | G119: Prestación de servicios profesionales y de apoyo a la gestión, o para la ejecución de trabajos artísticos que sólo puedan encomendarse a determinadas personas naturales | H119: PRESTAR LOS SERVICIOS PROFESIONALES AL ÁREA DE GESTIÓN DE DESARROLLO LOCAL PARA APOYAR LA PLANEACIÓN, EJECUCIÓN Y SEGUIMIENTO DE LOS PROYECTOS DE INVERSIÓN RELACIONADOS CON LAS OBRAS DE MITIGACIÓN A DESARROLLAR POR EL FDRS | I119: Inversión | J119: Un nuevo contrato social y ambiental para la Bogotá del Siglo XXI | K119: 57 | L119: =IF(ISERROR(VLOOKUP(K119,Proposito_programa!$C$2:$E$59,2,FALSE))," ",VLOOKUP(K119,Proposito_programa!$C$2:$E$59,2,FALSE)) -> Gestión pública local | M119: =IF(ISERROR(VLOOKUP(K119,Proposito_programa!$C$2:$E$59,3,FALSE))," ",VLOOKUP(K119,Proposito_programa!$C$2:$E$59,3,FALSE)) -> Propósito 5: Construir Bogotá - Región con gobierno abierto, transparente y ciudadanía consciente | N119: 1696 | O119: 1 | P119: 1090424977 | Q119: JUAN DAVID CORTES GOMEZ | R119: Persona Natural | W119: 66000000 | AA119: 66000000 | AB119: 60800000 | AC119: 2022-01-26 | AD119: 2022-01-27 | AE119: 2022-12-26 | AF119: 333 | AM119: Terminado | AN119: 0.9212121212
A120: CPS-109-2022 | B120: 2022 | C120: FDRS-CD-109-2022 | D120: https://community.secop.gov.co/Public/Tendering/OpportunityDetail/Index?noticeUID=CO1.NTC.2724539&isFromPublicArea=True&isModal=False | E120: Contratos de prestación de servicios profesionales y de apoyo a la gestión | F120: Contratación directa | G120: Prestación de servicios profesionales y de apoyo a la gestión, o para la ejecución de trabajos artísticos que sólo puedan encomendarse a determinadas personas naturales | H120: PRESTAR LOS SERVICIOS PROFESIONALES PARA APOYAR LA GESTIÓN PARA EL FORTALECIMIENTO DEL SERVICIO DE ASISTENCIA TÉCNICA AGROPECUARIA DE LA LOCALIDAD DE SUMAPAZ | I120: Inversión | J120: Un nuevo contrato social y ambiental para la Bogotá del Siglo XXI | K120: 23 | L120: =IF(ISERROR(VLOOKUP(K120,Proposito_programa!$C$2:$E$59,2,FALSE))," ",VLOOKUP(K120,Proposito_programa!$C$2:$E$59,2,FALSE)) -> Bogotá rural | M120: =IF(ISERROR(VLOOKUP(K120,Proposito_programa!$C$2:$E$59,3,FALSE))," ",VLOOKUP(K120,Proposito_programa!$C$2:$E$59,3,FALSE)) -> Propósito 1: Hacer un nuevo contrato social para incrementar la inclusión social, productiva y política | N120: 1634 | O120: 1 | P120: 1020777043 | Q120: SAMANTHA GOMEZ GARZON | R120: Persona Natural | W120: 60500000 | AA120: 60500000 | AB120: 55000000 | AC120: 2022-01-26 | AD120: 2022-02-01 | AE120: 2022-12-31 | AF120: 333 | AM120: Terminado | AN120: 0.9090909091
A121: CPS-110-2022 | B121: 2022 | C121: FDRS-CD-110-2022 | D121: https://community.secop.gov.co/Public/Tendering/OpportunityDetail/Index?noticeUID=CO1.NTC.2739041&isFromPublicArea=True&isModal=False | E121: Contratos de prestación de servicios profesionales y de apoyo a la gestión | F121: Contratación directa | G121: Prestación de servicios profesionales y de apoyo a la gestión, o para la ejecución de trabajos artísticos que sólo puedan encomendarse a determinadas personas naturales | H121: PRESTAR SUS SERVICIOS PROFESIONALES DE APOYO ADMINISTRATIVO AL ÁREA DE GESTIÓN DEL DESARROLLO LOCAL, DEL FONDO DE DESARROLLO RURAL DE SUMAPAZ | I121: Inversión | J121: Un nuevo contrato social y ambiental para la Bogotá del Siglo XXI | K121: 57 | L121: =IF(ISERROR(VLOOKUP(K121,Proposito_programa!$C$2:$E$59,2,FALSE))," ",VLOOKUP(K121,Proposito_programa!$C$2:$E$59,2,FALSE)) -> Gestión pública local | M121: =IF(ISERROR(VLOOKUP(K121,Proposito_programa!$C$2:$E$59,3,FALSE))," ",VLOOKUP(K121,Proposito_programa!$C$2:$E$59,3,FALSE)) -> Propósito 5: Construir Bogotá - Región con gobierno abierto, transparente y ciudadanía consciente | N121: 1696 | O121: 1 | P121: 52455502 | Q121: JUDITH GIOVANNA FLOREZ CABALLERO | R121: Persona Natural | W121: 77000000 | AA121: 77000000 | AB121: 70000000 | AC121: 2022-01-26 | AD121: 2022-01-31 | AE121: 2022-12-30 | AF121: 333 | AM121: Terminado | AN121: 0.9090909091
A122: CPS-111-2022 | B122: 2022 | C122: FDRS-CD-111-2022 | D122: https://community.secop.gov.co/Public/Tendering/OpportunityDetail/Index?noticeUID=CO1.NTC.2735200&isFromPublicArea=True&isModal=False | E122: Contratos de prestación de servicios profesionales y de apoyo a la gestión | F122: Contratación directa | G122: Prestación de servicios profesionales y de apoyo a la gestión, o para la ejecución de trabajos artísticos que sólo puedan encomendarse a determinadas personas naturales | H122: PRESTAR LOS SERVICIOS DE APOYO A LA GESTIÓN DOCUMENTAL DE LA ALCALDÍA LOCAL EN LA IMPLEMENTACIÓN DE LOS PROCESOS DE CLASIFICACIÓN, ORDENACIÓN, SELECCIÓN NATURAL, FOLIACIÓN, IDENTIFICACIÓN, LEVANTAMIENTO DE INVENTARIOS, ALMACENAMIENTO Y APLICACIÓN DE PROTOCOLOS DE ELIMINACIÓN Y TRANSFERENCIAS DOCUMENTALES | I122: Inversión | J122: Un nuevo contrato social y ambiental para la Bogotá del Siglo XXI | K122: 57 | L122: =IF(ISERROR(VLOOKUP(K122,Proposito_programa!$C$2:$E$59,2,FALSE))," ",VLOOKUP(K122,Proposito_programa!$C$2:$E$59,2,FALSE)) -> Gestión pública local | M122: =IF(ISERROR(VLOOKUP(K122,Proposito_programa!$C$2:$E$59,3,FALSE))," ",VLOOKUP(K122,Proposito_programa!$C$2:$E$59,3,FALSE)) -> Propósito 5: Construir Bogotá - Región con gobierno abierto, transparente y ciudadanía consciente | N122: 1696 | O122: 1 | P122: 1007395591 | Q122: BRAYAN ANDRES ROMERO ROMERO | R122: Persona Natural | W122: 16200000 | AA122: 16200000 | AB122: 8010000 | AC122: 2022-01-26 | AD122: 2022-02-02 | AE122: 2022-08-01 | AF122: 180 | AM122: Terminado | AN122: 0.4944444444
A123: CPS-112-2022 | B123: 2022 | C123: FDRS-CD-112-2022 | D123: https://community.secop.gov.co/Public/Tendering/OpportunityDetail/Index?noticeUID=CO1.NTC.2734681&isFromPublicArea=True&isModal=False | E123: Contratos de prestación de servicios profesionales y de apoyo a la gestión | F123: Contratación directa | G123: Prestación de servicios profesionales y de apoyo a la gestión, o para la ejecución de trabajos artísticos que sólo puedan encomendarse a determinadas personas naturales | H123: PRESTAR LOS SERVICIOS PROFESIONALES PARA ORIENTAR JURÍDICAMENTE A LAS VÍCTIMAS DEL CONFLICTO ARMADO DE LA LOCALIDAD DE SUMAPAZ EN EL MARCO DEL SIVJRNR | I123: Inversión | J123: Un nuevo contrato social y ambiental para la Bogotá del Siglo XXI | K123: 39 | L123: =IF(ISERROR(VLOOKUP(K123,Proposito_programa!$C$2:$E$59,2,FALSE))," ",VLOOKUP(K123,Proposito_programa!$C$2:$E$59,2,FALSE)) -> Bogotá territorio de paz y atención integral a las víctimas del conflicto armado | M123: =IF(ISERROR(VLOOKUP(K123,Proposito_programa!$C$2:$E$59,3,FALSE))," ",VLOOKUP(K123,Proposito_programa!$C$2:$E$59,3,FALSE)) -> Propósito 3: Inspirar confianza y legitimidad para vivir sin miedo y ser epicentro de cultura ciudadana, paz y reconciliación | N123: 1672 | O123: 1 | P123: 1030609055 | Q123: CARLOS ANDRES AMEZQUITA ANGULO | R123: Persona Natural | W123: 60500000 | AA123: 60500000 | AB123: 54816666 | AC123: 2022-01-31 | AD123: 2022-02-02 | AE123: 2023-01-01 | AF123: 333 | AM123: Terminado | AN123: 0.906060595
A124: CPS-113-2022 | B124: 2022 | C124: FDRS-CD-113-2022 | D124: https://community.secop.gov.co/Public/Tendering/OpportunityDetail/Index?noticeUID=CO1.NTC.2734608&isFromPublicArea=True&isModal=False | E124: Contratos de prestación de servicios profesionales y de apoyo a la gestión | F124: Contratación directa | G124: Prestación de servicios profesionales y de apoyo a la gestión, o para la ejecución de trabajos artísticos que sólo puedan encomendarse a determinadas personas naturales | H124: PRESTAR SUS SERVICIOS DE APOYO LOGÍSTICO Y OPERATIVO PARA LA ALCALDÍA LOCAL DE SUMAPAZ | I124: Inversión | J124: Un nuevo contrato social y ambiental para la Bogotá del Siglo XXI | K124: 57 | L124: =IF(ISERROR(VLOOKUP(K124,Proposito_programa!$C$2:$E$59,2,FALSE))," ",VLOOKUP(K124,Proposito_programa!$C$2:$E$59,2,FALSE)) -> Gestión pública local | M124: =IF(ISERROR(VLOOKUP(K124,Proposito_programa!$C$2:$E$59,3,FALSE))," ",VLOOKUP(K124,Proposito_programa!$C$2:$E$59,3,FALSE)) -> Propósito 5: Construir Bogotá - Región con gobierno abierto, transparente y ciudadanía consciente | N124: 1696 | O124: 1 | P124: 19157189 | Q124: ENRIQUE HUERTAS | R124: Persona Natural | W124: 27500000 | AA124: 27500000 | AB124: 24750000 | AC124: 2022-01-26 | AD124: 2022-02-04 | AE124: 2023-01-03 | AF124: 333 | AM124: Terminado | AN124: 0.9
A125: CPS-114-2022 | B125: 2022 | C125: FDRS-CD-114-2022 | D125: https://community.secop.gov.co/Public/Tendering/OpportunityDetail/Index?noticeUID=CO1.NTC.2734884&isFromPublicArea=True&isModal=False | E125: Contratos de prestación de servicios profesionales y de apoyo a la gestión | F125: Contratación directa | G125: Prestación de servicios profesionales y de apoyo a la gestión, o para la ejecución de trabajos artísticos que sólo puedan encomendarse a determinadas personas naturales | H125: PRESTAR LOS SERVICIOS PROFESIONALES PARA APOYAR LA PLANEACIÓN, SEGUIMIENTO, EJECUCIÓN Y CONTROL A NIVEL AMBIENTAL DE LOS PROYECTOS DE INVERSIÓN QUE LE SEAN DESIGNADOS | I125: Inversión | J125: Un nuevo contrato social y ambiental para la Bogotá del Siglo XXI | K125: 37 | L125: =IF(ISERROR(VLOOKUP(K125,Proposito_programa!$C$2:$E$59,2,FALSE))," ",VLOOKUP(K125,Proposito_programa!$C$2:$E$59,2,FALSE)) -> Provisión y mejoramiento de servicios públicos | M125: =IF(ISERROR(VLOOKUP(K125,Proposito_programa!$C$2:$E$59,3,FALSE))," ",VLOOKUP(K125,Proposito_programa!$C$2:$E$59,3,FALSE)) -> Propósito 2 : Cambiar Nuestros Hábitos de Vida para Reverdecer a Bogotá y Adaptarnos y Mitigar la Crisis Climática | N125: 1668 | O125: 1 | P125: 1024479198 | Q125: LILIANA MARCELA MEDINA CHAVARRO | R125: Persona Natural | W125: 50600000 | X125: -22693343 | AA125: 27906657 | AB125: 23306667 | AC125: 2022-01-26 | AD125: 2022-02-02 | AE125: 2023-01-01 | AF125: 333 | AM125: Terminado | AN125: 0.8351651364
A126: CPS-115-2022 | B126: 2022 | C126: FDRS-CD-115-2022 | D126: https://community.secop.gov.co/Public/Tendering/OpportunityDetail/Index?noticeUID=CO1.NTC.2737130&isFromPublicArea=True&isModal=False | E126: Contratos de prestación de servicios profesionales y de apoyo a la gestión | F126: Contratación directa | G126: Prestación de servicios profesionales y de apoyo a la gestión, o para la ejecución de trabajos artísticos que sólo puedan encomendarse a determinadas personas naturales | H126: PRESTAR LOS SERVICIOS ADMINISTRATIVOS PARA APOYAR LAS LABORES DE OFICIOS VARIOS Y DE NOTIFICACIÓN PARA LA CUENCA DEL RIO SUMAPAZ, DE LA ALCALDÍA LOCAL DE SUMAPAZ | I126: Inversión | J126: Un nuevo contrato social y ambiental para la Bogotá del Siglo XXI | K126: 57 | L126: =IF(ISERROR(VLOOKUP(K126,Proposito_programa!$C$2:$E$59,2,FALSE))," ",VLOOKUP(K126,Proposito_programa!$C$2:$E$59,2,FALSE)) -> Gestión pública local | M126: =IF(ISERROR(VLOOKUP(K126,Proposito_programa!$C$2:$E$59,3,FALSE))," ",VLOOKUP(K126,Proposito_programa!$C$2:$E$59,3,FALSE)) -> Propósito 5: Construir Bogotá - Región con gobierno abierto, transparente y ciudadanía consciente | N126: 1696 | O126: 1 | P126: 1069743456 | Q126: JESUS ARVEY HENAO POLO | R126: Persona Natural | W126: 24200000 | AA126: 24200000 | AB126: 21560000 | AC126: 2022-01-26 | AD126: 2022-02-07 | AE126: 2023-01-06 | AF126: 333 | AM126: En ejecución | AN126: 0.8909090909
A127: CPS-116-2022 | B127: 2022 | C127: FDRS-CD-116-2022 | D127: https://community.secop.gov.co/Public/Tendering/OpportunityDetail/Index?noticeUID=CO1.NTC.2786670&isFromPublicArea=True&isModal=False | E127: Contratos de prestación de servicios profesionales y de apoyo a la gestión | F127: Contratación directa | G127: Prestación de servicios profesionales y de apoyo a la gestión, o para la ejecución de trabajos artísticos que sólo puedan encomendarse a determinadas personas naturales | H127: PRESTAR SUS SERVICIOS COMO TÉCNICO PARA APOYAR Y DAR SOPORTE AL ADMINISTRADOR Y USUARIO FINAL DE LA RED DE SISTEMAS Y TECNOLOGÍA E INFORMACIÓN DE LA ALCALDÍA LOCAL | I127: Inversión | J127: Un nuevo contrato social y ambiental para la Bogotá del Siglo XXI | K127: 57 | L127: =IF(ISERROR(VLOOKUP(K127,Proposito_programa!$C$2:$E$59,2,FALSE))," ",VLOOKUP(K127,Proposito_programa!$C$2:$E$59,2,FALSE)) -> Gestión pública local | M127: =IF(ISERROR(VLOOKUP(K127,Proposito_programa!$C$2:$E$59,3,FALSE))," ",VLOOKUP(K127,Proposito_programa!$C$2:$E$59,3,FALSE)) -> Propósito 5: Construir Bogotá - Región con gobierno abierto, transparente y ciudadanía consciente | N127: 1696 | O127: 1 | P127: 79556596 | Q127: REYNALDO RUBIO GALVIS | R127: Persona Natural | W127: 44000000 | AA127: 44000000 | AB127: 39600000 | AC127: 2022-01-28 | AD127: 2022-02-04 | AE127: 2023-01-03 | AF127: 333 | AM127: Terminado | AN127: 0.9
A128: CPS-117-2022 | B128: 2022 | C128: FDRS-CD-117-2022 | D128: https://community.secop.gov.co/Public/Tendering/OpportunityDetail/Index?noticeUID=CO1.NTC.2735842&isFromPublicArea=True&isModal=False | E128: Contratos de prestación de servicios profesionales y de apoyo a la gestión | F128: Contratación directa | G128: Prestación de servicios profesionales y de apoyo a la gestión, o para la ejecución de trabajos artísticos que sólo puedan encomendarse a determinadas personas naturales | H128: PRESTAR LOS SERVICIOS PROFESIONALES APOYAR LA FORMULACIÓN, EJECUCIÓN, SEGUIMIENTO Y MEJORA CONTINUA DE LAS HERRAMIENTAS QUE CONFORMAN LA GESTIÓN AMBIENTAL INSTITUCIONAL DE LA ALCALDÍA LOCAL | I128: Inversión | J128: Un nuevo contrato social y ambiental para la Bogotá del Siglo XXI | K128: 38 | L128: =IF(ISERROR(VLOOKUP(K128,Proposito_programa!$C$2:$E$59,2,FALSE))," ",VLOOKUP(K128,Proposito_programa!$C$2:$E$59,2,FALSE)) -> Ecoeficiencia, reciclaje, manejo de residuos e inclusión de la población recicladora | M128: =IF(ISERROR(VLOOKUP(K128,Proposito_programa!$C$2:$E$59,3,FALSE))," ",VLOOKUP(K128,Proposito_programa!$C$2:$E$59,3,FALSE)) -> Propósito 2 : Cambiar Nuestros Hábitos de Vida para Reverdecer a Bogotá y Adaptarnos y Mitigar la Crisis Climática | N128: 1669 | O128: 1 | P128: 1136886950 | Q128: ALEXANDRA RIPPE ABRIL | R128: Persona Natural | W128: 51700000 | AA128: 51700000 | AB128: 47000000 | AC128: 2022-01-26 | AD128: 2022-02-01 | AE128: 2022-12-31 | AF128: 333 | AM128: Terminado | AN128: 0.9090909091
A129: CPS-118-2022 | B129: 2022 | C129: FDRS-CD-118-2022 | D129: https://community.secop.gov.co/Public/Tendering/OpportunityDetail/Index?noticeUID=CO1.NTC.2739684&isFromPublicArea=True&isModal=False | E129: Contratos de prestación de servicios profesionales y de apoyo a la gestión | F129: Contratación directa | G129: Prestación de servicios profesionales y de apoyo a la gestión, o para la ejecución de trabajos artísticos que sólo puedan encomendarse a determinadas personas naturales | H129: PRESTAR SUS SERVICIOS COMO AUXILIAR ADMINISTRATIVO EN LA GESTIÓN DE PRENSA Y COMUNICACIONES DE LA ALCALDÍA LOCAL DE SUMAPAZ | I129: Inversión | J129: Un nuevo contrato social y ambiental para la Bogotá del Siglo XXI | K129: 57 | L129: =IF(ISERROR(VLOOKUP(K129,Proposito_programa!$C$2:$E$59,2,FALSE))," ",VLOOKUP(K129,Proposito_programa!$C$2:$E$59,2,FALSE)) -> Gestión pública local | M129: =IF(ISERROR(VLOOKUP(K129,Proposito_programa!$C$2:$E$59,3,FALSE))," ",VLOOKUP(K129,Proposito_programa!$C$2:$E$59,3,FALSE)) -> Propósito 5: Construir Bogotá - Región con gobierno abierto, transparente y ciudadanía consciente | N129: 1696 | O129: 1 | P129: 80897743 | Q129: JHONATAN ALVAREZ MORA | R129: Persona Natural | W129: 29700000 | AA129: 29700000 | AB129: 27000000 | AC129: 2022-01-26 | AD129: 2022-01-31 | AE129: 2022-12-30 | AF129: 333 | AM129: En ejecución | AN129: 0.9090909091
A130: CPS-119-2022 | B130: 2022 | C130: FDRS-CD-119-2022 | D130: https://community.secop.gov.co/Public/Tendering/OpportunityDetail/Index?noticeUID=CO1.NTC.2739703&isFromPublicArea=True&isModal=False | E130: Contratos de prestación de servicios profesionales y de apoyo a la gestión | F130: Contratación directa | G130: Prestación de servicios profesionales y de apoyo a la gestión, o para la ejecución de trabajos artísticos que sólo puedan encomendarse a determinadas personas naturales | H130: PRESTAR LOS SERVICIOS PROFESIONALES ESPECIALIZADOS PARA GESTIONAR LOS PROYECTOS DE INVERSIÓN DE INFRAESTRUCTURA VIAL, EN LA CUENCA DEL RÍO BLANCO DE LA LOCALIDAD | I130: Inversión | J130: Un nuevo contrato social y ambiental para la Bogotá del Siglo XXI | K130: 49 | L130: =IF(ISERROR(VLOOKUP(K130,Proposito_programa!$C$2:$E$59,2,FALSE))," ",VLOOKUP(K130,Proposito_programa!$C$2:$E$59,2,FALSE)) -> Movilidad segura, sostenible y accesible | M130: =IF(ISERROR(VLOOKUP(K130,Proposito_programa!$C$2:$E$59,3,FALSE))," ",VLOOKUP(K130,Proposito_programa!$C$2:$E$59,3,FALSE)) -> Propósito 4: Hacer de Bogotá Región un modelo de movilidad multimodal, incluyente y sostenible | N130: 1688 | O130: 1 | P130: 1019006008 | Q130: JUAN PABLO SANABRIA MORENO | R130: Persona Natural | W130: 88000000 | AA130: 88000000 | AB130: 80800000 | AC130: 2022-01-26 | AD130: 2022-01-28 | AE130: 2022-12-27 | AF130: 333 | AM130: Terminado | AN130: 0.9181818182
A131: CPS-120-2022 | B131: 2022 | C131: FDRS-CD-120-2022 | D131: https://community.secop.gov.co/Public/Tendering/OpportunityDetail/Index?noticeUID=CO1.NTC.2756794&isFromPublicArea=True&isModal=False | E131: Contratos de prestación de servicios profesionales y de apoyo a la gestión | F131: Contratación directa | G131: Prestación de servicios profesionales y de apoyo a la gestión, o para la ejecución de trabajos artísticos que sólo puedan encomendarse a determinadas personas naturales | H131: PRESTAR LOS SERVICIOS PROFESIONALES DE ACOMPAÑAMIENTO PSICOSOCIAL PARA APOYAR LA EJECUCIÓN DE LA META ATENDER A 200 PERSONAS EN ESTRATEGIAS DE ACCESO A LA JUSTICIA INTEGRAL EN LA LOCALIDAD DE SUMAPAZ | I131: Inversión | J131: Un nuevo contrato social y ambiental para la Bogotá del Siglo XXI | K131: 48 | L131: =IF(ISERROR(VLOOKUP(K131,Proposito_programa!$C$2:$E$59,2,FALSE))," ",VLOOKUP(K131,Proposito_programa!$C$2:$E$59,2,FALSE)) -> Plataforma institucional para la seguridad y justicia | M131: =IF(ISERROR(VLOOKUP(K131,Proposito_programa!$C$2:$E$59,3,FALSE))," ",VLOOKUP(K131,Proposito_programa!$C$2:$E$59,3,FALSE)) -> Propósito 3: Inspirar confianza y legitimidad para vivir sin miedo y ser epicentro de cultura ciudadana, paz y reconciliación | N131: 1683 | O131: 1 | P131: 1016043437 | Q131: VERONICA LUCIA CASTRO CHIGUAZUQUE | R131: Persona Natural | W131: 60000000 | Y131: 1 | Z131: 2700000 | AA131: 62700000 | AB131: 56430000 | AC131: 2022-01-27 | AD131: 2022-02-04 | AE131: 2023-01-03 | AF131: 333 | AM131: Terminado | AN131: 0.9
A132: CPS-121-2022 | B132: 2022 | C132: FDRS-CD-121-2022 | D132: https://community.secop.gov.co/Public/Tendering/OpportunityDetail/Index?noticeUID=CO1.NTC.2756931&isFromPublicArea=True&isModal=False | E132: Contratos de prestación de servicios profesionales y de apoyo a la gestión | F132: Contratación directa | G132: Prestación de servicios profesionales y de apoyo a la gestión, o para la ejecución de trabajos artísticos que sólo puedan encomendarse a determinadas personas naturales | H132: PRESTAR LOS SERVICIOS TÉCNICOS ADMINISTRATIVOS AL ÁREA DE GESTIÓN DE DESARROLLO LOCAL, EN LA GESTIÓN CULTURAL, DE RECREACIÓN Y DEPORTE DE LA LOCALIDAD DE SUMAPAZ | I132: Inversión | J132: Un nuevo contrato social y ambiental para la Bogotá del Siglo XXI | K132: 20 | L132: =IF(ISERROR(VLOOKUP(K132,Proposito_programa!$C$2:$E$59,2,FALSE))," ",VLOOKUP(K132,Proposito_programa!$C$2:$E$59,2,FALSE)) -> Bogotá, referente en cultura, deporte, recreación y actividad física, con parques para el desarrollo y la salud | M132: =IF(ISERROR(VLOOKUP(K132,Proposito_programa!$C$2:$E$59,3,FALSE))," ",VLOOKUP(K132,Proposito_programa!$C$2:$E$59,3,FALSE)) -> Propósito 1: Hacer un nuevo contrato social para incrementar la inclusión social, productiva y política | N132: 1590 | O132: 1 | P132: 1022972630 | Q132: DIYER GERARDO PRIETO HURTADO | R132: Persona Natural | W132: 15500000 | Y132: 1 | Z132: 7750000 | AA132: 23250000 | AB132: 23250000 | AC132: 2022-01-27 | AD132: 2022-02-02 | AE132: 2022-07-01 | AF132: 149 | AG132: 1 | AH132: 75 | AM132: Terminado | AN132: 1
A133: CPS-122-2022 | B133: 2022 | C133: FDRS-CD-122-2022 | D133: https://community.secop.gov.co/Public/Tendering/OpportunityDetail/Index?noticeUID=CO1.NTC.2760099&isFromPublicArea=True&isModal=False | E133: Contratos de prestación de servicios profesionales y de apoyo a la gestión | F133: Contratación directa | G133: Prestación de servicios profesionales y de apoyo a la gestión, o para la ejecución de trabajos artísticos que sólo puedan encomendarse a determinadas personas naturales | H133: PRESTAR LOS SERVICIOS COMO AUXILIAR ADMINISTRATIVA EN LA SEDE DE BETANIA | I133: Inversión | J133: Un nuevo contrato social y ambiental para la Bogotá del Siglo XXI | K133: 57 | L133: =IF(ISERROR(VLOOKUP(K133,Proposito_programa!$C$2:$E$59,2,FALSE))," ",VLOOKUP(K133,Proposito_programa!$C$2:$E$59,2,FALSE)) -> Gestión pública local | M133: =IF(ISERROR(VLOOKUP(K133,Proposito_programa!$C$2:$E$59,3,FALSE))," ",VLOOKUP(K133,Proposito_programa!$C$2:$E$59,3,FALSE)) -> Propósito 5: Construir Bogotá - Región con gobierno abierto, transparente y ciudadanía consciente | N133: 1696 | O133: 1 | P133: 1000691517 | Q133: LAURA XIMENA RUBIANO CARRILLO | R133: Persona Natural | W133: 29700000 | AA133: 29700000 | AB133: 27000000 | AC133: 2022-01-27 | AD133: 2022-02-01 | AE133: 2022-12-31 | AF133: 333 | AM133: Terminado | AN133: 0.9090909091
A134: CPS-123-2022 | B134: 2022 | C134: FDRS-CD-123-2022 | D134: https://community.secop.gov.co/Public/Tendering/OpportunityDetail/Index?noticeUID=CO1.NTC.2755438&isFromPublicArea=True&isModal=False | E134: Contratos de prestación de servicios profesionales y de apoyo a la gestión | F134: Contratación directa | G134: Prestación de servicios profesionales y de apoyo a la gestión, o para la ejecución de trabajos artísticos que sólo puedan encomendarse a determinadas personas naturales | H134: PRESTAR LOS SERVICIOS PROFESIONALES PARA BRINDAR APOYO PSICOSOCIAL Y EMOCIONAL A LAS VÍCTIMAS DEL CONFFLICTO ARMADO DE LA LOCALIDAD DE SUMAPAZ EN EL MARCO DEL SIVJRNR | I134: Inversión | J134: Un nuevo contrato social y ambiental para la Bogotá del Siglo XXI | K134: 39 | L134: =IF(ISERROR(VLOOKUP(K134,Proposito_programa!$C$2:$E$59,2,FALSE))," ",VLOOKUP(K134,Proposito_programa!$C$2:$E$59,2,FALSE)) -> Bogotá territorio de paz y atención integral a las víctimas del conflicto armado | M134: =IF(ISERROR(VLOOKUP(K134,Proposito_programa!$C$2:$E$59,3,FALSE))," ",VLOOKUP(K134,Proposito_programa!$C$2:$E$59,3,FALSE)) -> Propósito 3: Inspirar confianza y legitimidad para vivir sin miedo y ser epicentro de cultura ciudadana, paz y reconciliación | N134: 1672 | O134: 1 | P134: 1073170778 | Q134: MARIA CAMILA RAMIREZ QUIÑONEZ | R134: Persona Natural | W134: 62700000 | AA134: 62700000 | AB134: 56430000 | AC134: 2022-01-27 | AD134: 2022-02-04 | AE134: 2023-01-03 | AF134: 333 | AM134: Terminado | AN134: 0.9
A135: CPS-124-2022 | B135: 2022 | C135: FDRS-CD-124-2022 | D135: https://community.secop.gov.co/Public/Tendering/OpportunityDetail/Index?noticeUID=CO1.NTC.2756453&isFromPublicArea=True&isModal=False | E135: Contratos de prestación de servicios profesionales y de apoyo a la gestión | F135: Contratación directa | G135: Prestación de servicios profesionales y de apoyo a la gestión, o para la ejecución de trabajos artísticos que sólo puedan encomendarse a determinadas personas naturales | H135: PRESTAR LOS SERVICIOS PROFESIONALES JURÍDICOS Y LEGALES AL ÁREA DE GESTIÓN POLICIVA-JURÍDICA DE LA ALCALDÍA LOCAL DE SUMAPAZ | I135: Inversión | J135: Un nuevo contrato social y ambiental para la Bogotá del Siglo XXI | K135: 57 | L135: =IF(ISERROR(VLOOKUP(K135,Proposito_programa!$C$2:$E$59,2,FALSE))," ",VLOOKUP(K135,Proposito_programa!$C$2:$E$59,2,FALSE)) -> Gestión pública local | M135: =IF(ISERROR(VLOOKUP(K135,Proposito_programa!$C$2:$E$59,3,FALSE))," ",VLOOKUP(K135,Proposito_programa!$C$2:$E$59,3,FALSE)) -> Propósito 5: Construir Bogotá - Región con gobierno abierto, transparente y ciudadanía consciente | N135: 1696 | O135: 1 | P135: 52790989 | Q135: SANDRA MILENA MURCIA DURAN | R135: Persona Natural | W135: 30000000 | AA135: 30000000 | AB135: 29999999 | AC135: 2022-01-27 | AD135: 2022-01-27 | AE135: 2022-07-26 | AF135: 180 | AI135: 39720484 | AJ135: ANITA CUBIDES | AK135: 2022-04-04 | AL135: 18833333 | AM135: Terminado | AN135: 0.9999999667
A136: CPS-125-2022 | B136: 2022 | C136: FDRS-CD-125-2022 | D136: https://community.secop.gov.co/Public/Tendering/OpportunityDetail/Index?noticeUID=CO1.NTC.2762500&isFromPublicArea=True&isModal=False | E136: Contratos de prestación de servicios profesionales y de apoyo a la gestión | F136: Contratación directa | G136: Prestación de servicios profesionales y de apoyo a la gestión, o para la ejecución de trabajos artísticos que sólo puedan encomendarse a determinadas personas naturales | H136: PRESTAR LOS SERVICIOS PROFESIONALES VETERINARIOS PARA EL FORTALECIMIENTO DE LAS ACTIVIDADES DE BIENESTAR Y PROTECCIÓN ANIMAL EN LA LOCALIDAD DE SUMAPAZ | I136: Inversión | J136: Un nuevo contrato social y ambiental para la Bogotá del Siglo XXI | K136: 34 | L136: =IF(ISERROR(VLOOKUP(K136,Proposito_programa!$C$2:$E$59,2,FALSE))," ",VLOOKUP(K136,Proposito_programa!$C$2:$E$59,2,FALSE)) -> Bogotá protectora de los animales | M136: =IF(ISERROR(VLOOKUP(K136,Proposito_programa!$C$2:$E$59,3,FALSE))," ",VLOOKUP(K136,Proposito_programa!$C$2:$E$59,3,FALSE)) -> Propósito 2 : Cambiar Nuestros Hábitos de Vida para Reverdecer a Bogotá y Adaptarnos y Mitigar la Crisis Climática | N136: 1666 | O136: 1 | P136: 1018439664 | Q136: EDITH ANGELICA JIMENEZ GONZALEZ. | R136: Persona Natural | W136: 51700000 | AA136: 51700000 | AB136: 46530000 | AC136: 2022-01-28 | AD136: 2022-02-04 | AE136: 2023-01-03 | AF136: 333 | AM136: Terminado | AN136: 0.9
A137: CPS-126-2022 | B137: 2022 | C137: FDRS-CD-126-2022 | D137: https://community.secop.gov.co/Public/Tendering/OpportunityDetail/Index?noticeUID=CO1.NTC.2757540&isFromPublicArea=True&isModal=False | E137: Contratos de prestación de servicios profesionales y de apoyo a la gestión | F137: Contratación directa | G137: Prestación de servicios profesionales y de apoyo a la gestión, o para la ejecución de trabajos artísticos que sólo puedan encomendarse a determinadas personas naturales | H137: PRESTAR LOS SERVICIOS PROFESIONALES PARA ORIENTAR JURÍDICAMENTE A LAS VÍCTIMAS DEL CONFLICTO ARMADO DE LA LOCALIDAD DE SUMAPAZ EN EL MARCO DEL SIVJRNR | I137: Inversión | J137: Un nuevo contrato social y ambiental para la Bogotá del Siglo XXI | K137: 39 | L137: =IF(ISERROR(VLOOKUP(K137,Proposito_programa!$C$2:$E$59,2,FALSE))," ",VLOOKUP(K137,Proposito_programa!$C$2:$E$59,2,FALSE)) -> Bogotá territorio de paz y atención integral a las víctimas del conflicto armado | M137: =IF(ISERROR(VLOOKUP(K137,Proposito_programa!$C$2:$E$59,3,FALSE))," ",VLOOKUP(K137,Proposito_programa!$C$2:$E$59,3,FALSE)) -> Propósito 3: Inspirar confianza y legitimidad para vivir sin miedo y ser epicentro de cultura ciudadana, paz y reconciliación | N137: 1672 | O137: 1 | P137: 79705458 | Q137: LUIS GABRIEL RINCON RODRIGUEZ | R137: Persona Natural | W137: 60500000 | AA137: 60500000 | AB137: 54450000 | AC137: 2022-01-27 | AD137: 2022-02-04 | AE137: 2023-01-03 | AF137: 333 | AM137: Terminado | AN137: 0.9
A138: CPS-127-2022 | B138: 2022 | C138: FDRS-CD-127-2022 | D138: https://community.secop.gov.co/Public/Tendering/OpportunityDetail/Index?noticeUID=CO1.NTC.2761030&isFromPublicArea=True&isModal=False | E138: Contratos de prestación de servicios profesionales y de apoyo a la gestión | F138: Contratación directa | G138: Prestación de servicios profesionales y de apoyo a la gestión, o para la ejecución de trabajos artísticos que sólo puedan encomendarse a determinadas personas naturales | H138: PRESTAR LOS SERVICIOS COMO AUXILIAR ADMINISTRATIVO PARA EL CENTRO DE DOCUMENTACIÓN E INFORMACIÓN C.D.I. DE LA ALCALDÍA LOCAL DE SUMAPAZ | I138: Inversión | J138: Un nuevo contrato social y ambiental para la Bogotá del Siglo XXI | K138: 57 | L138: =IF(ISERROR(VLOOKUP(K138,Proposito_programa!$C$2:$E$59,2,FALSE))," ",VLOOKUP(K138,Proposito_programa!$C$2:$E$59,2,FALSE)) -> Gestión pública local | M138: =IF(ISERROR(VLOOKUP(K138,Proposito_programa!$C$2:$E$59,3,FALSE))," ",VLOOKUP(K138,Proposito_programa!$C$2:$E$59,3,FALSE)) -> Propósito 5: Construir Bogotá - Región con gobierno abierto, transparente y ciudadanía consciente | N138: 1696 | O138: 1 | P138: 1014306050 | Q138: PAULA VALENTINA ARIZA HOLGUIN | R138: Persona Natural | W138: 29700000 | AA138: 29700000 | AB138: 26910000 | AC138: 2022-01-27 | AD138: 2022-02-02 | AE138: 2023-01-01 | AF138: 333 | AM138: Terminado | AN138: 0.9060606061
A139: CPS-130-2022 | B139: 2022 | C139: FDRS-CD-130-2022 | D139: https://community.secop.gov.co/Public/Tendering/OpportunityDetail/Index?noticeUID=CO1.NTC.2759668&isFromPublicArea=True&isModal=False | E139: Contratos de prestación de servicios profesionales y de apoyo a la gestión | F139: Contratación directa | G139: Prestación de servicios profesionales y de apoyo a la gestión, o para la ejecución de trabajos artísticos que sólo puedan encomendarse a determinadas personas naturales | H139: PRESTAR LOS SERVICIOS PROFESIONALES JURIDICOS PARA APOYAR LOS ASUNTOS PRECONTRACTUALES, CONTRACTUALES Y POSTCONTRACTUALES DEL AREA DE GESTION DE DESARROLLO LOCAL DE LA ALCALDIA LOCAL DE SUMAPAZ | I139: Inversión | J139: Un nuevo contrato social y ambiental para la Bogotá del Siglo XXI | K139: 57 | L139: =IF(ISERROR(VLOOKUP(K139,Proposito_programa!$C$2:$E$59,2,FALSE))," ",VLOOKUP(K139,Proposito_programa!$C$2:$E$59,2,FALSE)) -> Gestión pública local | M139: =IF(ISERROR(VLOOKUP(K139,Proposito_programa!$C$2:$E$59,3,FALSE))," ",VLOOKUP(K139,Proposito_programa!$C$2:$E$59,3,FALSE)) -> Propósito 5: Construir Bogotá - Región con gobierno abierto, transparente y ciudadanía consciente | N139: 1696 | O139: 1 | P139: 9695442 | Q139: LUIS EDUARDO VILLEGAS GIL | R139: Persona Natural | W139: 66000000 | Y139: 1 | Z139: 6000000 | AA139: 72000000 | AB139: 59600000 | AC139: 2022-01-27 | AD139: 2022-02-02 | AE139: 2023-01-01 | AF139: 333 | AG139: 1 | AH139: 30 | AI139: 1057546420 | AJ139: CAMILO ERNESTO GRANADOS VELASCO | AK139: 2022-03-10 | AL139: 59400000 | AM139: En ejecución | AN139: 0.8277777778
A140: CPS-131-2022 | B140: 2022 | C140: FDRS-CD-131-2022 | D140: https://community.secop.gov.co/Public/Tendering/OpportunityDetail/Index?noticeUID=CO1.NTC.2761429&isFromPublicArea=True&isModal=False | E140: Contratos de prestación de servicios profesionales y de apoyo a la gestión | F140: Contratación directa | G140: Prestación de servicios profesionales y de apoyo a la gestión, o para la ejecución de trabajos artísticos que sólo puedan encomendarse a determinadas personas naturales | H140: PRESTAR LOS SERVICIOS DE APOYO ADMINISTRATIVO EN LOS PROCESOS QUE SE ADELANTAN EN EL ALMACÉN DE LA ALCALDÍA LOCAL DE SUMAPAZ | I140: Inversión | J140: Un nuevo contrato social y ambiental para la Bogotá del Siglo XXI | K140: 57 | L140: =IF(ISERROR(VLOOKUP(K140,Proposito_programa!$C$2:$E$59,2,FALSE))," ",VLOOKUP(K140,Proposito_programa!$C$2:$E$59,2,FALSE)) -> Gestión pública local | M140: =IF(ISERROR(VLOOKUP(K140,Proposito_programa!$C$2:$E$59,3,FALSE))," ",VLOOKUP(K140,Proposito_programa!$C$2:$E$59,3,FALSE)) -> Propósito 5: Construir Bogotá - Región con gobierno abierto, transparente y ciudadanía consciente | N140: 1696 | O140: 1 | P140: 1072661424 | Q140: CINDY GERALDINE GARCIA MORENO | R140: Persona Natural | W140: 29700000 | Y140: 1 | Z140: 2430000 | AA140: 32130000 | AB140: 26730000 | AC140: 2022-01-27 | AD140: 2022-02-04 | AE140: 2023-01-03 | AF140: 333 | AG140: 1 | AH140: 27 | AM140: En ejecución | AN140: 0.8319327731
A141: CPS-132-2022 | B141: 2022 | C141: FDRS-CD-132-2022 | D141: https://community.secop.gov.co/Public/Tendering/OpportunityDetail/Index?noticeUID=CO1.NTC.2786706&isFromPublicArea=True&isModal=False | E141: Contratos de prestación de servicios profesionales y de apoyo a la gestión | F141: Contratación directa | G141: Prestación de servicios profesionales y de apoyo a la gestión, o para la ejecución de trabajos artísticos que sólo puedan encomendarse a determinadas personas naturales | H141: PRESTAR LOS SERVICIOS PROFESIONALES PARA ORIENTAR A LAS VICTIMAS DEL CONFLICTO ARMADO DE LA LOCALIDAD DE SUMAPAZ, EN LA DEFINICION DE ESTRATEGIAS COMERCIALES A IMPLEMENTAR PARA LA ESTRUCTURACION Y PUESTA EN MARCHA DE SUS INICIATIVAS PRODUCTIVAS | I141: Inversión | J141: Un nuevo contrato social y ambiental para la Bogotá del Siglo XXI | K141: 39 | L141: =IF(ISERROR(VLOOKUP(K141,Proposito_programa!$C$2:$E$59,2,FALSE))," ",VLOOKUP(K141,Proposito_programa!$C$2:$E$59,2,FALSE)) -> Bogotá territorio de paz y atención integral a las víctimas del conflicto armado | M141: =IF(ISERROR(VLOOKUP(K141,Proposito_programa!$C$2:$E$59,3,FALSE))," ",VLOOKUP(K141,Proposito_programa!$C$2:$E$59,3,FALSE)) -> Propósito 3: Inspirar confianza y legitimidad para vivir sin miedo y ser epicentro de cultura ciudadana, paz y reconciliación | N141: 1672 | O141: 1 | P141: 1014233936 | Q141: NAKARITH SANCHEZ USEDA | R141: Persona Natural | W141: 62700000 | AA141: 62700000 | AB141: 56620000 | AC141: 2022-01-28 | AD141: 2022-02-03 | AE141: 2023-01-02 | AF141: 333 | AM141: Terminado | AN141: 0.903030303
A142: CPS-133-2022 | B142: 2022 | C142: FDRS-CD-133-2022 | D142: https://community.secop.gov.co/Public/Tendering/OpportunityDetail/Index?noticeUID=CO1.NTC.2771569&isFromPublicArea=True&isModal=False | E142: Contratos de prestación de servicios profesionales y de apoyo a la gestión | F142: Contratación directa | G142: Prestación de servicios profesionales y de apoyo a la gestión, o para la ejecución de trabajos artísticos que sólo puedan encomendarse a determinadas personas naturales | H142: PRESTAR LOS SERVICIOS DE APOYO ADMINISTRATIVO Y TÉCNICO AL ÁREA DE GESTIÓN DE DESARROLLO LOCAL DE SUMAPAZ Y AL DESPACHO DEL ALCALDE LOCAL | I142: Inversión | J142: Un nuevo contrato social y ambiental para la Bogotá del Siglo XXI | K142: 57 | L142: =IF(ISERROR(VLOOKUP(K142,Proposito_programa!$C$2:$E$59,2,FALSE))," ",VLOOKUP(K142,Proposito_programa!$C$2:$E$59,2,FALSE)) -> Gestión pública local | M142: =IF(ISERROR(VLOOKUP(K142,Proposito_programa!$C$2:$E$59,3,FALSE))," ",VLOOKUP(K142,Proposito_programa!$C$2:$E$59,3,FALSE)) -> Propósito 5: Construir Bogotá - Región con gobierno abierto, transparente y ciudadanía consciente | N142: 1696 | O142: 1 | P142: 1075237430 | Q142: KAREN SOFIA SILVA PRADA | R142: Persona Natural | W142: 44000000 | AA142: 44000000 | AB142: 39600000 | AC142: 2022-01-28 | AD142: 2022-02-04 | AE142: 2023-01-03 | AF142: 333 | AM142: Terminado | AN142: 0.9
A143: CPS-134-2022 | B143: 2022 | C143: FDRS-CD-134-2022 | D143: https://community.secop.gov.co/Public/Tendering/OpportunityDetail/Index?noticeUID=CO1.NTC.2783234&isFromPublicArea=True&isModal=False | E143: Contratos de prestación de servicios profesionales y de apoyo a la gestión | F143: Contratación directa | G143: Prestación de servicios profesionales y de apoyo a la gestión, o para la ejecución de trabajos artísticos que sólo puedan encomendarse a determinadas personas naturales | H143: PRESTAR LOS SERVICIOS PROFESIONALES JURÍDICOS PARA APOYAR LOS ASUNTOS LEGALES DE LOS PROCESOS DEL SISTEMA VIAL DE LA ALCALDÍA LOCAL DE SUMAPAZ | I143: Inversión | J143: Un nuevo contrato social y ambiental para la Bogotá del Siglo XXI | K143: 57 | L143: =IF(ISERROR(VLOOKUP(K143,Proposito_programa!$C$2:$E$59,2,FALSE))," ",VLOOKUP(K143,Proposito_programa!$C$2:$E$59,2,FALSE)) -> Gestión pública local | M143: =IF(ISERROR(VLOOKUP(K143,Proposito_programa!$C$2:$E$59,3,FALSE))," ",VLOOKUP(K143,Proposito_programa!$C$2:$E$59,3,FALSE)) -> Propósito 5: Construir Bogotá - Región con gobierno abierto, transparente y ciudadanía consciente | N143: 1696 | O143: 1 | P143: 1019076136 | Q143: CAMILA FERNANDA SAAVEDRA SALINAS | R143: Persona Natural | W143: 66000000 | Y143: 1 | Z143: 4800000 | AA143: 70800000 | AB143: 58800000 | AC143: 2022-01-28 | AD143: 2022-02-07 | AE143: 2023-01-06 | AF143: 333 | AG143: 1 | AH143: 24 | AM143: En ejecución | AN143: 0.8305084746
A144: CPS-135-2022 | B144: 2022 | C144: FDRS-CD-135-2022 | D144: https://community.secop.gov.co/Public/Tendering/OpportunityDetail/Index?noticeUID=CO1.NTC.2802503&isFromPublicArea=True&isModal=False | E144: Contratos de prestación de servicios profesionales y de apoyo a la gestión | F144: Contratación directa | G144: Prestación de servicios profesionales y de apoyo a la gestión, o para la ejecución de trabajos artísticos que sólo puedan encomendarse a determinadas personas naturales | H144: PRESTAR LOS SERVICIOS PROFESIONALES DE ACOMPAÑAMIENTO PSICOSOCIAL PARA APOYAR LA EJECUCIÓN DE LA META ATENDER A 200 PERSONAS EN ESTRATEGIAS DE ACCESO A LA JUSTICIA INTEGRAL EN LA LOCALIDAD DE SUMAPAZ | I144: Inversión | J144: Un nuevo contrato social y ambiental para la Bogotá del Siglo XXI | K144: 48 | L144: =IF(ISERROR(VLOOKUP(K144,Proposito_programa!$C$2:$E$59,2,FALSE))," ",VLOOKUP(K144,Proposito_programa!$C$2:$E$59,2,FALSE)) -> Plataforma institucional para la seguridad y justicia | M144: =IF(ISERROR(VLOOKUP(K144,Proposito_programa!$C$2:$E$59,3,FALSE))," ",VLOOKUP(K144,Proposito_programa!$C$2:$E$59,3,FALSE)) -> Propósito 3: Inspirar confianza y legitimidad para vivir sin miedo y ser epicentro de cultura ciudadana, paz y reconciliación | N144: 1683 | O144: 1 | P144: 1083553855 | Q144: JULISSA JULIETTE DOMINGUEZ ARAUJO | R144: Persona Natural | W144: 50600000 | AA144: 50600000 | AB144: 45693333 | AC144: 2022-02-01 | AD144: 2022-02-03 | AE144: 2023-01-02 | AF144: 333 | AM144: Terminado | AN144: =IF(ISERROR(AB144/AA144),"-",(AB144/AA144)) -> 0.9030302964
A145: CPS-136-2022 | B145: 2022 | C145: FDRS-CD-136-2022 | D145: https://community.secop.gov.co/Public/Tendering/OpportunityDetail/Index?noticeUID=CO1.NTC.2784097&isFromPublicArea=True&isModal=False | E145: Contratos de prestación de servicios profesionales y de apoyo a la gestión | F145: Contratación directa | G145: Prestación de servicios profesionales y de apoyo a la gestión, o para la ejecución de trabajos artísticos que sólo puedan encomendarse a determinadas personas naturales | H145: PRESTAR LOS SERVICIOS PROFESIONALES PARA APOYAR LA PLANEACIÓN, EJECUCIÓN Y SEGUIMIENTO DEL PROYECTO DE INVERSIÓN, RELACIONADO CON SALONES COMUNALES QUE EJECUTE EL FONDO DE DESARROLLO LOCAL DE SUMAPAZ | I145: Inversión | J145: Un nuevo contrato social y ambiental para la Bogotá del Siglo XXI | K145: 55 | L145: =IF(ISERROR(VLOOKUP(K145,Proposito_programa!$C$2:$E$59,2,FALSE))," ",VLOOKUP(K145,Proposito_programa!$C$2:$E$59,2,FALSE)) -> Fortalecimiento de cultura ciudadana y su institucionalidad | M145: =IF(ISERROR(VLOOKUP(K145,Proposito_programa!$C$2:$E$59,3,FALSE))," ",VLOOKUP(K145,Proposito_programa!$C$2:$E$59,3,FALSE)) -> Propósito 5: Construir Bogotá - Región con gobierno abierto, transparente y ciudadanía consciente | N145: 1691 | O145: 1 | P145: 1018502056 | Q145: JUAN CAMILO QUINTERO RESTREPO | R145: Persona Natural | W145: 50600000 | AA145: 50600000 | AB145: 45540000 | AC145: 2022-01-28 | AD145: 2022-02-04 | AE145: 2023-01-03 | AF145: 333 | AM145: Terminado | AN145: 0.9
A146: CPS-137-2022 | B146: 2022 | C146: FDRS-CD-137-2022 | D146: https://community.secop.gov.co/Public/Tendering/OpportunityDetail/Index?noticeUID=CO1.NTC.2782321&isFromPublicArea=True&isModal=False | E146: Contratos de prestación de servicios profesionales y de apoyo a la gestión | F146: Contratación directa | G146: Prestación de servicios profesionales y de apoyo a la gestión, o para la ejecución de trabajos artísticos que sólo puedan encomendarse a determinadas personas naturales | H146: PRESTAR LOS SERVICIOS COMO AUXILIAR ADMINISTRATIVO AL ÁREA DE GESTIÓN DEL DESARROLLO EN LA ALCALDÍA LOCAL DE SUMAPAZ | I146: Inversión | J146: Un nuevo contrato social y ambiental para la Bogotá del Siglo XXI | K146: 57 | L146: =IF(ISERROR(VLOOKUP(K146,Proposito_programa!$C$2:$E$59,2,FALSE))," ",VLOOKUP(K146,Proposito_programa!$C$2:$E$59,2,FALSE)) -> Gestión pública local | M146: =IF(ISERROR(VLOOKUP(K146,Proposito_programa!$C$2:$E$59,3,FALSE))," ",VLOOKUP(K146,Proposito_programa!$C$2:$E$59,3,FALSE)) -> Propósito 5: Construir Bogotá - Región con gobierno abierto, transparente y ciudadanía consciente | N146: 1696 | O146: 1 | P146: 1023019741 | Q146: CARLOS JULIO MACANA SECHAGUA | R146: Persona Natural | W146: 29700000 | AA146: 29700000 | AB146: 26820000 | AC146: 2022-01-28 | AD146: 2022-02-03 | AE146: 2023-01-02 | AF146: 333 | AM146: Terminado | AN146: 0.903030303
A147: CPS-138-2022 | B147: 2022 | C147: FDRS-CD-138-202 | D147: https://community.secop.gov.co/Public/Tendering/OpportunityDetail/Index?noticeUID=CO1.NTC.2782166&isFromPublicArea=True&isModal=False | E147: Contratos de prestación de servicios profesionales y de apoyo a la gestión | F147: Contratación directa | G147: Prestación de servicios profesionales y de apoyo a la gestión, o para la ejecución de trabajos artísticos que sólo puedan encomendarse a determinadas personas naturales | H147: PRESTAR LOS SERVICIOS COMO AUXILIAR ADMINISTRATIVO PARA EL CENTRO DE DOCUMENTACIÓN E INFORMACIÓN C.D.I, DE LA ALCALDÍA LOCAL DE SUMAPAZ | I147: Inversión | J147: Un nuevo contrato social y ambiental para la Bogotá del Siglo XXI | K147: 57 | L147: =IF(ISERROR(VLOOKUP(K147,Proposito_programa!$C$2:$E$59,2,FALSE))," ",VLOOKUP(K147,Proposito_programa!$C$2:$E$59,2,FALSE)) -> Gestión pública local | M147: =IF(ISERROR(VLOOKUP(K147,Proposito_programa!$C$2:$E$59,3,FALSE))," ",VLOOKUP(K147,Proposito_programa!$C$2:$E$59,3,FALSE)) -> Propósito 5: Construir Bogotá - Región con gobierno abierto, transparente y ciudadanía consciente | N147: 1696 | O147: 1 | P147: 1032452416 | Q147: LICETH ANDREA VARGAS VANEGAS | R147: Persona Natural | W147: 29700000 | Y147: 1 | Z147: 2700000 | AA147: 32400000 | AB147: 27000000 | AC147: 2022-01-28 | AD147: 2022-02-01 | AE147: 2022-12-31 | AF147: 333 | AG147: 1 | AH147: 30 | AM147: En ejecución | AN147: 0.8333333333
A148: CPS-139-2022 | B148: 2022 | C148: FDRS-CD-139-2022 | D148: https://community.secop.gov.co/Public/Tendering/OpportunityDetail/Index?noticeUID=CO1.NTC.2785917&isFromPublicArea=True&isModal=False | E148: Contratos de prestación de servicios profesionales y de apoyo a la gestión | F148: Contratación directa | G148: Prestación de servicios profesionales y de apoyo a la gestión, o para la ejecución de trabajos artísticos que sólo puedan encomendarse a determinadas personas naturales | H148: PRESTAR LOS SERVICIOS DE APOYO ADMINISTRATIVO Y LOGÍSTICO EN LA EJECUCIÓN DE LOS PROYECTOS DE INVERSIÓN RELACIONADOS CON EL ACCESO A LA JUSTICIA INTEGRAL DE LA ALCALDÍA LOCAL DE SUMAPAZ | I148: Inversión | J148: Un nuevo contrato social y ambiental para la Bogotá del Siglo XXI | K148: 48 | L148: =IF(ISERROR(VLOOKUP(K148,Proposito_programa!$C$2:$E$59,2,FALSE))," ",VLOOKUP(K148,Proposito_programa!$C$2:$E$59,2,FALSE)) -> Plataforma institucional para la seguridad y justicia | M148: =IF(ISERROR(VLOOKUP(K148,Proposito_programa!$C$2:$E$59,3,FALSE))," ",VLOOKUP(K148,Proposito_programa!$C$2:$E$59,3,FALSE)) -> Propósito 3: Inspirar confianza y legitimidad para vivir sin miedo y ser epicentro de cultura ciudadana, paz y reconciliación | N148: 1683 | O148: 1 | P148: 1030531958 | Q148: FREDY ALEXANDER RUIZ CASTRO | R148: Persona Natural | W148: 29700000 | AA148: =+W148+X148+Z148 -> 29700000 | AB148: 26910000 | AC148: 2022-01-28 | AD148: 2022-02-02 | AE148: 2023-01-01 | AF148: 333 | AM148: Terminado | AN148: 0.9060606061
A149: CPS-140-2022 | B149: 2022 | C149: FDRS-CD-140-2022 | D149: https://community.secop.gov.co/Public/Tendering/OpportunityDetail/Index?noticeUID=CO1.NTC.2806792&isFromPublicArea=True&isModal=False | E149: Contratos de prestación de servicios profesionales y de apoyo a la gestión | F149: Contratación directa | G149: Prestación de servicios profesionales y de apoyo a la gestión, o para la ejecución de trabajos artísticos que sólo puedan encomendarse a determinadas personas naturales | H149: PRESTAR LOS SERVICIOS PROFESIONALES PARA EL DESARROLLO DE ACCIONES DE EDUCACIÓN AMBIENTAL FOCALIZADA A LA POBLACIÓN DE LA LOCALIDAD DE SUMAPAZ | I149: Inversión | J149: Un nuevo contrato social y ambiental para la Bogotá del Siglo XXI | K149: 28 | L149: =IF(ISERROR(VLOOKUP(K149,Proposito_programa!$C$2:$E$59,2,FALSE))," ",VLOOKUP(K149,Proposito_programa!$C$2:$E$59,2,FALSE)) -> Bogotá protectora de sus recursos naturales | M149: =IF(ISERROR(VLOOKUP(K149,Proposito_programa!$C$2:$E$59,3,FALSE))," ",VLOOKUP(K149,Proposito_programa!$C$2:$E$59,3,FALSE)) -> Propósito 2 : Cambiar Nuestros Hábitos de Vida para Reverdecer a Bogotá y Adaptarnos y Mitigar la Crisis Climática | N149: 1648 | O149: 1 | P149: 1014280764 | Q149: LUIS MARIO REYES MUNEVAR | R149: Persona Natural | W149: 50600000 | Y149: 1 | Z149: 4600000 | AA149: 55200000 | AB149: 38180000 | AC149: 2022-02-02 | AD149: 2022-02-16 | AE149: 2023-01-15 | AF149: 333 | AG149: 1 | AH149: 30 | AM149: En ejecución | AN149: 0.6916666667
A150: CPS-141-2022 | B150: 2022 | C150: FDRS-CD- 141-2022 | D150: https://community.secop.gov.co/Public/Tendering/OpportunityDetail/Index?noticeUID=CO1.NTC.2784365&isFromPublicArea=True&isModal=False | E150: Contratos de prestación de servicios profesionales y de apoyo a la gestión | F150: Contratación directa | G150: Prestación de servicios profesionales y de apoyo a la gestión, o para la ejecución de trabajos artísticos que sólo puedan encomendarse a determinadas personas naturales | H150: PRESTAR LOS SERVICIOS PROFESIONALES AL ÁREA DE GESTIÓN DEL DESARROLLO LOCAL, PARA APOYAR LOS FACTORES ECONÓMICOS Y FINANCIEROS EN LA GESTIÓN CONTRACTUAL DEL FONDO DE DESARROLLO RURAL DE SUMAPAZ | I150: Inversión | J150: Un nuevo contrato social y ambiental para la Bogotá del Siglo XXI | K150: 57 | L150: =IF(ISERROR(VLOOKUP(K150,Proposito_programa!$C$2:$E$59,2,FALSE))," ",VLOOKUP(K150,Proposito_programa!$C$2:$E$59,2,FALSE)) -> Gestión pública local | M150: =IF(ISERROR(VLOOKUP(K150,Proposito_programa!$C$2:$E$59,3,FALSE))," ",VLOOKUP(K150,Proposito_programa!$C$2:$E$59,3,FALSE)) -> Propósito 5: Construir Bogotá - Región con gobierno abierto, transparente y ciudadanía consciente | N150: 1696 | O150: 1 | P150: 9098666 | Q150: JULIO COLLINS GOMEZ | R150: Persona Natural | W150: 71500000 | X150: -36833334 | AA150: 34666666 | AB150: 34666666 | AC150: 2022-01-28 | AD150: 2022-02-02 | AE150: 2023-01-01 | AF150: 333 | AM150: Terminado | AN150: 1
A151: CPS-142-2022 | B151: 2022 | C151: FDRS-CD-142-2022 | D151: https://community.secop.gov.co/Public/Tendering/OpportunityDetail/Index?noticeUID=CO1.NTC.2785371&isFromPublicArea=True&isModal=False | E151: Contratos de prestación de servicios profesionales y de apoyo a la gestión | F151: Contratación directa | G151: Prestación de servicios profesionales y de apoyo a la gestión, o para la ejecución de trabajos artísticos que sólo puedan encomendarse a determinadas personas naturales | H151: PRESTAR LOS SERVICIOS PROFESIONALES AL ÁREA DE GESTIÓN DE DESARROLLO LOCAL PARA APOYAR LA PLANEACIÓN, EJECUCIÓN Y SEGUIMIENTO DEL PROYECTO DE INVERSIÓN MEJORAMIENTO DE VIVIENDAS | I151: Inversión | J151: Un nuevo contrato social y ambiental para la Bogotá del Siglo XXI | K151: 19 | L151: =IF(ISERROR(VLOOKUP(K151,Proposito_programa!$C$2:$E$59,2,FALSE))," ",VLOOKUP(K151,Proposito_programa!$C$2:$E$59,2,FALSE)) -> Vivienda y entornos dignos en el territorio urbano y rural | M151: =IF(ISERROR(VLOOKUP(K151,Proposito_programa!$C$2:$E$59,3,FALSE))," ",VLOOKUP(K151,Proposito_programa!$C$2:$E$59,3,FALSE)) -> Propósito 1: Hacer un nuevo contrato social para incrementar la inclusión social, productiva y política | N151: 1589 | O151: 1 | P151: 1020802074 | Q151: CRISTHIAN FABIAN LOPEZ CASTRO | R151: Persona Natural | W151: 62700000 | AA151: 62700000 | AB151: 51110000 | AC151: 2022-01-28 | AD151: 2022-02-02 | AE151: 2023-01-01 | AF151: 333 | AM151: Terminado | AN151: 0.8151515152
A152: CPS-143-2022 | B152: 2022 | C152: FDRS-CD-143-2022 | D152: https://community.secop.gov.co/Public/Tendering/OpportunityDetail/Index?noticeUID=CO1.NTC.2784835&isFromPublicArea=True&isModal=False | E152: Contratos de prestación de servicios profesionales y de apoyo a la gestión | F152: Contratación directa | G152: Prestación de servicios profesionales y de apoyo a la gestión, o para la ejecución de trabajos artísticos que sólo puedan encomendarse a determinadas personas naturales | H152: PRESTAR LOS SERVICIOS PROFESIONALES PARA EL DESARROLLO DE ACCIONES DE PLANEACIÓN, SEGUIMIENTO, EJECUCIÓN Y ACOMPAÑAMIENTO DE LOS PROCESOS Y ACTIVIDADES AMBIENTALES QUE SE REQUIERAN POR PARTE DEL FONDO DE DESARROLLO RURAL DE SUMAPAZ | I152: Inversión | J152: Un nuevo contrato social y ambiental para la Bogotá del Siglo XXI | K152: 28 | L152: =IF(ISERROR(VLOOKUP(K152,Proposito_programa!$C$2:$E$59,2,FALSE))," ",VLOOKUP(K152,Proposito_programa!$C$2:$E$59,2,FALSE)) -> Bogotá protectora de sus recursos naturales | M152: =IF(ISERROR(VLOOKUP(K152,Proposito_programa!$C$2:$E$59,3,FALSE))," ",VLOOKUP(K152,Proposito_programa!$C$2:$E$59,3,FALSE)) -> Propósito 2 : Cambiar Nuestros Hábitos de Vida para Reverdecer a Bogotá y Adaptarnos y Mitigar la Crisis Climática | N152: 1648 | O152: 1 | P152: 52432694 | Q152: LUISA FERNANDA LOZANO GRACIA | R152: Persona Natural | W152: 30000000 | AA152: 30000000 | AB152: 30000000 | AC152: 2022-01-28 | AD152: 2022-02-01 | AE152: 2022-07-31 | AF152: 180 | AM152: Terminado | AN152: 1
A153: CPS-144-2022 | B153: 2022 | C153: FDRS-CD-144-2022 | D153: https://community.secop.gov.co/Public/Tendering/OpportunityDetail/Index?noticeUID=CO1.NTC.2804093&isFromPublicArea=True&isModal=False | E153: Contratos de prestación de servicios profesionales y de apoyo a la gestión | F153: Contratación directa | G153: Prestación de servicios profesionales y de apoyo a la gestión, o para la ejecución de trabajos artísticos que sólo puedan encomendarse a determinadas personas naturales | H153: “PRESTAR LOS SERVICIOS COMO AUXILIAR ADMINISTRATIVO PARA EL ÁREA DE GESTIÓN DE DESARROLLO LOCAL, EN LOS TEMAS DE INFRAESTRUCTURA, DE LA ALCALDÍA LOCAL DE SUMAPAZ.” | I153: Inversión | J153: Un nuevo contrato social y ambiental para la Bogotá del Siglo XXI | K153: 49 | L153: =IF(ISERROR(VLOOKUP(K153,Proposito_programa!$C$2:$E$59,2,FALSE))," ",VLOOKUP(K153,Proposito_programa!$C$2:$E$59,2,FALSE)) -> Movilidad segura, sostenible y accesible | M153: =IF(ISERROR(VLOOKUP(K153,Proposito_programa!$C$2:$E$59,3,FALSE))," ",VLOOKUP(K153,Proposito_programa!$C$2:$E$59,3,FALSE)) -> Propósito 4: Hacer de Bogotá Región un modelo de movilidad multimodal, incluyente y sostenible | N153: 1688 | O153: 1 | P153: 1023020151 | Q153: MIGUEL ANTONIO CHAVARRO TORRES | R153: Persona Natural | W153: 29700000 | AA153: 29700000 | AB153: 18900000 | AC153: 2022-02-01 | AD153: 2022-02-01 | AE153: 2022-12-31 | AF153: 333 | AM153: Terminado | AN153: 0.6363636364
A154: CPS-145-2022 | B154: 2022 | C154: FDRS-CD-145-2022 | D154: https://community.secop.gov.co/Public/Tendering/OpportunityDetail/Index?noticeUID=CO1.NTC.2786374&isFromPublicArea=True&isModal=False | E154: Contratos de prestación de servicios profesionales y de apoyo a la gestión | F154: Contratación directa | G154: Prestación de servicios profesionales y de apoyo a la gestión, o para la ejecución de trabajos artísticos que sólo puedan encomendarse a determinadas personas naturales | H154: “PRESTAR LOS SERVICIOS PROFESIONALES PARA ADELANTAR LA PLANEACIÓN, EJECUCIÓN Y SEGUIMIENTO DEL PROYECTO DE INVERSIÓN, RELACIONADO CON SALONES COMUNALES QUE EJECUTE EL FONDO DE DESARROLLO LOCAL DE SUMAPAZ.” | I154: Inversión | J154: Un nuevo contrato social y ambiental para la Bogotá del Siglo XXI | K154: 55 | L154: =IF(ISERROR(VLOOKUP(K154,Proposito_programa!$C$2:$E$59,2,FALSE))," ",VLOOKUP(K154,Proposito_programa!$C$2:$E$59,2,FALSE)) -> Fortalecimiento de cultura ciudadana y su institucionalidad | M154: =IF(ISERROR(VLOOKUP(K154,Proposito_programa!$C$2:$E$59,3,FALSE))," ",VLOOKUP(K154,Proposito_programa!$C$2:$E$59,3,FALSE)) -> Propósito 5: Construir Bogotá - Región con gobierno abierto, transparente y ciudadanía consciente | N154: 1691 | O154: 1 | P154: 79648692 | Q154: WILSON GIOVANNI AGUILAR ALFONSO | R154: Persona Natural | W154: 66000000 | AA154: 66000000 | AB154: 53400000 | AC154: 2022-01-28 | AD154: 2022-03-04 | AE154: 2023-02-03 | AF154: 336 | AI154: 79045687 | AJ154: JOSE ALFREDO VARGAS OCHOA | AK154: 2022-03-01 | AL154: 66000000 | AM154: En ejecución | AN154: 0.8090909091
A155: CPS-146-2022 | B155: 2022 | C155: FDRS-CD-146-2022 | D155: https://community.secop.gov.co/Public/Tendering/OpportunityDetail/Index?noticeUID=CO1.NTC.2793958&isFromPublicArea=True&isModal=False | E155: Contratos de prestación de servicios profesionales y de apoyo a la gestión | F155: Contratación directa | G155: Prestación de servicios profesionales y de apoyo a la gestión, o para la ejecución de trabajos artísticos que sólo puedan encomendarse a determinadas personas naturales | H155: PRESTAR LOS SERVICIOS PROFESIONALES PARA ATENDER EL PROCESO DE ATENCIÓN DE VÍCTIMAS, LEGALIZACIÓN DE PREDIOS, JUSTICIA RESTAURATIVA, ENTRE OTROS, PARA LA ALCALDÍA LOCAL DE SUMAPAZ | I155: Inversión | J155: Un nuevo contrato social y ambiental para la Bogotá del Siglo XXI | K155: 39 | L155: =IF(ISERROR(VLOOKUP(K155,Proposito_programa!$C$2:$E$59,2,FALSE))," ",VLOOKUP(K155,Proposito_programa!$C$2:$E$59,2,FALSE)) -> Bogotá territorio de paz y atención integral a las víctimas del conflicto armado | M155: =IF(ISERROR(VLOOKUP(K155,Proposito_programa!$C$2:$E$59,3,FALSE))," ",VLOOKUP(K155,Proposito_programa!$C$2:$E$59,3,FALSE)) -> Propósito 3: Inspirar confianza y legitimidad para vivir sin miedo y ser epicentro de cultura ciudadana, paz y reconciliación | N155: 1672 | O155: 1 | P155: 52524344 | Q155: DIANA MARCELA ROMERO RUBIO | R155: Persona Natural | W155: 35000000 | Y155: 1 | Z155: 17500000 | AA155: 52500000 | AB155: 52500000 | AC155: 2022-01-28 | AD155: 2022-02-08 | AE155: 2022-07-07 | AF155: 149 | AG155: 1 | AH155: 75 | AM155: Terminado | AN155: 1
A156: CPS-147-2022 | B156: 2022 | C156: FDRS-CD-147-2022 | D156: https://community.secop.gov.co/Public/Tendering/OpportunityDetail/Index?noticeUID=CO1.NTC.2807074&isFromPublicArea=True&isModal=False | E156: Contratos de prestación de servicios profesionales y de apoyo a la gestión | F156: Contratación directa | G156: Prestación de servicios profesionales y de apoyo a la gestión, o para la ejecución de trabajos artísticos que sólo puedan encomendarse a determinadas personas naturales | H156: PRESTAR LOS SERVICIOS PROFESIONALES AL ÁREA DE GESTIÓN DE DESARROLLO LOCAL, PARA EL PROYECTO DE INVERSIÓN ESTRATEGIAS DEL CUIDADO PARA CUIDADORAS, CUIDADORES Y A PERSONAS CON DISCAPACIDAD | I156: Inversión | J156: Un nuevo contrato social y ambiental para la Bogotá del Siglo XXI | K156: 6 | L156: =IF(ISERROR(VLOOKUP(K156,Proposito_programa!$C$2:$E$59,2,FALSE))," ",VLOOKUP(K156,Proposito_programa!$C$2:$E$59,2,FALSE)) -> Sistema Distrital de Cuidado | M156: =IF(ISERROR(VLOOKUP(K156,Proposito_programa!$C$2:$E$59,3,FALSE))," ",VLOOKUP(K156,Proposito_programa!$C$2:$E$59,3,FALSE)) -> Propósito 1: Hacer un nuevo contrato social para incrementar la inclusión social, productiva y política | N156: 1641 | O156: 1 | P156: 1015411473 | Q156: JULY ANDREA TIBOCHA TRIVIÑO | R156: Persona Natural | W156: 36800000 | AA156: 36800000 | AB156: 32047000 | AC156: 2022-02-01 | AD156: 2022-02-02 | AE156: 2022-10-01 | AF156: 241 | AM156: Terminado | AN156: 0.8708423913
A157: CPS-148-2022 | B157: 2022 | C157: FDRS-CD-148-2022 | D157: https://community.secop.gov.co/Public/Tendering/OpportunityDetail/Index?noticeUID=CO1.NTC.2807471&isFromPublicArea=True&isModal=False | E157: Contratos de prestación de servicios profesionales y de apoyo a la gestión | F157: Contratación directa | G157: Prestación de servicios profesionales y de apoyo a la gestión, o para la ejecución de trabajos artísticos que sólo puedan encomendarse a determinadas personas naturales | H157: PRESTAR SUS SERVICIOS PROFESIONALES PARA APOYAR AL EQUIPO DE PRENSA Y COMUNICACIONES DE LA ALCALDÍA LOCAL EN EL CUBRIMIENTO DE LAS ACTIVIDADES, CRONOGRAMAS Y AGENDA DE LA ALCALDÍA LOCAL A NIVEL INTERNO Y EXTERNO, ASÍ COMO LA GENERACIÓN DE CONTENIDOS PERIODÍSTICOS | I157: Inversión | J157: Un nuevo contrato social y ambiental para la Bogotá del Siglo XXI | K157: 57 | L157: =IF(ISERROR(VLOOKUP(K157,Proposito_programa!$C$2:$E$59,2,FALSE))," ",VLOOKUP(K157,Proposito_programa!$C$2:$E$59,2,FALSE)) -> Gestión pública local | M157: =IF(ISERROR(VLOOKUP(K157,Proposito_programa!$C$2:$E$59,3,FALSE))," ",VLOOKUP(K157,Proposito_programa!$C$2:$E$59,3,FALSE)) -> Propósito 5: Construir Bogotá - Región con gobierno abierto, transparente y ciudadanía consciente | N157: 1696 | O157: 1 | P157: 1026562610 | Q157: SILVANA LORENA SANCHEZ PINEDA | R157: Persona Natural | W157: 39000000 | Y157: 1 | Z157: 19500000 | AA157: 58500000 | AB157: 44850000 | AC157: 2022-02-01 | AD157: 2022-02-04 | AE157: 2022-08-03 | AF157: 180 | AG157: 1 | AH157: 90 | AM157: En ejecución | AN157: 0.7666666667
A158: CPS-149-2022 | B158: 2022 | C158: FDRS-CD-149-2022 | D158: https://community.secop.gov.co/Public/Tendering/OpportunityDetail/Index?noticeUID=CO1.NTC.2807463&isFromPublicArea=True&isModal=False | E158: Contratos de prestación de servicios profesionales y de apoyo a la gestión | F158: Contratación directa | G158: Prestación de servicios profesionales y de apoyo a la gestión, o para la ejecución de trabajos artísticos que sólo puedan encomendarse a determinadas personas naturales | H158: PRESTAR SUS SERVICIOS DE APOYO ADMINISTRATIVO AL PARQUE AUTOMOTOR DE PROPIEDAD DEL FONDO DE DESARROLLO RURAL DE SUMAPAZ | I158: Inversión | J158: Un nuevo contrato social y ambiental para la Bogotá del Siglo XXI | K158: 57 | L158: =IF(ISERROR(VLOOKUP(K158,Proposito_programa!$C$2:$E$59,2,FALSE))," ",VLOOKUP(K158,Proposito_programa!$C$2:$E$59,2,FALSE)) -> Gestión pública local | M158: =IF(ISERROR(VLOOKUP(K158,Proposito_programa!$C$2:$E$59,3,FALSE))," ",VLOOKUP(K158,Proposito_programa!$C$2:$E$59,3,FALSE)) -> Propósito 5: Construir Bogotá - Región con gobierno abierto, transparente y ciudadanía consciente | N158: 1696 | O158: 1 | P158: 79577246 | Q158: RAUL IVAN BORJA SUAREZ | R158: Persona Natural | W158: 29700000 | Y158: 1 | Z158: 2700000 | AA158: 32400000 | AB158: 26460000 | AC158: 2022-02-02 | AD158: 2022-02-07 | AE158: 2023-01-06 | AF158: 333 | AM158: En ejecución | AN158: 0.8166666667
A159: CPS-150-2022 | B159: 2022 | C159: FDRS-CD-150-2022 | D159: https://community.secop.gov.co/Public/Tendering/OpportunityDetail/Index?noticeUID=CO1.NTC.2804526&isFromPublicArea=True&isModal=False | E159: Contratos de prestación de servicios profesionales y de apoyo a la gestión | F159: Contratación directa | G159: Prestación de servicios profesionales y de apoyo a la gestión, o para la ejecución de trabajos artísticos que sólo puedan encomendarse a determinadas personas naturales | H159: PRESTAR LOS SERVICIOS DE APOYO A LA GESTIÓN DOCUMENTAL DE LA ALCALDÍA LOCAL EN LA IMPLEMENTACIÓN DE LOS PROCESOS DE CLASIFICACIÓN, ORDENACIÓN, SELECCIÓN NATURAL, FOLIACIÓN, IDENTIFICACIÓN, LEVANTAMIENTO DE INVENTARIOS, ALMACENAMIENTO Y APLICACIÓN DE PROTOCOLOS DE ELIMINACIÓN Y TRANSFERENCIAS DOCUMENTALES | I159: Inversión | J159: Un nuevo contrato social y ambiental para la Bogotá del Siglo XXI | K159: 57 | L159: =IF(ISERROR(VLOOKUP(K159,Proposito_programa!$C$2:$E$59,2,FALSE))," ",VLOOKUP(K159,Proposito_programa!$C$2:$E$59,2,FALSE)) -> Gestión pública local | M159: =IF(ISERROR(VLOOKUP(K159,Proposito_programa!$C$2:$E$59,3,FALSE))," ",VLOOKUP(K159,Proposito_programa!$C$2:$E$59,3,FALSE)) -> Propósito 5: Construir Bogotá - Región con gobierno abierto, transparente y ciudadanía consciente | N159: 1696 | O159: 1 | P159: 1023034072 | Q159: SEBASTIAN STIVEN ZOLA NEIRA | R159: Persona Natural | W159: 29700000 | AA159: 29700000 | AB159: 27000000 | AC159: 2022-02-01 | AD159: 2022-02-01 | AE159: 2022-12-31 | AF159: 333 | AM159: Terminado | AN159: 0.9090909091
A160: CPS-151-2022 | B160: 2022 | C160: FDRS-CD-151-2022 | D160: https://community.secop.gov.co/Public/Tendering/OpportunityDetail/Index?noticeUID=CO1.NTC.2806819&isFromPublicArea=True&isModal=False | E160: Contratos de prestación de servicios profesionales y de apoyo a la gestión | F160: Contratación directa | G160: Prestación de servicios profesionales y de apoyo a la gestión, o para la ejecución de trabajos artísticos que sólo puedan encomendarse a determinadas personas naturales | H160: PRESTAR LOS SERVICIOS DE APOYO ADMINISTRATIVO AL ÁREA DE GESTIÓN DE DESARROLLO LOCAL, EN LOS PROCESOS RELACIONADOS CON EL PROYECTO DE INVERSIÓN ESTRATEGIAS DEL CUIDADO PARA CUIDADORAS, CUIDADORES Y A PERSONAS CON DISCAPACIDAD | I160: Inversión | J160: Un nuevo contrato social y ambiental para la Bogotá del Siglo XXI | K160: 6 | L160: =IF(ISERROR(VLOOKUP(K160,Proposito_programa!$C$2:$E$59,2,FALSE))," ",VLOOKUP(K160,Proposito_programa!$C$2:$E$59,2,FALSE)) -> Sistema Distrital de Cuidado | M160: =IF(ISERROR(VLOOKUP(K160,Proposito_programa!$C$2:$E$59,3,FALSE))," ",VLOOKUP(K160,Proposito_programa!$C$2:$E$59,3,FALSE)) -> Propósito 1: Hacer un nuevo contrato social para incrementar la inclusión social, productiva y política | N160: 1641 | O160: 1 | P160: 1001340804 | Q160: ANGIE PAOLA FORERO FONSECA | R160: Persona Natural | W160: 44000000 | X160: -18800000 | AA160: 25200000 | AB160: 25200000 | AC160: 2022-02-01 | AD160: 2022-02-04 | AE160: 2023-01-03 | AF160: 333 | AM160: Terminado | AN160: 1
A161: CPS-152-2022 | B161: 2022 | C161: FDRS-CD-152-2022 | D161: https://community.secop.gov.co/Public/Tendering/OpportunityDetail/Index?noticeUID=CO1.NTC.2805124&isFromPublicArea=True&isModal=False | E161: Contratos de prestación de servicios profesionales y de apoyo a la gestión | F161: Contratación directa | G161: Prestación de servicios profesionales y de apoyo a la gestión, o para la ejecución de trabajos artísticos que sólo puedan encomendarse a determinadas personas naturales | H161: PRESTAR LOS SERVICIOS PROFESIONALES AL ÁREA DE GESTIÓN DE DESARROLLO LOCAL, EN TEMAS RELACIONADOS CON EMPLEABILIDAD Y ATENCIÓN A LA POBLACIÓN VULNERABLE, DE LA ALCALDÍA LOCAL DE SUMAPAZ | I161: Inversión | J161: Un nuevo contrato social y ambiental para la Bogotá del Siglo XXI | K161: 1 | L161: =IF(ISERROR(VLOOKUP(K161,Proposito_programa!$C$2:$E$59,2,FALSE))," ",VLOOKUP(K161,Proposito_programa!$C$2:$E$59,2,FALSE)) -> Subsidios y transferencias para la equidad | M161: =IF(ISERROR(VLOOKUP(K161,Proposito_programa!$C$2:$E$59,3,FALSE))," ",VLOOKUP(K161,Proposito_programa!$C$2:$E$59,3,FALSE)) -> Propósito 1: Hacer un nuevo contrato social para incrementar la inclusión social, productiva y política | N161: 1583 | O161: 1 | P161: 52110765 | Q161: INDIRA FARIDE ELJACH BELTRAN | R161: Persona Natural | W161: 39000000 | AA161: 39000000 | AB161: 39000000 | AC161: 2022-02-02 | AD161: 2022-02-07 | AE161: 2022-08-06 | AF161: 180 | AM161: Terminado | AN161: 1
A162: CPS-153-2022 | B162: 2022 | C162: FDRS-CD-153-2022 | D162: https://community.secop.gov.co/Public/Tendering/OpportunityDetail/Index?noticeUID=CO1.NTC.2804353&isFromPublicArea=True&isModal=False | E162: Contratos de prestación de servicios profesionales y de apoyo a la gestión | F162: Contratación directa | G162: Prestación de servicios profesionales y de apoyo a la gestión, o para la ejecución de trabajos artísticos que sólo puedan encomendarse a determinadas personas naturales | H162: PRESTAR SUS SERVICIOS PROFESIONALES DE APOYO AL ÁREA DE GESTIÓN DEL DESARROLLO LOCAL EN LA GESTIÓN CONTRACTUAL DEL FONDO DE DESARROLLO LOCAL DE SUMAPAZ | I162: Inversión | J162: Un nuevo contrato social y ambiental para la Bogotá del Siglo XXI | K162: 57 | L162: =IF(ISERROR(VLOOKUP(K162,Proposito_programa!$C$2:$E$59,2,FALSE))," ",VLOOKUP(K162,Proposito_programa!$C$2:$E$59,2,FALSE)) -> Gestión pública local | M162: =IF(ISERROR(VLOOKUP(K162,Proposito_programa!$C$2:$E$59,3,FALSE))," ",VLOOKUP(K162,Proposito_programa!$C$2:$E$59,3,FALSE)) -> Propósito 5: Construir Bogotá - Región con gobierno abierto, transparente y ciudadanía consciente | N162: 1696 | O162: 1 | P162: 36696956 | Q162: ARACELYS ELISA RIVERA VIZCAINO | R162: Persona Natural | W162: 50600000 | Y162: 1 | Z162: 3680000 | AA162: 54280000 | AB162: 45080000 | AC162: 2022-02-01 | AD162: 2022-02-07 | AE162: 2023-01-06 | AF162: 333 | AG162: 1 | AH162: 24 | AM162: En ejecución | AN162: 0.8305084746
A163: CPS-154-2022 | B163: 2022 | C163: FDRS-CD-154-2022 | D163: https://community.secop.gov.co/Public/Tendering/OpportunityDetail/Index?noticeUID=CO1.NTC.2804509&isFromPublicArea=True&isModal=False | E163: Contratos de prestación de servicios profesionales y de apoyo a la gestión | F163: Contratación directa | G163: Prestación de servicios profesionales y de apoyo a la gestión, o para la ejecución de trabajos artísticos que sólo puedan encomendarse a determinadas personas naturales | H163: PRESTAR LOS SERVICIOS PROFESIONALES ESPECIALIZADOS PARA GESTIONAR LOS PROYECTOS DE INVERSIÓN DE INFRAESTRUCTURA VIAL, EN LA CUENCA DEL RÍO SUMAPAZ DE LA LOCALIDAD | I163: Inversión | J163: Un nuevo contrato social y ambiental para la Bogotá del Siglo XXI | K163: 49 | L163: =IF(ISERROR(VLOOKUP(K163,Proposito_programa!$C$2:$E$59,2,FALSE))," ",VLOOKUP(K163,Proposito_programa!$C$2:$E$59,2,FALSE)) -> Movilidad segura, sostenible y accesible | M163: =IF(ISERROR(VLOOKUP(K163,Proposito_programa!$C$2:$E$59,3,FALSE))," ",VLOOKUP(K163,Proposito_programa!$C$2:$E$59,3,FALSE)) -> Propósito 4: Hacer de Bogotá Región un modelo de movilidad multimodal, incluyente y sostenible | N163: 1688 | O163: 1 | P163: 52855628 | Q163: LEIDY DIANA QUINTERO BUITRAGO | R163: Persona Natural | W163: 83600000 | Y163: 1 | Z163: 7600000 | AA163: 91200000 | AB163: 75746667 | AC163: 2022-02-01 | AD163: 2022-02-02 | AE163: 2023-01-01 | AF163: 333 | AG163: 1 | AH163: 30 | AI163: 1024474457 | AJ163: NELSON FERNEY ESTRADA GONZALEZ | AK163: 2022-06-15 | AL163: 50666666 | AM163: En ejecución | AN163: 0.8305555592
A164: CPS-155-2022 | B164: 2022 | C164: FDRS-CD-155-2022 | D164: https://community.secop.gov.co/Public/Tendering/OpportunityDetail/Index?noticeUID=CO1.NTC.2804502&isFromPublicArea=True&isModal=False | E164: Contratos de prestación de servicios profesionales y de apoyo a la gestión | F164: Contratación directa | G164: Prestación de servicios profesionales y de apoyo a la gestión, o para la ejecución de trabajos artísticos que sólo puedan encomendarse a determinadas personas naturales | H164: PRESTAR LOS SERVICIOS PROFESIONALES EN PRODUCCIÓN AGROPECUARIA PARA EL FORTALECIMIENTO DEL SERVICIO DE ASISTENCIA TÉCNICA AGROPECUARIA DE LA LOCALIDAD DE SUMAPAZ | I164: Inversión | J164: Un nuevo contrato social y ambiental para la Bogotá del Siglo XXI | K164: 23 | L164: =IF(ISERROR(VLOOKUP(K164,Proposito_programa!$C$2:$E$59,2,FALSE))," ",VLOOKUP(K164,Proposito_programa!$C$2:$E$59,2,FALSE)) -> Bogotá rural | M164: =IF(ISERROR(VLOOKUP(K164,Proposito_programa!$C$2:$E$59,3,FALSE))," ",VLOOKUP(K164,Proposito_programa!$C$2:$E$59,3,FALSE)) -> Propósito 1: Hacer un nuevo contrato social para incrementar la inclusión social, productiva y política | N164: 1634 | O164: 1 | P164: 1022426317 | Q164: JOSE MAURICIO GOMEZ LADINO | R164: Persona Natural | W164: 50600000 | AA164: 50600000 | AB164: 45846667 | AC164: 2022-02-01 | AD164: 2022-02-02 | AE164: 2023-01-01 | AF164: 333 | AM164: Terminado | AN164: 0.9060606126
A165: CPS-156-2022 | B165: 2022 | C165: FDRS-CD-156-2022 | D165: https://community.secop.gov.co/Public/Tendering/OpportunityDetail/Index?noticeUID=CO1.NTC.2803165&isFromPublicArea=True&isModal=False | E165: Contratos de prestación de servicios profesionales y de apoyo a la gestión | F165: Contratación directa | G165: Prestación de servicios profesionales y de apoyo a la gestión, o para la ejecución de trabajos artísticos que sólo puedan encomendarse a determinadas personas naturales | H165: PRESTAR LOS SERVICIOS COMO AUXILIAR DE APOYO AL PARQUE AUTOMOTOR DE LA MAQUINARIA Y VEHÍCULOS PESADOS DE PROPIEDAD O TENENCIA DEL FONDO DE DESARROLLO RURAL DE SUMAPAZ | I165: Inversión | J165: Un nuevo contrato social y ambiental para la Bogotá del Siglo XXI | K165: 49 | L165: =IF(ISERROR(VLOOKUP(K165,Proposito_programa!$C$2:$E$59,2,FALSE))," ",VLOOKUP(K165,Proposito_programa!$C$2:$E$59,2,FALSE)) -> Movilidad segura, sostenible y accesible | M165: =IF(ISERROR(VLOOKUP(K165,Proposito_programa!$C$2:$E$59,3,FALSE))," ",VLOOKUP(K165,Proposito_programa!$C$2:$E$59,3,FALSE)) -> Propósito 4: Hacer de Bogotá Región un modelo de movilidad multimodal, incluyente y sostenible | N165: 1688 | O165: 1 | P165: 79727160 | Q165: VICTOR MANUEL RAMIREZ TORRES | R165: Persona Natural | W165: 16200000 | Y165: 1 | Z165: 8100000 | AA165: 24300000 | AB165: 24300000 | AC165: 2022-02-01 | AD165: 2022-02-02 | AE165: 2022-08-01 | AF165: 180 | AG165: 1 | AH165: 30 | AM165: Terminado | AN165: 1
A166: CPS-157-2022 | B166: 2022 | C166: FDRS-CD-157-2022 | D166: https://community.secop.gov.co/Public/Tendering/OpportunityDetail/Index?noticeUID=CO1.NTC.2805885&isFromPublicArea=True&isModal=False | E166: Contratos de prestación de servicios profesionales y de apoyo a la gestión | F166: Contratación directa | G166: Prestación de servicios profesionales y de apoyo a la gestión, o para la ejecución de trabajos artísticos que sólo puedan encomendarse a determinadas personas naturales | H166: PRESTAR LOS SERVICIOS TÉCNICOS DE APOYO ADMINISTRATIVO REQUERIDOS PARA LA GESTIÓN AGROAMBIENTAL DEL ÁREA DE GESTIÓN DE DESARROLLO LOCAL DE LA ALCALDÍA LOCAL DE SUMAPAZ | I166: Inversión | J166: Un nuevo contrato social y ambiental para la Bogotá del Siglo XXI | K166: 57 | L166: =IF(ISERROR(VLOOKUP(K166,Proposito_programa!$C$2:$E$59,2,FALSE))," ",VLOOKUP(K166,Proposito_programa!$C$2:$E$59,2,FALSE)) -> Gestión pública local | M166: =IF(ISERROR(VLOOKUP(K166,Proposito_programa!$C$2:$E$59,3,FALSE))," ",VLOOKUP(K166,Proposito_programa!$C$2:$E$59,3,FALSE)) -> Propósito 5: Construir Bogotá - Región con gobierno abierto, transparente y ciudadanía consciente | N166: 1696 | O166: 1 | P166: 65705320 | Q166: ROSA MARIA ROSSELL GOMEZ | R166: Persona Natural | W166: 44000000 | Y166: 1 | Z166: 4000000 | AA166: 48000000 | AB166: 40000000 | AC166: 2022-02-01 | AD166: 2022-02-01 | AE166: 2022-12-31 | AF166: 333 | AG166: 1 | AH166: 30 | AM166: En ejecución | AN166: 0.8333333333
A167: CPS-158-2022 | B167: 2022 | C167: FDRS-CD-158-2022 | D167: https://community.secop.gov.co/Public/Tendering/OpportunityDetail/Index?noticeUID=CO1.NTC.2795125&isFromPublicArea=True&isModal=False | E167: Contratos de prestación de servicios profesionales y de apoyo a la gestión | F167: Contratación directa | G167: Prestación de servicios profesionales y de apoyo a la gestión, o para la ejecución de trabajos artísticos que sólo puedan encomendarse a determinadas personas naturales | H167: PRESTAR LOS SERVICIOS PROFESIONALES PARA APOYAR LA OPERACIÓN LOGÍSTICA DE LOS CENTROS DE CONECTIVIDAD CAMPESINA DE LA LOCALIDAD DE SUMAPAZ | I167: Inversión | J167: Un nuevo contrato social y ambiental para la Bogotá del Siglo XXI | K167: 54 | L167: =IF(ISERROR(VLOOKUP(K167,Proposito_programa!$C$2:$E$59,2,FALSE))," ",VLOOKUP(K167,Proposito_programa!$C$2:$E$59,2,FALSE)) -> Transformación digital y gestión de TIC para un territorio inteligente | M167: =IF(ISERROR(VLOOKUP(K167,Proposito_programa!$C$2:$E$59,3,FALSE))," ",VLOOKUP(K167,Proposito_programa!$C$2:$E$59,3,FALSE)) -> Propósito 5: Construir Bogotá - Región con gobierno abierto, transparente y ciudadanía consciente | N167: 1692 | O167: 1 | P167: 73043558 | Q167: EDGAR HUMBERTO RONCANCIO SANCHEZ | R167: Persona Natural | W167: 36000000 | AA167: 36000000 | AB167: 36000000 | AC167: 2022-01-28 | AD167: 2022-02-01 | AE167: 2022-07-31 | AF167: 180 | AM167: Terminado | AN167: 1
A168: CPS-159-2022 | B168: 2022 | C168: FDRS-CD-159-2022 | D168: https://community.secop.gov.co/Public/Tendering/OpportunityDetail/Index?noticeUID=CO1.NTC.2794078&isFromPublicArea=True&isModal=False | E168: Contratos de prestación de servicios profesionales y de apoyo a la gestión | F168: Contratación directa | G168: Prestación de servicios profesionales y de apoyo a la gestión, o para la ejecución de trabajos artísticos que sólo puedan encomendarse a determinadas personas naturales | H168: PRESTAR SUS SERVICIOS COMO AUXILIAR DE CONSTRUCCIÓN PARA LAS OBRAS A EJECUTAR EN EL PROYECTO DE INVERSIÓN DE CONSTRUCCIÓN DE SEDES, DE LA ALCALDÍA LOCAL DE SUMAPAZ | I168: Inversión | J168: Un nuevo contrato social y ambiental para la Bogotá del Siglo XXI | K168: 56 | L168: =IF(ISERROR(VLOOKUP(K168,Proposito_programa!$C$2:$E$59,2,FALSE))," ",VLOOKUP(K168,Proposito_programa!$C$2:$E$59,2,FALSE)) -> Gestión pública efectiva | M168: =IF(ISERROR(VLOOKUP(K168,Proposito_programa!$C$2:$E$59,3,FALSE))," ",VLOOKUP(K168,Proposito_programa!$C$2:$E$59,3,FALSE)) -> Propósito 5: Construir Bogotá - Región con gobierno abierto, transparente y ciudadanía consciente | N168: 1693 | O168: 1 | P168: 79632464 | Q168: JAIME PALACIOS CIFUENTES | R168: Persona Natural | W168: 29700000 | AA168: 29700000 | AB168: 26730000 | AC168: 2022-01-28 | AD168: 2022-02-04 | AE168: 2023-01-03 | AF168: 333 | AM168: Terminado | AN168: 0.9
A169: CPS-160-2022 | B169: 2022 | C169: FDRS-CD-160-2022* | D169: https://community.secop.gov.co/Public/Tendering/OpportunityDetail/Index?noticeUID=CO1.NTC.2816870&isFromPublicArea=True&isModal=False | E169: Contratos de prestación de servicios profesionales y de apoyo a la gestión | F169: Contratación directa | G169: Prestación de servicios profesionales y de apoyo a la gestión, o para la ejecución de trabajos artísticos que sólo puedan encomendarse a determinadas personas naturales | H169: PRESTAR LOS SERVICIOS COMO AUXILIAR ADMINISTRATIVO AL SERVICIO DE LA JUNTA ADMINISTRADORA LOCAL DE SUMAPAZ | I169: Inversión | J169: Un nuevo contrato social y ambiental para la Bogotá del Siglo XXI | K169: 57 | L169: =IF(ISERROR(VLOOKUP(K169,Proposito_programa!$C$2:$E$59,2,FALSE))," ",VLOOKUP(K169,Proposito_programa!$C$2:$E$59,2,FALSE)) -> Gestión pública local | M169: =IF(ISERROR(VLOOKUP(K169,Proposito_programa!$C$2:$E$59,3,FALSE))," ",VLOOKUP(K169,Proposito_programa!$C$2:$E$59,3,FALSE)) -> Propósito 5: Construir Bogotá - Región con gobierno abierto, transparente y ciudadanía consciente | N169: 1696 | O169: 1 | P169: 51874111 | Q169: NIDIA YANIRA VARGAS HUERTAS | R169: Persona Natural | W169: 29700000 | AA169: 29700000 | AB169: 26730000 | AC169: 2022-02-02 | AD169: 2022-02-04 | AE169: 2023-01-03 | AF169: 333 | AM169: Terminado | AN169: 0.9
A170: CPS-162-2022 | B170: 2022 | C170: FDRS-CD-162-2022 | D170: https://community.secop.gov.co/Public/Tendering/OpportunityDetail/Index?noticeUID=CO1.NTC.2806829&isFromPublicArea=True&isModal=False | E170: Contratos de prestación de servicios profesionales y de apoyo a la gestión | F170: Contratación directa | G170: Prestación de servicios profesionales y de apoyo a la gestión, o para la ejecución de trabajos artísticos que sólo puedan encomendarse a determinadas personas naturales | H170: PRESTAR SUS SERVICIOS COMO AUXILIAR DE CONSTRUCCIÓN PARA LAS OBRAS A EJECUTAR EN EL PROYECTO DE INVERSIÓN DE CONSTRUCCIÓN DE SEDES, DE LA ALCALDÍA LOCAL DE SUMAPAZ | I170: Inversión | J170: Un nuevo contrato social y ambiental para la Bogotá del Siglo XXI | K170: 56 | L170: =IF(ISERROR(VLOOKUP(K170,Proposito_programa!$C$2:$E$59,2,FALSE))," ",VLOOKUP(K170,Proposito_programa!$C$2:$E$59,2,FALSE)) -> Gestión pública efectiva | M170: =IF(ISERROR(VLOOKUP(K170,Proposito_programa!$C$2:$E$59,3,FALSE))," ",VLOOKUP(K170,Proposito_programa!$C$2:$E$59,3,FALSE)) -> Propósito 5: Construir Bogotá - Región con gobierno abierto, transparente y ciudadanía consciente | N170: 1693 | O170: 1 | P170: 80452965 | Q170: HERACLIDES GONZALEZ GONZALEZ | R170: Persona Natural | W170: 29700000 | Y170: 1 | Z170: 2700000 | AA170: 32400000 | AB170: 26910000 | AC170: 2022-02-02 | AD170: 2022-02-02 | AE170: 2023-01-01 | AF170: 333 | AG170: 1 | AH170: 30 | AM170: En ejecución | AN170: 0.8305555556
A171: CPS-163-2022 | B171: 2022 | C171: FDRS-CD-163-2022 | D171: https://community.secop.gov.co/Public/Tendering/OpportunityDetail/Index?noticeUID=CO1.NTC.2805529&isFromPublicArea=True&isModal=False | E171: Contratos de prestación de servicios profesionales y de apoyo a la gestión | F171: Contratación directa | G171: Prestación de servicios profesionales y de apoyo a la gestión, o para la ejecución de trabajos artísticos que sólo puedan encomendarse a determinadas personas naturales | H171: LOS SERVICIOS PROFESIONALES PARA APOYAR LA PLANEACIÓN, EJECUCIÓN Y SEGUIMIENTO DEL PROYECTO DE INVERSIÓN, RELACIONADO CON SALONES COMUNALES QUE EJECUTE EL FONDO DE DESARROLLO LOCAL DE SUMAPAZ | I171: Inversión | J171: Un nuevo contrato social y ambiental para la Bogotá del Siglo XXI | K171: 55 | L171: =IF(ISERROR(VLOOKUP(K171,Proposito_programa!$C$2:$E$59,2,FALSE))," ",VLOOKUP(K171,Proposito_programa!$C$2:$E$59,2,FALSE)) -> Fortalecimiento de cultura ciudadana y su institucionalidad | M171: =IF(ISERROR(VLOOKUP(K171,Proposito_programa!$C$2:$E$59,3,FALSE))," ",VLOOKUP(K171,Proposito_programa!$C$2:$E$59,3,FALSE)) -> Propósito 5: Construir Bogotá - Región con gobierno abierto, transparente y ciudadanía consciente | N171: 1691 | O171: 1 | P171: 1016093323 | Q171: DIEGO ALEXANDER PEÑA CHAPARRO | R171: Persona Natural | W171: 50600000 | AA171: 50600000 | AB171: 41400000 | AC171: 2022-02-01 | AD171: 2022-03-01 | AE171: 2023-01-31 | AF171: 336 | AI171: 1031157722 | AJ171: JUAN FELIPE MUÑOZ MORENO | AK171: 2022-03-01 | AL171: 50600000 | AM171: En ejecución | AN171: 0.8181818182
A172: CPS-164-2022 | B172: 2022 | C172: FDRS-CD-164-2022 | D172: https://community.secop.gov.co/Public/Tendering/OpportunityDetail/Index?noticeUID=CO1.NTC.2807295&isFromPublicArea=True&isModal=False | E172: Contratos de prestación de servicios profesionales y de apoyo a la gestión | F172: Contratación directa | G172: Prestación de servicios profesionales y de apoyo a la gestión, o para la ejecución de trabajos artísticos que sólo puedan encomendarse a determinadas personas naturales | H172: PRESTAR LOS SERVICIOS PROFESIONALES PARA APOYAR EL PROCESO DE PLANEACIÓN Y SEGUIMIENTO A LOS PROYECTOS DE INVERSIÓN DE INFRAESTRUCTURA DEL FONDO DE DESARROLLO RURAL DE SUMAPAZ | I172: Inversión | J172: Un nuevo contrato social y ambiental para la Bogotá del Siglo XXI | K172: 49 | L172: =IF(ISERROR(VLOOKUP(K172,Proposito_programa!$C$2:$E$59,2,FALSE))," ",VLOOKUP(K172,Proposito_programa!$C$2:$E$59,2,FALSE)) -> Movilidad segura, sostenible y accesible | M172: =IF(ISERROR(VLOOKUP(K172,Proposito_programa!$C$2:$E$59,3,FALSE))," ",VLOOKUP(K172,Proposito_programa!$C$2:$E$59,3,FALSE)) -> Propósito 4: Hacer de Bogotá Región un modelo de movilidad multimodal, incluyente y sostenible | N172: 1688 | O172: 1 | P172: 1093748132 | Q172: RONALD ANDRES CIFUENTES CHAVES | R172: Persona Natural | W172: 27600000 | AA172: 27600000 | AB172: 27140000 | AC172: 2022-02-01 | AD172: 2022-02-04 | AE172: 2022-08-03 | AF172: 180 | AM172: Terminado | AN172: 0.9833333333
A173: CPS-165-2022 | B173: 2022 | C173: FDRS-165-2022 | D173: https://community.secop.gov.co/Public/Tendering/OpportunityDetail/Index?noticeUID=CO1.NTC.2806811&isFromPublicArea=True&isModal=False | E173: Contratos de prestación de servicios profesionales y de apoyo a la gestión | F173: Contratación directa | G173: Prestación de servicios profesionales y de apoyo a la gestión, o para la ejecución de trabajos artísticos que sólo puedan encomendarse a determinadas personas naturales | H173: PRESTAR LOS SERVICIOS PROFESIONALES PARA APOYAR LA ASISTENCIA TÉCNICA AGROPECUARIA, AMBIENTAL Y PRODUCTIVIDAD RURAL DE LA LOCALIDAD DE SUMAPAZ | I173: Inversión | J173: Un nuevo contrato social y ambiental para la Bogotá del Siglo XXI | K173: 23 | L173: =IF(ISERROR(VLOOKUP(K173,Proposito_programa!$C$2:$E$59,2,FALSE))," ",VLOOKUP(K173,Proposito_programa!$C$2:$E$59,2,FALSE)) -> Bogotá rural | M173: =IF(ISERROR(VLOOKUP(K173,Proposito_programa!$C$2:$E$59,3,FALSE))," ",VLOOKUP(K173,Proposito_programa!$C$2:$E$59,3,FALSE)) -> Propósito 1: Hacer un nuevo contrato social para incrementar la inclusión social, productiva y política | N173: 1634 | O173: 1 | P173: 20800560 | Q173: MONICA PAOLA GOMEZ MORENO | R173: Persona Natural | W173: 42000000 | Y173: 1 | Z173: 18000000 | AA173: 60000000 | AB173: 57800000 | AC173: 2022-02-01 | AD173: 2022-02-02 | AE173: 2022-08-01 | AF173: 180 | AG173: 1 | AH173: 90 | AI173: 19224673 | AJ173: GERMAN HERNANDEZ LOSADA | AK173: 2022-03-11 | AL173: 28200000 | AM173: Terminado | AN173: 0.9633333333
A174: CPS-166-2022 | B174: 2022 | C174: FDRS-CD-166-2022 | D174: https://community.secop.gov.co/Public/Tendering/OpportunityDetail/Index?noticeUID=CO1.NTC.2806862&isFromPublicArea=True&isModal=False | E174: Contratos de prestación de servicios profesionales y de apoyo a la gestión | F174: Contratación directa | G174: Prestación de servicios profesionales y de apoyo a la gestión, o para la ejecución de trabajos artísticos que sólo puedan encomendarse a determinadas personas naturales | H174: PRESTAR LOS SERVICIOS DE APOYO ADMINISTRATIVO AL ÁREA DE GESTIÓN DE DESARROLLO LOCAL, EN LOS PROCESOS RELACIONADOS CON EL PROYECTO DE INVERSIÓN ESTRATEGIAS DEL CUIDADO PARA CUIDADORAS, CUIDADORES Y A PERSONAS CON DISCAPACIDAD | I174: Inversión | J174: Un nuevo contrato social y ambiental para la Bogotá del Siglo XXI | K174: 56 | L174: =IF(ISERROR(VLOOKUP(K174,Proposito_programa!$C$2:$E$59,2,FALSE))," ",VLOOKUP(K174,Proposito_programa!$C$2:$E$59,2,FALSE)) -> Gestión pública efectiva | M174: =IF(ISERROR(VLOOKUP(K174,Proposito_programa!$C$2:$E$59,3,FALSE))," ",VLOOKUP(K174,Proposito_programa!$C$2:$E$59,3,FALSE)) -> Propósito 5: Construir Bogotá - Región con gobierno abierto, transparente y ciudadanía consciente | N174: 1693 | O174: 1 | P174: 19337347 | Q174: LUIS OMAR PEREZ VARGAS | R174: Persona Natural | W174: 29700000 | AA174: 29700000 | AB174: 26190000 | AC174: 2022-02-02 | AD174: 2022-02-10 | AE174: 2023-01-09 | AF174: 333 | AM174: En ejecución | AN174: =IF(ISERROR(AB174/AA174),"-",(AB174/AA174)) -> 0.8818181818
A175: CPS-167-2022 | B175: 2022 | C175: FDRS-MC-167-2022 | D175: https://community.secop.gov.co/Public/Tendering/OpportunityDetail/Index?noticeUID=CO1.NTC.2876523&isFromPublicArea=True&isModal=False | E175: Contratos de prestación de servicios | F175: Contratación mínima cuantia | G175: No aplica | H175: PRESTAR LOS SERVICIOS LOGÍSTICOS PARA LA REALIZACIÓN DE LOS DIÁLOGOS CIUDADANOS Y LA AUDIENCIA PÚBLICA DE RENDICIÓN DE CUENTAS DE LA VIGENCIA 2021 PARA LA LOCALIDAD DE SUMAPAZ | I175: Inversión | J175: Un nuevo contrato social y ambiental para la Bogotá del Siglo XXI | K175: 57 | L175: =IF(ISERROR(VLOOKUP(K175,Proposito_programa!$C$2:$E$59,2,FALSE))," ",VLOOKUP(K175,Proposito_programa!$C$2:$E$59,2,FALSE)) -> Gestión pública local | M175: =IF(ISERROR(VLOOKUP(K175,Proposito_programa!$C$2:$E$59,3,FALSE))," ",VLOOKUP(K175,Proposito_programa!$C$2:$E$59,3,FALSE)) -> Propósito 5: Construir Bogotá - Región con gobierno abierto, transparente y ciudadanía consciente | N175: 1696 | O175: 7 | P175: 900347333 | Q175: CORPORACION FRACTAL | R175: Sin ánimo de lucro | W175: 16307333 | AA175: 16307333 | AB175: 13897583 | AC175: 2022-03-30 | AD175: 2022-04-05 | AE175: 2022-06-04 | AF175: 60 | AG175: 1 | AH175: 45 | AM175: Terminado | AN175: 0.8522290555
A176: CSE-168-2022 | B176: 2022 | C176: FDRS-MC-170-2022 | D176: https://community.secop.gov.co/Public/Tendering/OpportunityDetail/Index?noticeUID=CO1.NTC.2935569&isFromPublicArea=True&isModal=False | E176: Seguro | F176: Contratación mínima cuantia | G176: No aplica | H176: CONTRATAR LA PÓLIZA DE VIDA GRUPO DE LOS EDILES DE LA ALCALDIA LOCAL DE SUMAPAZ | I176: Funcionamiento | J176: Un nuevo contrato social y ambiental para la Bogotá del Siglo XXI | K176: No aplica | L176: =IF(ISERROR(VLOOKUP(K176,Proposito_programa!$C$2:$E$59,2,FALSE))," ",VLOOKUP(K176,Proposito_programa!$C$2:$E$59,2,FALSE)) ->  | M176: =IF(ISERROR(VLOOKUP(K176,Proposito_programa!$C$2:$E$59,3,FALSE))," ",VLOOKUP(K176,Proposito_programa!$C$2:$E$59,3,FALSE)) ->  | O176: 1 | P176: 860037013 | Q176: SEGUROS MUNDIAL SA | R176: Persona Jurídica | W176: 7400803 | AA176: =+W176+X176+Z176 -> 7400803 | AB176: 7400803 | AC176: 2022-05-24 | AD176: 2022-06-02 | AE176: 2023-07-25 | AF176: 418 | AM176: En ejecución | AN176: =IF(ISERROR(AB176/AA176),"-",(AB176/AA176)) -> 1
A177: CPS-169-2022 | B177: 2022 | C177: FDRS-CD-172-2022 | D177: https://community.secop.gov.co/Public/Tendering/OpportunityDetail/Index?noticeUID=CO1.NTC.3002532&isFromPublicArea=True&isModal=False | E177: Contratos de prestación de servicios profesionales y de apoyo a la gestión | F177: Contratación directa | G177: Prestación de servicios profesionales y de apoyo a la gestión, o para la ejecución de trabajos artísticos que sólo puedan encomendarse a determinadas personas naturales | H177: PRESTAR LOS SERVICIOS PROFESIONALES PARA EL DESPACHO DE LA ALCALDÍA LOCAL DE SUMAPAZ EN LAS DIFERENTES ETAPAS DE LOS PROCESOS LEGALES, JURÍDICOS, ADMINISTRATIVOS Y CONTRATACIÓN PÚBLICA PARA DAR CUMPLIMIENTO AL PLAN DE DESARROLLO LOCAL | I177: Inversión | J177: Un nuevo contrato social y ambiental para la Bogotá del Siglo XXI | K177: 57 | L177: =IF(ISERROR(VLOOKUP(K177,Proposito_programa!$C$2:$E$59,2,FALSE))," ",VLOOKUP(K177,Proposito_programa!$C$2:$E$59,2,FALSE)) -> Gestión pública local | M177: =IF(ISERROR(VLOOKUP(K177,Proposito_programa!$C$2:$E$59,3,FALSE))," ",VLOOKUP(K177,Proposito_programa!$C$2:$E$59,3,FALSE)) -> Propósito 5: Construir Bogotá - Región con gobierno abierto, transparente y ciudadanía consciente | N177: 1696 | O177: 1 | P177: 1053344917 | Q177: LEIDY MILENA BAREÑO CASAS | R177: Persona Natural | W177: 42000000 | Y177: 1 | Z177: 6066667 | AA177: =+W177+X177+Z177 -> 48066667 | AB177: 34066666 | AC177: 2022-06-30 | AD177: 2022-07-05 | AE177: 2023-01-04 | AF177: 183 | AG177: 1 | AH177: 26 | AM177: En ejecución | AN177: 0.7087378453
A178: CPS-170-2022 | B178: 2022 | C178: FDRS-CD-173-2022 | D178: https://community.secop.gov.co/Public/Tendering/OpportunityDetail/Index?noticeUID=CO1.NTC.3003610&isFromPublicArea=True&isModal=False | E178: Contratos de prestación de servicios profesionales y de apoyo a la gestión | F178: Contratación directa | G178: Prestación de servicios profesionales y de apoyo a la gestión, o para la ejecución de trabajos artísticos que sólo puedan encomendarse a determinadas personas naturales | H178: PRESTAR LOS SERVICIOS PROFESIONALES AL ÁREA DE GESTIÓN DE DESARROLLO LOCAL PARA APOYAR LA PLANEACIÓN, EJECUCIÓN Y SEGUIMIENTO A LOS PROYECTOS DE INVERSIÓN DE INFRAESTRUCTURA VIAL Y ACTIVIDADES DESIGNADAS POR EL DESPACHO DE LA ALCALDÍA LOCAL DE SUMAPAZ | I178: Inversión | J178: Un nuevo contrato social y ambiental para la Bogotá del Siglo XXI | K178: 49 | L178: =IF(ISERROR(VLOOKUP(K178,Proposito_programa!$C$2:$E$59,2,FALSE))," ",VLOOKUP(K178,Proposito_programa!$C$2:$E$59,2,FALSE)) -> Movilidad segura, sostenible y accesible | M178: =IF(ISERROR(VLOOKUP(K178,Proposito_programa!$C$2:$E$59,3,FALSE))," ",VLOOKUP(K178,Proposito_programa!$C$2:$E$59,3,FALSE)) -> Propósito 4: Hacer de Bogotá Región un modelo de movilidad multimodal, incluyente y sostenible | N178: 1688 | O178: 1 | P178: 1010222109 | Q178: NASLY XIMENA LOZANO GONZALEZ | R178: Persona Natural | W178: 30000000 | Y178: 1 | Z178: 5000000 | AA178: 35000000 | AB178: 24333333 | AC178: 2022-07-01 | AD178: 2022-07-05 | AE178: 2023-01-04 | AF178: 183 | AG178: 1 | AH178: 30 | AM178: En ejecución | AN178: 0.6952380857
A179: CPS-171-2022 | B179: 2022 | C179: FDRS-CD-174-2022 | D179: https://community.secop.gov.co/Public/Tendering/OpportunityDetail/Index?noticeUID=CO1.NTC.3005924&isFromPublicArea=True&isModal=False | E179: Contratos de prestación de servicios profesionales y de apoyo a la gestión | F179: Contratación directa | G179: Prestación de servicios profesionales y de apoyo a la gestión, o para la ejecución de trabajos artísticos que sólo puedan encomendarse a determinadas personas naturales | H179: PRESTAR LOS SERVICIOS PROFESIONALES PARA APOYAR EL PROCESO DE PLANEACIÓN Y SEGUIMIENTO DE LOS PLANES, PROGRAMAS Y PROYECTOS DE INVERSIÓN DEL FONDO DE DESARROLLO RURAL DE SUMAPAZ | I179: Inversión | J179: Un nuevo contrato social y ambiental para la Bogotá del Siglo XXI | K179: 57 | L179: =IF(ISERROR(VLOOKUP(K179,Proposito_programa!$C$2:$E$59,2,FALSE))," ",VLOOKUP(K179,Proposito_programa!$C$2:$E$59,2,FALSE)) -> Gestión pública local | M179: =IF(ISERROR(VLOOKUP(K179,Proposito_programa!$C$2:$E$59,3,FALSE))," ",VLOOKUP(K179,Proposito_programa!$C$2:$E$59,3,FALSE)) -> Propósito 5: Construir Bogotá - Región con gobierno abierto, transparente y ciudadanía consciente | N179: 1696 | O179: 1 | P179: 1013601002 | Q179: DAVID DIAZ CANDELA | R179: Persona Natural | W179: 42000000 | Y179: 1 | Z179: 5366667 | AA179: 47366667 | AB179: 33366667 | AC179: 2022-07-05 | AD179: 2022-07-08 | AE179: 2023-01-07 | AF179: 183 | AG179: 1 | AH179: 23 | AM179: En ejecución | AN179: 0.7044334996
A180: CPS-172-2022 | B180: 2022 | C180: FDRS-CD-175-2022 | D180: https://community.secop.gov.co/Public/Tendering/OpportunityDetail/Index?noticeUID=CO1.NTC.3004504&isFromPublicArea=True&isModal=False | E180: Contratos de prestación de servicios profesionales y de apoyo a la gestión | F180: Contratación directa | G180: Prestación de servicios profesionales y de apoyo a la gestión, o para la ejecución de trabajos artísticos que sólo puedan encomendarse a determinadas personas naturales | H180: PRESTAR LOS SERVICIOS PROFESIONALES, PARA EL DESPACHO DE LA ALCALDÍA LOCAL DE SUMAPAZ EN LOS PROCESOS LEGALES, JURÍDICOS Y ADMINISTRATIVOS PARA DAR CUMPLIMIENTO AL PLAN DE DESARROLLO LOCAL | I180: Inversión | J180: Un nuevo contrato social y ambiental para la Bogotá del Siglo XXI | K180: 57 | L180: =IF(ISERROR(VLOOKUP(K180,Proposito_programa!$C$2:$E$59,2,FALSE))," ",VLOOKUP(K180,Proposito_programa!$C$2:$E$59,2,FALSE)) -> Gestión pública local | M180: =IF(ISERROR(VLOOKUP(K180,Proposito_programa!$C$2:$E$59,3,FALSE))," ",VLOOKUP(K180,Proposito_programa!$C$2:$E$59,3,FALSE)) -> Propósito 5: Construir Bogotá - Región con gobierno abierto, transparente y ciudadanía consciente | N180: 1696 | O180: 1 | P180: 7180594 | Q180: JULIO CESAR BARAJAS BORDA | R180: Persona Natural | W180: 42000000 | Y180: 1 | Z180: 5366667 | AA180: 47366667 | AB180: 33366667 | AC180: 2022-07-01 | AD180: 2022-07-08 | AE180: 2023-01-07 | AF180: 183 | AG180: 1 | AH180: 23 | AM180: En ejecución | AN180: 0.7044334996
A181: CPS-173-2022 | B181: 2022 | C181: FDRS-CD-177-2022 | D181: https://community.secop.gov.co/Public/Tendering/OpportunityDetail/Index?noticeUID=CO1.NTC.3034751&isFromPublicArea=True&isModal=False | E181: Contratos de prestación de servicios profesionales y de apoyo a la gestión | F181: Contratación directa | G181: Prestación de servicios profesionales y de apoyo a la gestión, o para la ejecución de trabajos artísticos que sólo puedan encomendarse a determinadas personas naturales | H181: PRESTAR LOS SERVICIOS COMO TECNÓLOGO, EN LA EJECUCIÓN DEL PROYECTO DE MEJORAMIENTO A LAS VIVIENDAS QUE EJECUTA EL FONDO DE DESARROLLO RURAL DE SUMAPAZ | I181: Inversión | J181: Un nuevo contrato social y ambiental para la Bogotá del Siglo XXI | K181: 19 | L181: =IF(ISERROR(VLOOKUP(K181,Proposito_programa!$C$2:$E$59,2,FALSE))," ",VLOOKUP(K181,Proposito_programa!$C$2:$E$59,2,FALSE)) -> Vivienda y entornos dignos en el territorio urbano y rural | M181: =IF(ISERROR(VLOOKUP(K181,Proposito_programa!$C$2:$E$59,3,FALSE))," ",VLOOKUP(K181,Proposito_programa!$C$2:$E$59,3,FALSE)) -> Propósito 1: Hacer un nuevo contrato social para incrementar la inclusión social, productiva y política | N181: 1589 | O181: 1 | P181: 80172113 | Q181: OMAR OCTAVIO CASTAÑO PAEZ | R181: Persona Natural | W181: 24000000 | AA181: 24000000 | AB181: 18266666 | AC181: 2022-07-13 | AD181: 2022-07-14 | AE181: 2023-01-13 | AF181: 183 | AM181: En ejecución | AN181: 0.7611110833
A182: CPS-174-2022 | B182: 2022 | C182: FDRS-CD-179-2022 | D182: https://community.secop.gov.co/Public/Tendering/OpportunityDetail/Index?noticeUID=CO1.NTC.3040540&isFromPublicArea=True&isModal=False | E182: Contratos de prestación de servicios profesionales y de apoyo a la gestión | F182: Contratación directa | G182: Prestación de servicios profesionales y de apoyo a la gestión, o para la ejecución de trabajos artísticos que sólo puedan encomendarse a determinadas personas naturales | H182: PRESTAR LOS SERVICIOS PROFESIONALES AL DESPACHO DE LA ALCALDÍA LOCAL DE SUMAPAZ, PARA LA ESTRUCTURACIÓN ESTRATÉGICA DE LOS PROCESOS DE PLANEACIÓN Y LOS PLANES, PROGRAMAS Y PROYECTOS DE INVERSIÓN DEL FONDO DE DESARROLLO RURAL DE SUMAPAZ | I182: Inversión | J182: Un nuevo contrato social y ambiental para la Bogotá del Siglo XXI | K182: 57 | L182: =IF(ISERROR(VLOOKUP(K182,Proposito_programa!$C$2:$E$59,2,FALSE))," ",VLOOKUP(K182,Proposito_programa!$C$2:$E$59,2,FALSE)) -> Gestión pública local | M182: =IF(ISERROR(VLOOKUP(K182,Proposito_programa!$C$2:$E$59,3,FALSE))," ",VLOOKUP(K182,Proposito_programa!$C$2:$E$59,3,FALSE)) -> Propósito 5: Construir Bogotá - Región con gobierno abierto, transparente y ciudadanía consciente | N182: 1696 | O182: 1 | P182: 79941233 | Q182: OSCAR GEOVANI MARTINEZ CORTES | R182: Persona Natural | W182: 42000000 | Y182: 1 | Z182: 2800000 | AA182: 44800000 | AB182: 30800000 | AC182: 2022-07-15 | AD182: 2022-07-19 | AE182: 2023-01-18 | AF182: 183 | AG182: 1 | AH182: 12 | AM182: En ejecución | AN182: 0.6875
A183: CPS-175-2022 | B183: 2022 | C183: FDRS-SAMC-171-2022 | D183: https://community.secop.gov.co/Public/Tendering/OpportunityDetail/Index?noticeUID=CO1.NTC.2968537&isFromPublicArea=True&isModal=False | E183: Contratos de prestación de servicios | F183: Selección abreviada | G183: Selección abreviada por menor cuantía | H183: CONTRATAR LA PRESTACIÓN DE SERVICIOS DE VIGILANCIA Y SEGURIDAD PRIVADA PARA LA ALCALDÍA LOCAL DE SUMAPAZ | I183: Funcionamiento | J183: Un nuevo contrato social y ambiental para la Bogotá del Siglo XXI | K183: No aplica | L183: =IF(ISERROR(VLOOKUP(K183,Proposito_programa!$C$2:$E$59,2,FALSE))," ",VLOOKUP(K183,Proposito_programa!$C$2:$E$59,2,FALSE)) ->  | M183: =IF(ISERROR(VLOOKUP(K183,Proposito_programa!$C$2:$E$59,3,FALSE))," ",VLOOKUP(K183,Proposito_programa!$C$2:$E$59,3,FALSE)) ->  | O183: 1 | P183: 800067868 | Q183: SEGURIDAD Y VIGILANCIA EXITO DE COLOMBIA LTDA | R183: Persona Jurídica | W183: 231200596 | Y183: 1 | Z183: 10090000 | AA183: =+W183+X183+Z183 -> 241290596 | AB183: 110224051 | AC183: 2022-07-15 | AD183: 2022-07-20 | AE183: 2023-01-03 | AF183: 167 | AG183: 1 | AH183: 45 | AM183: En ejecución | AN183: 0.4568103889
A184: CSE-176-2022 | B184: 2022 | C184: FDRS-MC-176-2022 | D184: https://community.secop.gov.co/Public/Tendering/OpportunityDetail/Index?noticeUID=CO1.NTC.3034126&isFromPublicArea=True&isModal=False | E184: Seguro | F184: Contratación mínima cuantia | G184: No aplica | H184: CONTRATAR LOS SEGUROS OBLIGATORIOS "SOAT" PARA EL PARQUE AUTOMOTOR DE PROPIEDAD Y DE AQUELLOS POR LOS CUALES ES LEGALMENTE RESPONSABLE DEL FONDO DE DESARROLLO RURAL DE SUMAPAZ | I184: Funcionamiento | J184: Un nuevo contrato social y ambiental para la Bogotá del Siglo XXI | K184: No aplica | L184: =IF(ISERROR(VLOOKUP(K184,Proposito_programa!$C$2:$E$59,2,FALSE))," ",VLOOKUP(K184,Proposito_programa!$C$2:$E$59,2,FALSE)) ->  | M184: =IF(ISERROR(VLOOKUP(K184,Proposito_programa!$C$2:$E$59,3,FALSE))," ",VLOOKUP(K184,Proposito_programa!$C$2:$E$59,3,FALSE)) ->  | O184: 1 | P184: 860524654 | Q184: ASEGURADORA SOLIDARIA DE COLOMBIA ENTIDAD COOPERATIVA | R184: Persona Jurídica | W184: 18677460 | AA184: 18677460 | AB184: 18677460 | AC184: 2022-07-26 | AD184: 2022-08-05 | AE184: 2023-08-04 | AF184: 364 | AM184: En ejecución | AN184: 1
A185: CPS-177-2022 | B185: 2022 | C185: FDRS-CD-180-2022 | D185: https://community.secop.gov.co/Public/Tendering/OpportunityDetail/Index?noticeUID=CO1.NTC.3069798&isFromPublicArea=True&isModal=False | E185: Contratos de prestación de servicios profesionales y de apoyo a la gestión | F185: Contratación directa | G185: Prestación de servicios profesionales y de apoyo a la gestión, o para la ejecución de trabajos artísticos que sólo puedan encomendarse a determinadas personas naturales | H185: PRESTAR LOS SERVICIOS PROFESIONALES, EN LAS DIFERENTES ETAPAS DE CONTRATACIÓN PÚBLICA AL ÁREA DE GESTIÓN DE DESARROLLO LOCAL DE SUMAPAZ | I185: Inversión | J185: Un nuevo contrato social y ambiental para la Bogotá del Siglo XXI | K185: 57 | L185: =IF(ISERROR(VLOOKUP(K185,Proposito_programa!$C$2:$E$59,2,FALSE))," ",VLOOKUP(K185,Proposito_programa!$C$2:$E$59,2,FALSE)) -> Gestión pública local | M185: =IF(ISERROR(VLOOKUP(K185,Proposito_programa!$C$2:$E$59,3,FALSE))," ",VLOOKUP(K185,Proposito_programa!$C$2:$E$59,3,FALSE)) -> Propósito 5: Construir Bogotá - Región con gobierno abierto, transparente y ciudadanía consciente | N185: 1696 | O185: 1 | P185: 33703316 | Q185: NANCY ALEXANDRA SANCHEZ CORREA | R185: Persona Natural | W185: 42000000 | Y185: 1 | Z185: 7000000 | AA185: 49000000 | AB185: 28933333 | AC185: 2022-07-26 | AD185: 2022-07-27 | AE185: 2023-01-26 | AF185: 183 | AG185: 1 | AH185: 30 | AM185: En ejecución | AN185: 0.5904761837
A186: CPS-178-2022 | B186: 2022 | C186: FDRS-CD-181-2022 | D186: https://community.secop.gov.co/Public/Tendering/OpportunityDetail/Index?noticeUID=CO1.NTC.3071691&isFromPublicArea=True&isModal=False | E186: Contratos de prestación de servicios profesionales y de apoyo a la gestión | F186: Contratación directa | G186: Prestación de servicios profesionales y de apoyo a la gestión, o para la ejecución de trabajos artísticos que sólo puedan encomendarse a determinadas personas naturales | H186: PRESTAR LOS SERVICIOS COMO AUXILIAR ADMINISTRATIVO EN EL SEGUIMIENTO AL PROYECTO DE MEJORAMIENTO DE VIVIENDAS Y PROYECTOS RELACIONADOS DEL FONDO DE DESARROLLO RURAL DE SUMAPAZ | I186: Inversión | J186: Un nuevo contrato social y ambiental para la Bogotá del Siglo XXI | K186: 19 | L186: =IF(ISERROR(VLOOKUP(K186,Proposito_programa!$C$2:$E$59,2,FALSE))," ",VLOOKUP(K186,Proposito_programa!$C$2:$E$59,2,FALSE)) -> Vivienda y entornos dignos en el territorio urbano y rural | M186: =IF(ISERROR(VLOOKUP(K186,Proposito_programa!$C$2:$E$59,3,FALSE))," ",VLOOKUP(K186,Proposito_programa!$C$2:$E$59,3,FALSE)) -> Propósito 1: Hacer un nuevo contrato social para incrementar la inclusión social, productiva y política | N186: 1589 | O186: 1 | P186: 1073153934 | Q186: LUIS YADYR UNIBIO ZAMBRANO | R186: Persona Natural | W186: 16200000 | AA186: 16200000 | AB186: 11070000 | AC186: 2022-07-26 | AD186: 2022-07-28 | AE186: 2023-01-27 | AF186: 183 | AM186: En ejecución | AN186: 0.6833333333
A187: CPS-179-2022 | B187: 2022 | C187: FDRS-CD-182-2022 | D187: https://community.secop.gov.co/Public/Tendering/OpportunityDetail/Index?noticeUID=CO1.NTC.3091207&isFromPublicArea=True&isModal=False | E187: Contratos de prestación de servicios profesionales y de apoyo a la gestión | F187: Contratación directa | G187: Prestación de servicios profesionales y de apoyo a la gestión, o para la ejecución de trabajos artísticos que sólo puedan encomendarse a determinadas personas naturales | H187: PRESTAR LOS SERVICIOS PROFESIONALES AL ÁREA DE GESTIÓN DEL DESARROLLO LOCAL, PARA APOYAR LA ELABORACIÓN DE ESTUDIOS DEL SECTOR Y EVALUACIONES EN LA GESTIÓN CONTRACTUAL DEL FONDO DE DESARROLLO RURAL DE SUMAPAZ | I187: Inversión | J187: Un nuevo contrato social y ambiental para la Bogotá del Siglo XXI | K187: 57 | L187: =IF(ISERROR(VLOOKUP(K187,Proposito_programa!$C$2:$E$59,2,FALSE))," ",VLOOKUP(K187,Proposito_programa!$C$2:$E$59,2,FALSE)) -> Gestión pública local | M187: =IF(ISERROR(VLOOKUP(K187,Proposito_programa!$C$2:$E$59,3,FALSE))," ",VLOOKUP(K187,Proposito_programa!$C$2:$E$59,3,FALSE)) -> Propósito 5: Construir Bogotá - Región con gobierno abierto, transparente y ciudadanía consciente | N187: 1696 | O187: 1 | P187: 1032493669 | Q187: JUAN DIEGO TORRES TELLO | R187: Persona Natural | W187: 25000000 | Y187: 1 | Z187: 5000000 | AA187: 30000000 | AB187: 19833333 | AC187: 2022-08-01 | AD187: 2022-08-02 | AE187: 2023-01-01 | AF187: 152 | AG187: 1 | AH187: 30 | AM187: En ejecución | AN187: 0.6611111
A188: CPS-180-2022 | B188: 2022 | C188: FDRS-CD-184-2022 | D188: https://community.secop.gov.co/Public/Tendering/OpportunityDetail/Index?noticeUID=CO1.NTC.3116259&isFromPublicArea=True&isModal=False | E188: Contratos de prestación de servicios profesionales y de apoyo a la gestión | F188: Contratación directa | G188: Prestación de servicios profesionales y de apoyo a la gestión, o para la ejecución de trabajos artísticos que sólo puedan encomendarse a determinadas personas naturales | H188: PRESTAR LOS SERVICIOS COMO AUXILIAR DE APOYO ADMINISTRATIVO AL ÁREA DE GESTIÓN DE DESARROLLO LOCAL, DE LA ALCALDÍA LOCAL DE SUMAPAZ | I188: Inversión | J188: Un nuevo contrato social y ambiental para la Bogotá del Siglo XXI | K188: 57 | L188: =IF(ISERROR(VLOOKUP(K188,Proposito_programa!$C$2:$E$59,2,FALSE))," ",VLOOKUP(K188,Proposito_programa!$C$2:$E$59,2,FALSE)) -> Gestión pública local | M188: =IF(ISERROR(VLOOKUP(K188,Proposito_programa!$C$2:$E$59,3,FALSE))," ",VLOOKUP(K188,Proposito_programa!$C$2:$E$59,3,FALSE)) -> Propósito 5: Construir Bogotá - Región con gobierno abierto, transparente y ciudadanía consciente | N188: 1696 | O188: 1 | P188: 35353519 | Q188: LEIDY BIBIANA GONZALEZ FUYO | R188: Persona Natural | W188: 13500000 | Y188: 1 | Z188: 1890000 | AA188: 15390000 | AB188: 9990000 | AC188: 2022-08-05 | AD188: 2022-08-10 | AE188: 2023-01-09 | AF188: 152 | AM188: En ejecución | AN188: 0.649122807
A189: CPS-181-2022 | B189: 2022 | C189: FDRS-CD-185-2022 | D189: https://community.secop.gov.co/Public/Tendering/OpportunityDetail/Index?noticeUID=CO1.NTC.3107826&isFromPublicArea=True&isModal=False | E189: Contratos de prestación de servicios profesionales y de apoyo a la gestión | F189: Contratación directa | G189: Prestación de servicios profesionales y de apoyo a la gestión, o para la ejecución de trabajos artísticos que sólo puedan encomendarse a determinadas personas naturales | H189: PRESTAR SUS SERVICIOS PROFESIONALES DE APOYO AL ÁREA DE GESTIÓN DE DESARROLLO LOCAL, EN LAS RESPUESTAS A LAS PROPOSICIONES Y REQUERIMIENTOS QUE SE RADIQUEN EN EL DESPACHO DE LA ALCALDÍA DE SUMAPAZ | I189: Inversión | J189: Un nuevo contrato social y ambiental para la Bogotá del Siglo XXI | K189: 57 | L189: =IF(ISERROR(VLOOKUP(K189,Proposito_programa!$C$2:$E$59,2,FALSE))," ",VLOOKUP(K189,Proposito_programa!$C$2:$E$59,2,FALSE)) -> Gestión pública local | M189: =IF(ISERROR(VLOOKUP(K189,Proposito_programa!$C$2:$E$59,3,FALSE))," ",VLOOKUP(K189,Proposito_programa!$C$2:$E$59,3,FALSE)) -> Propósito 5: Construir Bogotá - Región con gobierno abierto, transparente y ciudadanía consciente | N189: 1696 | O189: 1 | P189: 1121890356 | Q189: JESSICA ANDREA JIMENEZ POLANIA | R189: Persona Natural | W189: 23000000 | Y189: 1 | Z189: 3986667 | AA189: 26986667 | AB189: 17633333 | AC189: 2022-08-04 | AD189: 2022-08-05 | AE189: 2023-01-04 | AF189: 152 | AG189: 1 | AH189: 26 | AM189: En ejecución | AN189: 0.6534090705
A190: CAR-182-2022 | B190: 2022 | C190: FDRS-CD-186-2022 | D190: https://community.secop.gov.co/Public/Tendering/OpportunityDetail/Index?noticeUID=CO1.NTC.3115827&isFromPublicArea=True&isModal=False | E190: Arrendamiento de bienes inmuebles | F190: Contratación directa | G190: El arrendamiento o adquisición de inmuebles | H190: ADQUIRIR A TÍTULO DE ARRENDAMIENTO OFICINAS PARA EL FUNCIONAMIENTO DEL ESPACIO DE REUNIONES DE LA ALCALDÍA LOCAL DE SUMAPAZ EN BOGOTÁ URBANA | I190: Funcionamiento | J190: Un nuevo contrato social y ambiental para la Bogotá del Siglo XXI | K190: No aplica | L190: =IF(ISERROR(VLOOKUP(K190,Proposito_programa!$C$2:$E$59,2,FALSE))," ",VLOOKUP(K190,Proposito_programa!$C$2:$E$59,2,FALSE)) ->  | M190: =IF(ISERROR(VLOOKUP(K190,Proposito_programa!$C$2:$E$59,3,FALSE))," ",VLOOKUP(K190,Proposito_programa!$C$2:$E$59,3,FALSE)) ->  | O190: 1 | P190: 901402206 | Q190: MANA INVERSIONES SAS | R190: Persona Jurídica | W190: 30000000 | AA190: =+W190+X190+Z190 -> 30000000 | AB190: 20000000 | AC190: 2022-08-05 | AD190: 2022-08-10 | AE190: 2023-02-09 | AF190: 183 | AM190: En ejecución | AN190: 0.6666666667
A191: CPS-183-2022 | B191: 2022 | C191: FDRS-CD-187-2022 | D191: https://community.secop.gov.co/Public/Tendering/OpportunityDetail/Index?noticeUID=CO1.NTC.3148716&isFromPublicArea=True&isModal=False | E191: Contratos de prestación de servicios profesionales y de apoyo a la gestión | F191: Contratación directa | G191: Prestación de servicios profesionales y de apoyo a la gestión, o para la ejecución de trabajos artísticos que sólo puedan encomendarse a determinadas personas naturales | H191: PRESTAR LOS SERVICIOS COMO CONDUCTOR DE VOLQUETAS (VEHÍCULOS PESADOS) DE PROPIEDAD O TENENCIA DEL FONDO DE DESARROLLO LOCAL DE SUMAPAZ | I191: Inversión | J191: Un nuevo contrato social y ambiental para la Bogotá del Siglo XXI | K191: 49 | L191: =IF(ISERROR(VLOOKUP(K191,Proposito_programa!$C$2:$E$59,2,FALSE))," ",VLOOKUP(K191,Proposito_programa!$C$2:$E$59,2,FALSE)) -> Movilidad segura, sostenible y accesible | M191: =IF(ISERROR(VLOOKUP(K191,Proposito_programa!$C$2:$E$59,3,FALSE))," ",VLOOKUP(K191,Proposito_programa!$C$2:$E$59,3,FALSE)) -> Propósito 4: Hacer de Bogotá Región un modelo de movilidad multimodal, incluyente y sostenible | N191: 1688 | O191: 1 | P191: 80877733 | Q191: HILBER VERGARA ROBAYO | R191: Persona Natural | W191: 13500000 | AA191: 13500000 | AB191: 9180000 | AC191: 2022-08-12 | AD191: 2022-08-19 | AE191: 2023-01-18 | AF191: 152 | AM191: En ejecución | AN191: 0.68
A192: CPS-184-2022 | B192: 2022 | C192: FDRS-CD-188-2022 | D192: https://community.secop.gov.co/Public/Tendering/OpportunityDetail/Index?noticeUID=CO1.NTC.3155345&isFromPublicArea=True&isModal=False | E192: Contratos de prestación de servicios profesionales y de apoyo a la gestión | F192: Contratación directa | G192: Prestación de servicios profesionales y de apoyo a la gestión, o para la ejecución de trabajos artísticos que sólo puedan encomendarse a determinadas personas naturales | H192: PRESTAR LOS SERVICIOS COMO CONDUCTOR DE VOLQUETAS (VEHÍCULOS PESADOS) DE PROPIEDAD O TENENCIA DEL FONDO DE DESARROLLO LOCAL DE SUMAPAZ | I192: Inversión | J192: Un nuevo contrato social y ambiental para la Bogotá del Siglo XXI | K192: 49 | L192: =IF(ISERROR(VLOOKUP(K192,Proposito_programa!$C$2:$E$59,2,FALSE))," ",VLOOKUP(K192,Proposito_programa!$C$2:$E$59,2,FALSE)) -> Movilidad segura, sostenible y accesible | M192: =IF(ISERROR(VLOOKUP(K192,Proposito_programa!$C$2:$E$59,3,FALSE))," ",VLOOKUP(K192,Proposito_programa!$C$2:$E$59,3,FALSE)) -> Propósito 4: Hacer de Bogotá Región un modelo de movilidad multimodal, incluyente y sostenible | N192: 1688 | O192: 1 | P192: 79819241 | Q192: CARLOS JULIO PALACIOS RAMIREZ | R192: Persona Natural | W192: 13500000 | AA192: 13500000 | AB192: 8910000 | AC192: 2022-08-17 | AD192: 2022-08-22 | AE192: 2023-01-21 | AF192: 152 | AM192: En ejecución | AN192: 0.66
A193: CPS-185-2022 | B193: 2022 | C193: FDRS-CD-189-2022 | D193: https://community.secop.gov.co/Public/Tendering/OpportunityDetail/Index?noticeUID=CO1.NTC.3139917&isFromPublicArea=True&isModal=False | E193: Contratos de prestación de servicios profesionales y de apoyo a la gestión | F193: Contratación directa | G193: Prestación de servicios profesionales y de apoyo a la gestión, o para la ejecución de trabajos artísticos que sólo puedan encomendarse a determinadas personas naturales | H193: PRESTAR LOS SERVICIOS COMO AYUDANTES DE MAQUINARIA PESADA DE PROPIEDAD O TENENCIA DEL FONDO DE DESARROLLO LOCAL DE SUMAPAZ | I193: Inversión | J193: Un nuevo contrato social y ambiental para la Bogotá del Siglo XXI | K193: 49 | L193: =IF(ISERROR(VLOOKUP(K193,Proposito_programa!$C$2:$E$59,2,FALSE))," ",VLOOKUP(K193,Proposito_programa!$C$2:$E$59,2,FALSE)) -> Movilidad segura, sostenible y accesible | M193: =IF(ISERROR(VLOOKUP(K193,Proposito_programa!$C$2:$E$59,3,FALSE))," ",VLOOKUP(K193,Proposito_programa!$C$2:$E$59,3,FALSE)) -> Propósito 4: Hacer de Bogotá Región un modelo de movilidad multimodal, incluyente y sostenible | N193: 1688 | O193: 1 | P193: 1055314053 | Q193: EDISON JOAQUIN BECERRA GONZALEZ | R193: Persona Natural | W193: 13000000 | AA193: 13000000 | AB193: 9013334 | AC193: 2022-08-11 | AD193: 2022-08-17 | AE193: 2023-01-16 | AF193: 152 | AI193: 1032656063 | AJ193: LUIS ENRIQUE MARTINEZ BENAVIDES | AK193: 2022-11-02 | AL193: 6500000 | AM193: En ejecución | AN193: 0.6933333846
A194: CPS-186-2022 | B194: 2022 | C194: FDRS-CD-190-2022 | D194: https://community.secop.gov.co/Public/Tendering/OpportunityDetail/Index?noticeUID=CO1.NTC.3135588&isFromPublicArea=True&isModal=False | E194: Contratos de prestación de servicios profesionales y de apoyo a la gestión | F194: Contratación directa | G194: Prestación de servicios profesionales y de apoyo a la gestión, o para la ejecución de trabajos artísticos que sólo puedan encomendarse a determinadas personas naturales | H194: PRESTAR LOS SERVICIOS COMO CONDUCTOR DE VOLQUETAS (VEHÍCULOS PESADOS) DE PROPIEDAD O TENENCIA DEL FONDO DE DESARROLLO LOCAL DE SUMAPAZ | I194: Inversión | J194: Un nuevo contrato social y ambiental para la Bogotá del Siglo XXI | K194: 49 | L194: =IF(ISERROR(VLOOKUP(K194,Proposito_programa!$C$2:$E$59,2,FALSE))," ",VLOOKUP(K194,Proposito_programa!$C$2:$E$59,2,FALSE)) -> Movilidad segura, sostenible y accesible | M194: =IF(ISERROR(VLOOKUP(K194,Proposito_programa!$C$2:$E$59,3,FALSE))," ",VLOOKUP(K194,Proposito_programa!$C$2:$E$59,3,FALSE)) -> Propósito 4: Hacer de Bogotá Región un modelo de movilidad multimodal, incluyente y sostenible | N194: 1688 | O194: 1 | P194: 1007829181 | Q194: ELKIN ANDRES GARCIA CIFUENTES | R194: Persona Natural | W194: 13500000 | AA194: 13500000 | AB194: 8910000 | AC194: 2022-08-10 | AD194: 2022-08-22 | AE194: 2023-01-21 | AF194: 152 | AM194: En ejecución | AN194: 0.66
A195: CPS-187-2022 | B195: 2022 | C195: FDRS-CD-191-2022 | D195: https://community.secop.gov.co/Public/Tendering/OpportunityDetail/Index?noticeUID=CO1.NTC.3135846&isFromPublicArea=True&isModal=False | E195: Contratos de prestación de servicios profesionales y de apoyo a la gestión | F195: Contratación directa | G195: Prestación de servicios profesionales y de apoyo a la gestión, o para la ejecución de trabajos artísticos que sólo puedan encomendarse a determinadas personas naturales | H195: PRESTAR LOS SERVICIOS COMO CONDUCTOR DE VOLQUETAS (VEHÍCULOS PESADOS) DE PROPIEDAD O TENENCIA DEL FONDO DE DESARROLLO LOCAL DE SUMAPAZ | I195: Inversión | J195: Un nuevo contrato social y ambiental para la Bogotá del Siglo XXI | K195: 49 | L195: =IF(ISERROR(VLOOKUP(K195,Proposito_programa!$C$2:$E$59,2,FALSE))," ",VLOOKUP(K195,Proposito_programa!$C$2:$E$59,2,FALSE)) -> Movilidad segura, sostenible y accesible | M195: =IF(ISERROR(VLOOKUP(K195,Proposito_programa!$C$2:$E$59,3,FALSE))," ",VLOOKUP(K195,Proposito_programa!$C$2:$E$59,3,FALSE)) -> Propósito 4: Hacer de Bogotá Región un modelo de movilidad multimodal, incluyente y sostenible | N195: 1688 | O195: 1 | P195: 1032656045 | Q195: EDUARDO DIMATE RICO | R195: Persona Natural | W195: 13500000 | AA195: 13500000 | AB195: 8910000 | AC195: 2022-08-10 | AD195: 2022-08-22 | AE195: 2023-01-21 | AF195: 152 | AM195: En ejecución | AN195: 0.66
A196: CPS-188-2022 | B196: 2022 | C196: FDRS-CD-192-2022 | D196: https://community.secop.gov.co/Public/Tendering/OpportunityDetail/Index?noticeUID=CO1.NTC.3144671&isFromPublicArea=True&isModal=False | E196: Contratos de prestación de servicios profesionales y de apoyo a la gestión | F196: Contratación directa | G196: Prestación de servicios profesionales y de apoyo a la gestión, o para la ejecución de trabajos artísticos que sólo puedan encomendarse a determinadas personas naturales | H196: PRESTAR LOS SERVICIOS COMO AYUDANTES DE MAQUINARIA PESADA DE PROPIEDAD O TENENCIA DEL FONDO DE DESARROLLO LOCAL DE SUMAPAZ | I196: Inversión | J196: Un nuevo contrato social y ambiental para la Bogotá del Siglo XXI | K196: 49 | L196: =IF(ISERROR(VLOOKUP(K196,Proposito_programa!$C$2:$E$59,2,FALSE))," ",VLOOKUP(K196,Proposito_programa!$C$2:$E$59,2,FALSE)) -> Movilidad segura, sostenible y accesible | M196: =IF(ISERROR(VLOOKUP(K196,Proposito_programa!$C$2:$E$59,3,FALSE))," ",VLOOKUP(K196,Proposito_programa!$C$2:$E$59,3,FALSE)) -> Propósito 4: Hacer de Bogotá Región un modelo de movilidad multimodal, incluyente y sostenible | N196: 1688 | O196: 1 | P196: 1023006848 | Q196: MARIA PILAR CONTRERAS MARTINEZ | R196: Persona Natural | W196: 13000000 | AA196: 13000000 | AB196: 9013334 | AC196: 2022-08-12 | AD196: 2022-08-17 | AE196: 2023-01-16 | AF196: 152 | AM196: En ejecución | AN196: 0.6933333846
A197: CPS-189-2022 | B197: 2022 | C197: FDRS-CD-193-2022 | D197: https://community.secop.gov.co/Public/Tendering/OpportunityDetail/Index?noticeUID=CO1.NTC.3137414&isFromPublicArea=True&isModal=False | E197: Contratos de prestación de servicios profesionales y de apoyo a la gestión | F197: Contratación directa | G197: Prestación de servicios profesionales y de apoyo a la gestión, o para la ejecución de trabajos artísticos que sólo puedan encomendarse a determinadas personas naturales | H197: PRESTAR LOS SERVICIOS COMO CONDUCTOR DE VOLQUETAS (VEHÍCULOS PESADOS) DE PROPIEDAD O TENENCIA DEL FONDO DE DESARROLLO LOCAL DE SUMAPAZ | I197: Inversión | J197: Un nuevo contrato social y ambiental para la Bogotá del Siglo XXI | K197: 49 | L197: =IF(ISERROR(VLOOKUP(K197,Proposito_programa!$C$2:$E$59,2,FALSE))," ",VLOOKUP(K197,Proposito_programa!$C$2:$E$59,2,FALSE)) -> Movilidad segura, sostenible y accesible | M197: =IF(ISERROR(VLOOKUP(K197,Proposito_programa!$C$2:$E$59,3,FALSE))," ",VLOOKUP(K197,Proposito_programa!$C$2:$E$59,3,FALSE)) -> Propósito 4: Hacer de Bogotá Región un modelo de movilidad multimodal, incluyente y sostenible | N197: 1688 | O197: 1 | P197: 79632409 | Q197: GERMAN ROMERO ROMAN | R197: Persona Natural | W197: 13500000 | AA197: 13500000 | AB197: 8910000 | AC197: 2022-08-11 | AD197: 2022-08-22 | AE197: 2023-01-21 | AF197: 152 | AM197: En ejecución | AN197: 0.66
A198: CPS-190-2022 | B198: 2022 | C198: FDRS-CD-194-2022 | D198: https://community.secop.gov.co/Public/Tendering/OpportunityDetail/Index?noticeUID=CO1.NTC.3148782&isFromPublicArea=True&isModal=False | E198: Contratos de prestación de servicios profesionales y de apoyo a la gestión | F198: Contratación directa | G198: Prestación de servicios profesionales y de apoyo a la gestión, o para la ejecución de trabajos artísticos que sólo puedan encomendarse a determinadas personas naturales | H198: PRESTAR LOS SERVICIOS COMO CONDUCTOR DE VOLQUETAS (VEHÍCULOS PESADOS) DE PROPIEDAD O TENENCIA DEL FONDO DE DESARROLLO LOCAL DE SUMAPAZ | I198: Inversión | J198: Un nuevo contrato social y ambiental para la Bogotá del Siglo XXI | K198: 49 | L198: =IF(ISERROR(VLOOKUP(K198,Proposito_programa!$C$2:$E$59,2,FALSE))," ",VLOOKUP(K198,Proposito_programa!$C$2:$E$59,2,FALSE)) -> Movilidad segura, sostenible y accesible | M198: =IF(ISERROR(VLOOKUP(K198,Proposito_programa!$C$2:$E$59,3,FALSE))," ",VLOOKUP(K198,Proposito_programa!$C$2:$E$59,3,FALSE)) -> Propósito 4: Hacer de Bogotá Región un modelo de movilidad multimodal, incluyente y sostenible | N198: 1688 | O198: 1 | P198: 80452901 | Q198: NILSON LOPEZ RAMIREZ | R198: Persona Natural | W198: 13500000 | AA198: 13500000 | AB198: 8910000 | AC198: 2022-08-12 | AD198: 2022-08-22 | AE198: 2023-01-21 | AF198: 152 | AM198: En ejecución | AN198: 0.66
A199: CPS-191-2022 | B199: 2022 | C199: FDRS-CD-195-2022 | D199: https://community.secop.gov.co/Public/Tendering/OpportunityDetail/Index?noticeUID=CO1.NTC.3143222&isFromPublicArea=True&isModal=False | E199: Contratos de prestación de servicios profesionales y de apoyo a la gestión | F199: Contratación directa | G199: Prestación de servicios profesionales y de apoyo a la gestión, o para la ejecución de trabajos artísticos que sólo puedan encomendarse a determinadas personas naturales | H199: PRESTAR LOS SERVICIOS COMO CONDUCTOR DE VOLQUETAS (VEHÍCULOS PESADOS) DE PROPIEDAD O TENENCIA DEL FONDO DE DESARROLLO LOCAL DE SUMAPAZ | I199: Inversión | J199: Un nuevo contrato social y ambiental para la Bogotá del Siglo XXI | K199: 49 | L199: =IF(ISERROR(VLOOKUP(K199,Proposito_programa!$C$2:$E$59,2,FALSE))," ",VLOOKUP(K199,Proposito_programa!$C$2:$E$59,2,FALSE)) -> Movilidad segura, sostenible y accesible | M199: =IF(ISERROR(VLOOKUP(K199,Proposito_programa!$C$2:$E$59,3,FALSE))," ",VLOOKUP(K199,Proposito_programa!$C$2:$E$59,3,FALSE)) -> Propósito 4: Hacer de Bogotá Región un modelo de movilidad multimodal, incluyente y sostenible | N199: 1688 | O199: 1 | P199: 79632420 | Q199: MARLON RAMIREZ ROMAN | R199: Persona Natural | W199: 13500000 | AA199: 13500000 | AB199: 7650000 | AC199: 2022-08-12 | AD199: 2022-08-23 | AE199: 2023-01-22 | AF199: 152 | AM199: En ejecución | AN199: 0.5666666667
A200: CPS-192-2022 | B200: 2022 | C200: FDRS-CD-196-2022 | D200: https://community.secop.gov.co/Public/Tendering/OpportunityDetail/Index?noticeUID=CO1.NTC.3145165&isFromPublicArea=True&isModal=False | E200: Contratos de prestación de servicios profesionales y de apoyo a la gestión | F200: Contratación directa | G200: Prestación de servicios profesionales y de apoyo a la gestión, o para la ejecución de trabajos artísticos que sólo puedan encomendarse a determinadas personas naturales | H200: PRESTAR LOS SERVICIOS COMO AYUDANTES DE MAQUINARIA PESADA DE PROPIEDAD O TENENCIA DEL FONDO DE DESARROLLO LOCAL DE SUMAPAZ | I200: Inversión | J200: Un nuevo contrato social y ambiental para la Bogotá del Siglo XXI | K200: 49 | L200: =IF(ISERROR(VLOOKUP(K200,Proposito_programa!$C$2:$E$59,2,FALSE))," ",VLOOKUP(K200,Proposito_programa!$C$2:$E$59,2,FALSE)) -> Movilidad segura, sostenible y accesible | M200: =IF(ISERROR(VLOOKUP(K200,Proposito_programa!$C$2:$E$59,3,FALSE))," ",VLOOKUP(K200,Proposito_programa!$C$2:$E$59,3,FALSE)) -> Propósito 4: Hacer de Bogotá Región un modelo de movilidad multimodal, incluyente y sostenible | N200: 1688 | O200: 1 | P200: 1069749786 | Q200: YILBER ADAMES RAMIREZ | R200: Persona Natural | W200: 13000000 | AA200: 13000000 | AB200: 9013334 | AC200: 2022-08-12 | AD200: 2022-08-17 | AE200: 2023-01-16 | AF200: 152 | AM200: En ejecución | AN200: 0.6933333846
A201: CPS-193-2022 | B201: 2022 | C201: FDRS-CD-197-2022 | D201: https://community.secop.gov.co/Public/Tendering/OpportunityDetail/Index?noticeUID=CO1.NTC.3143809&isFromPublicArea=True&isModal=False | E201: Contratos de prestación de servicios profesionales y de apoyo a la gestión | F201: Contratación directa | G201: Prestación de servicios profesionales y de apoyo a la gestión, o para la ejecución de trabajos artísticos que sólo puedan encomendarse a determinadas personas naturales | H201: PRESTAR LOS SERVICIOS PARA CONDUCIR Y/O MANEJAR Y/O OPERAR EL CARROTANQUE DE PROPIEDAD DEL FONDO DE DESARROLLO LOCAL DE SUMAPAZ | I201: Inversión | J201: Un nuevo contrato social y ambiental para la Bogotá del Siglo XXI | K201: 49 | L201: =IF(ISERROR(VLOOKUP(K201,Proposito_programa!$C$2:$E$59,2,FALSE))," ",VLOOKUP(K201,Proposito_programa!$C$2:$E$59,2,FALSE)) -> Movilidad segura, sostenible y accesible | M201: =IF(ISERROR(VLOOKUP(K201,Proposito_programa!$C$2:$E$59,3,FALSE))," ",VLOOKUP(K201,Proposito_programa!$C$2:$E$59,3,FALSE)) -> Propósito 4: Hacer de Bogotá Región un modelo de movilidad multimodal, incluyente y sostenible | N201: 1688 | O201: 1 | P201: 1032656406 | Q201: FABIAN LEONARDO PULIDO MORENO | R201: Persona Natural | W201: 13500000 | AA201: 13500000 | AB201: 8910000 | AC201: 2022-08-12 | AD201: 2022-08-22 | AE201: 2023-01-21 | AF201: 152 | AM201: En ejecución | AN201: 0.66
A202: CPS-194-2022 | B202: 2022 | C202: FDRS-CD-198-2022 | D202: https://community.secop.gov.co/Public/Tendering/OpportunityDetail/Index?noticeUID=CO1.NTC.3152980&isFromPublicArea=True&isModal=False | E202: Contratos de prestación de servicios profesionales y de apoyo a la gestión | F202: Contratación directa | G202: Prestación de servicios profesionales y de apoyo a la gestión, o para la ejecución de trabajos artísticos que sólo puedan encomendarse a determinadas personas naturales | H202: PRESTAR LOS SERVICIOS PARA OPERAR Y/O MANEJAR LA MAQUINARIA PESADA QUE LE SEA ASIGNADA, DE PROPIEDAD O TENENCIA DEL FONDO DE DESARROLLO LOCAL DE SUMAPAZ | I202: Inversión | J202: Un nuevo contrato social y ambiental para la Bogotá del Siglo XXI | K202: 49 | L202: =IF(ISERROR(VLOOKUP(K202,Proposito_programa!$C$2:$E$59,2,FALSE))," ",VLOOKUP(K202,Proposito_programa!$C$2:$E$59,2,FALSE)) -> Movilidad segura, sostenible y accesible | M202: =IF(ISERROR(VLOOKUP(K202,Proposito_programa!$C$2:$E$59,3,FALSE))," ",VLOOKUP(K202,Proposito_programa!$C$2:$E$59,3,FALSE)) -> Propósito 4: Hacer de Bogotá Región un modelo de movilidad multimodal, incluyente y sostenible | N202: 1688 | O202: 1 | P202: 1022938049 | Q202: ALEXANDER BUSTOS CHAVARRO | R202: Persona Natural | W202: 13500000 | AA202: 13500000 | AB202: 8910000 | AC202: 2022-08-16 | AD202: 2022-08-22 | AE202: 2023-01-21 | AF202: 152 | AM202: En ejecución | AN202: 0.66
... 569 more rows

Sheet BOGDATA VS FORMATO 2
A1: BOGDATA- CUADRO ANALISIS - SUMAPAZ
C2: COMPROMISOS ACUMULADOS BOGDATA | D2: VALOR FINAL | E2: ACUMULADO GIROS BOGDATA | F2: GIROS
B3: FUNCIONAMIENTO | C3: 2673889361 | D3: 2673889361 | E3: 2113929714 | F3: 2113929714
B4: DIFERENCIAS | C4: =+C3-D3 -> 0 | E4: =+E3-F3 -> 0
B5: INVERSION (Comprometido) | C5: 42652920995 | D5: 42652920995 | E5: 15195199466 | F5: 15195199466
B6: DIFERENCIAS | C6: =C5-D5 -> 0 | E6: =E5-F5 -> 0
B7: Un nuevo contrato social y ambiental para la Bogotá del Siglo XXI | C7: 42652920995 | D7: 42652920995 | E7: 15195199466 | F7: 15195199466
B8: DIFERENCIAS | C8: =C7-D7 -> 0 | E8: =E7-F7 -> 0
B9: Propósito 1 - Hacer un nuevo contrato social con igualdad de oportunidades para la inclusión social, productiva y política | C9: 16070055016 | D9: 16070055016 | E9: 6689971358 | F9: 6689971358
B10: DIFERENCIAS | C10: =C9-D9 -> 0 | E10: =E9-F9 -> 0
B11: Subsidios y transferencias para la equidad - Programa 1 | C11: 1147422770 | D11: 1147422770 | E11: 651900270 | F11: 651900270
B12: DIFERENCIAS | C12: =C11-D11 -> 0 | E12: =+E11-F11 -> 0
B13: Proyecto 1583 | C13: 1147422770 | D13: 1147422770 | E13: 651900270 | F13: 651900270
B14: DIFERENCIAS | C14: =+C13-D13 -> 0 | E14: =+E13-F13 -> 0
B15: Sistema Distrital del Cuidado - Programa 6 | C15: 5085458463 | D15: 5085458463 | E15: 2360435362 | F15: 2360435362
B16: DIFERENCIAS | C16: =+C15-D15 -> 0 | E16: =+E15-F15 -> 0
B17: Proyecto 1637 | C17: 3513400000 | D17: 3513400000 | E17: 1931228732 | F17: 1931228732
B18: DIFERENCIAS | C18: =+C17-D17 -> 0 | E18: =+E17-F17 -> 0
B19: Proyecto 1638 | C19: 234814598 | D19: 234814598 | E19: 80812964 | F19: 80812964
B20: DIFERENCIAS | C20: =+C19-D19 -> 0 | E20: =+E19-F19 -> 0
B21: Proyecto 1641 | C21: 637253744 | D21: 637253744 | E21: 287727000 | F21: 287727000
B22: DIFERENCIAS | C22: =+C21-D21 -> 0 | E22: =+E21-F21 -> 0
B23: Proyecto 1643 | C23: 699990121 | D23: 699990121 | E23: 60666666 | F23: 60666666
B24: DIFERENCIAS | C24: =+C23-D23 -> 0 | E24: =+E23-F23 -> 0
B25: Prevención y atención de maternidad temprana - Programa 8 | C25: 70000000 | D25: 70000000 | E25: 0 | F25: 0
B26: DIFERENCIAS | C26: =+C25-D25 -> 0 | E26: =+E25-F25 -> 0
B27: Proyecto 1645 | C27: 70000000 | D27: 70000000 | E27: 0 | F27: 0
B28: DIFERENCIAS | C28: =+C27-D27 -> 0 | E28: =+E27-F27 -> 0
B29: Educación inicial: Bases sólidas para la vida - Programa 12 | C29: 134999599 | D29: 134999599 | E29: 0 | F29: 0
B30: DIFERENCIAS | C30: =+C29-D29 -> 0 | E30: =+E29-F29 -> 0
B31: Proyecto 1585 | C31: 134999599 | D31: 134999599 | E31: 0 | F31: 0
B32: DIFERENCIAS | C32: =+C31-D31 -> 0 | E32: =+E31-F31 -> 0
B33: Formación integral: más y mejor tiempo en los colegios - Programa 14 | C33: 509841230 | D33: 509841230 | E33: 102249513 | F33: 102249513
B34: DIFERENCIAS | C34: =+C33-D33 -> 0 | E34: =+E33-F33 -> 0
B35: Proyecto 1586 | C35: 509841230 | D35: 509841230 | E35: 102249513 | F35: 102249513
B36: DIFERENCIAS | C36: =+C35-D35 -> 0 | E36: =+E35-F35 -> 0
B37: Cierre de brechas para la inclusión productiva urbano rural - programa 18 | C37: 1639500000 | D37: 1639500000 | E37: 1610243333 | F37: 1610243333
B38: DIFERENCIAS | C38: =+C37-D37 -> 0 | E38: =+E37-F37 -> 0
B39: Proyecto 1587 | C39: 1639500000 | D39: 1639500000 | E39: 1610243333 | F39: 1610243333
B40: DIFERENCIAS | C40: =+C39-D39 -> 0 | E40: =+E39-F39 -> 0
B41: Vivienda y entornos dignos en el territorio urbano y rural - Programa 19 | C41: 1733919564 | D41: 1733919564 | E41: 230659999 | F41: 230659999
B42: DIFERENCIAS | C42: =+C41-D41 -> 0 | E42: =+E41-F41 -> 0
B43: Proyecto 1589 | C43: 1733919564 | D43: 1733919564 | E43: 230659999 | F43: 230659999
B44: DIFERENCIAS | C44: =+C43-D43 -> 0 | E44: =+E43-F43 -> 0
B45: Bogotá, referente en cultura, deporte, recreación y actividad física, con parques para el desarrollo y la salud - Programa 20 | C45: 1441929570 | D45: 1441929570 | E45: 445293333 | F45: 445293333
B46: DIFERENCIAS | C46: =+C45-D45 -> 0 | E46: =+E45-F45 -> 0
B47: Proyecto 1590 | C47: 1441929570 | D47: 1441929570 | E47: 445293333 | F47: 445293333
B48: DIFERENCIAS | C48: =+C47-D47 -> 0 | E48: =+E47-F47 -> 0
B49: Creación y vida cotidiana: Apropiación ciudadana del arte, la cultura y el patrimonio, para la democracia cultural - programa 21 | C49: 2985980535 | D49: 2985980535 | E49: 803117213 | F49: 803117213
B50: DIFERENCIAS | C50: =+C49-D49 -> 0 | E50: =+E49-F49 -> 0
B51: Proyecto 1633 | C51: 2985980535 | D51: 2985980535 | E51: 803117213 | F51: 803117213
B52: DIFERENCIAS | C52: =+C51-D51 -> 0 | E52: =+E51-F51 -> 0
B53: Bogotá rural - programa 23 | C53: 1091003285 | D53: 1091003285 | E53: 465260335 | F53: 465260335
B54: DIFERENCIAS | C54: =+C53-D53 -> 0 | E54: =+E53-F53 -> 0
B55: Proyecto 1634 | C55: 1091003285 | D55: 1091003285 | E55: 465260335 | F55: 465260335
B56: DIFERENCIAS | C56: =+C55-D55 -> 0 | E56: =+E55-F55 -> 0
B57: Bogotá región emprendedora e innovadora - Programa 24 | C57: 230000000 | D57: 230000000 | E57: 20812000 | F57: 20812000
B58: DIFERENCIAS | C58: =+C57-D57 -> 0 | E58: =+E57-F57 -> 0
B59: Proyecto 1653 | C59: 230000000 | D59: 230000000 | E59: 20812000 | F59: 20812000
B60: DIFERENCIAS | C60: =+C59-D59 -> 0 | E60: =+E59-F59 -> 0
B61: Propósito 2 - Cambiar nuestros hábitos de vida para reverdecer a Bogotá y adaptarnos y mitigar la crisis climática | C61: 4750587919 | D61: 4750587919 | E61: 516403333 | F61: 516403333
B62: DIFERENCIAS | C62: =+C61-D61 -> 0 | E62: =+E61-F61 -> 0
B63: Bogotá protectora de sus recursos naturales - Programa 28 | C63: 297200000 | D63: 297200000 | E63: 156143333 | F63: 156143333
B64: DIFERENCIAS | C64: =+C63-D63 -> 0 | E64: =+E63-F63 -> 0
B65: Proyecto 1648 | C65: 205200000 | D65: 205200000 | E65: 123043333 | F65: 123043333
B66: DIFERENCIAS | C66: =+C65-D65 -> 0 | E66: =+E65-F65 -> 0
B67: Poryecto 1651 | C67: 92000000 | D67: 92000000 | E67: 33100000 | F67: 33100000
B68: DIFERENCIAS | C68: =+C67-D67 -> 0 | E68: =+E67-F67 -> 0
B69: Eficiencia en la atención de emergencias - Programa 30 | C69: 2214751412 | D69: 2214751412 | E69: 127916666 | F69: 127916666
B70: DIFERENCIAS | C70: =+C69-D69 -> 0 | E70: =+E69-F69 -> 0
B71: Proyecto 1652 | C71: 2214751412 | D71: 2214751412 | E71: 127916666 | F71: 127916666
B72: DIFERENCIAS | C72: =+C71-D71 -> 0 | E72: =+E71-F71 -> 0
B73: Bogotá protectora de los animales - Programa 34 | C73: 425000000 | D73: 425000000 | E73: 96036667 | F73: 96036667
B74: DIFERENCIAS | C74: =+C73-D73 -> 0 | E74: =+E73-F73 -> 0
B75: Proyecto 1666 | C75: 425000000 | D75: 425000000 | E75: 96036667 | F75: 96036667
B76: DIFERENCIAS | C76: =+C75-D75 -> 0 | E76: =+E75-F75 -> 0
B77: Provisión y mejoramiento de servicios públicos -Programa 37 | C77: 926186917 | D77: 926186917 | E77: 23306667 | F77: 23306667
B78: DIFERENCIAS | C78: =+C77-D77 -> 0 | E78: =+E77-F77 -> 0
B79: Proyecto 1668 | C79: 926186917 | D79: 926186917 | E79: 23306667 | F79: 23306667
B80: DIFERENCIAS | C80: =+C79-D79 -> 0 | E80: =+E79-F79 -> 0
B81: Ecoeficiencia, reciclaje, manejo de residuos e inclusión de la población recicladora - Programa 38 | C81: 887449590 | D81: 887449590 | E81: 113000000 | F81: 113000000
B82: DIFERENCIAS | C82: =+C81-D81 -> 0 | E82: =+E81-F81 -> 0
B83: Proyecto 1669 | C83: 887449590 | D83: 887449590 | E83: 113000000 | F83: 113000000
B84: DIFERENCIAS | C84: =+C83-D83 -> 0 | E84: =+E83-F83 -> 0
B85: Propósito 3 - Inspirar confianza y legitimidad para vivir sin miedo y ser epicentro de cultura ciudadana, paz y reconciliación | C85: 2137407379 | D85: 2137407379 | E85: 1264255129 | F85: 1264255129
B86: DIFERENCIAS | C86: =+C85-D85 -> 0 | E86: =+E85-F85 -> 0
B87: Bogotá territorio de paz y atención integral a las víctimas del conflicto armado - Programa 39 | C87: 685975356 | D87: 685975356 | E87: 407999999 | F87: 407999999
B88: DIFERENCIAS | C88: =+C87-D87 -> 0 | E88: =+E87-F87 -> 0
B89: Proyecto 1672 | C89: 685975356 | D89: 685975356 | E89: 407999999 | F89: 407999999
B90: DIFERENCIAS | C90: =+C89-D89 -> 0 | E90: =+E89-F89 -> 0
B91: Más mujeres viven una vida libre de violencias, se sienten seguras y acceden con confianza al sistema de justicia - Programa 40 | C91: 804000000 | D91: 804000000 | E91: 451904579 | F91: 451904579
B92: DIFERENCIAS | C92: =+C91-D91 -> 0 | E92: =+E91-F91 -> 0
B93: Proyecto 1674 | C93: 804000000 | D93: 804000000 | E93: 451904579 | F93: 451904579
B94: DIFERENCIAS | C94: =+C93-D93 -> 0 | E94: =+E93-F93 -> 0
B95: Cultura ciudadana para la confianza, la convivencia y la participación desde la vida cotidiana - Programa 43 | C95: 245553160 | D95: 245553160 | E95: 85000000 | F95: 85000000
B96: DIFERENCIAS | C96: =+C95-D95 -> 0 | E96: =+E95-F95 -> 0
B97: Proyecto 1676 | C97: 245553160 | D97: 245553160 | E97: 85000000 | F97: 85000000
B98: DIFERENCIAS | C98: =+C97-D97 -> 0 | E98: =+E97-F97 -> 0
B99: Plataforma institucional para la seguridad y justicia - Programa 48 | C99: 401878863 | D99: 401878863 | E99: 319350551 | F99: 319350551
B100: DIFERENCIAS | C100: =+C99-D99 -> 0 | E100: =+E99-F99 -> 0
B101: Proyecto 1683 | C101: 401878863 | D101: 401878863 | E101: 319350551 | F101: 319350551
B102: DIFERENCIAS | C102: =+C101-D101 -> 0 | E102: =+E101-F101 -> 0
B103: Propósito 4 - Hacer de Bogotá Región un modelo de movilidad multimodal, incluyente y sostenible | C103: 10022467126 | D103: 10022467126 | E103: 1442765146 | F103: 1442765146
B104: DIFERENCIAS | C104: =+C103-D103 -> 0 | E104: =+E103-F103 -> 0
B105: Movilidad segura, sostenible y accesible - Programa 49 | C105: 10022467126 | D105: 10022467126 | E105: 1442765146 | F105: 1442765146
B106: DIFERENCIAS | C106: =+C105-D105 -> 0 | E106: =+E105-F105 -> 0
B107: Proyecto 1688 | C107: 10022467126 | D107: 10022467126 | E107: 1442765146 | F107: 1442765146
B108: DIFERENCIAS | C108: =+C107-D107 -> 0 | E108: =+E107-F107 -> 0
B109: Propósito 5 - Construir Bogotá Región con gobierno abierto, transparente y ciudadanía consciente | C109: 9672403555 | D109: 9672403555 | E109: 5281804500 | F109: 5281804500
B110: DIFERENCIAS | C110: =+C109-D109 -> 0 | E110: =+E109-F109 -> 0
B111: Transformación digital y gestión de TIC para un territorio inteligente - Programa 54 | C111: 689662309 | D111: 689662309 | E111: 300634832 | F111: 300634832
B112: DIFERENCIAS | C112: =+C111-D111 -> 0 | E112: =+E111-F111 -> 0
B113: Proyecto 1692 | C113: 689662309 | D113: 689662309 | E113: 300634832 | F113: 300634832
B114: DIFERENCIAS | C114: =+C113-D113 -> 0 | E114: =+E113-F113 -> 0
B115: Fortalecimiento de Cultura Ciudadana y su institucionalidad - Programa 55 | C115: 2302949068 | D115: 2302949068 | E115: 317240879 | F115: 317240879
B116: DIFERENCIAS | C116: =+C115-D115 -> 0 | E116: =+E115-F115 -> 0
B117: Proyecto 1691 | C117: 2302949068 | D117: 2302949068 | E117: 317240879 | F117: 317240879
B118: DIFERENCIAS | C118: =+C117-D117 -> 0 | E118: =+E117-F117 -> 0
B119: Gestión Pública Efectiva - Programa 56 | C119: 851646974 | D119: 851646974 | E119: 98630000 | F119: 98630000
B120: DIFERENCIAS | C120: =+C119-D119 -> 0 | E120: =+E119-F119 -> 0
B121: Proyecto 1693 | C121: 851646974 | D121: 851646974 | E121: 98630000 | F121: 98630000
B122: DIFERENCIAS | C122: =+C121-D121 -> 0 | E122: =+E121-F121 -> 0
B123: Gestión Pública Local - programa 57 | C123: 5828145204 | D123: 5828145204 | E123: 4565298789 | F123: 4565298789
B124: DIFERENCIAS | C124: =+C123-D123 -> 0 | E124: =+E123-F123 -> 0
B125: Proyecto 1696 | C125: 5828145204 | D125: 5828145204 | E125: 4565298789 | F125: 4565298789
B126: DIFERENCIAS | C126: =+C125-D125 -> 0 | E126: =+E125-F125 -> 0

Sheet Proposito_programa
B2: PDD | C2: No. Programa | D2: Programa | E2: Propósito
A3: Acuerdo 761 2020 | B3: Un Nuevo Contrato Social y Ambiental para la Bogotá del Siglo XXI | C3: 1 | D3: Subsidios y transferencias para la equidad | E3: Propósito 1: Hacer un nuevo contrato social para incrementar la inclusión social, productiva y política
A4: Pag. 51 | B4: Un Nuevo Contrato Social y Ambiental para la Bogotá del Siglo XXI | C4: =+C3+1 -> 2 | D4: Igualdad de oportunidades y desarrollo de capacidades para las mujeres | E4: Propósito 1: Hacer un nuevo contrato social para incrementar la inclusión social, productiva y política
B5: Un Nuevo Contrato Social y Ambiental para la Bogotá del Siglo XXI | C5: =+C4+1 -> 3 | D5: Movilidad social integral | E5: Propósito 1: Hacer un nuevo contrato social para incrementar la inclusión social, productiva y política
B6: Un Nuevo Contrato Social y Ambiental para la Bogotá del Siglo XXI | C6: 4 | D6: Prevención de la exclusión por razones étnicas, religiosas, sociales, políticas y de orientación sexual | E6: Propósito 1: Hacer un nuevo contrato social para incrementar la inclusión social, productiva y política
B7: Un Nuevo Contrato Social y Ambiental para la Bogotá del Siglo XXI | C7: 5 | D7: Promoción de la igualdad, el desarrollo de capacidades y el reconocimiento de las mujeres | E7: Propósito 1: Hacer un nuevo contrato social para incrementar la inclusión social, productiva y política
B8: Un Nuevo Contrato Social y Ambiental para la Bogotá del Siglo XXI | C8: 6 | D8: Sistema Distrital de Cuidado | E8: Propósito 1: Hacer un nuevo contrato social para incrementar la inclusión social, productiva y política
B9: Un Nuevo Contrato Social y Ambiental para la Bogotá del Siglo XXI | C9: 7 | D9: Mejora de la gestión de instituciones de salud | E9: Propósito 1: Hacer un nuevo contrato social para incrementar la inclusión social, productiva y política
B10: Un Nuevo Contrato Social y Ambiental para la Bogotá del Siglo XXI | C10: 8 | D10: Prevención y atención de maternidad temprana | E10: Propósito 1: Hacer un nuevo contrato social para incrementar la inclusión social, productiva y política
B11: Un Nuevo Contrato Social y Ambiental para la Bogotá del Siglo XXI | C11: 9 | D11: Prevención y cambios para mejorar la salud de la población | E11: Propósito 1: Hacer un nuevo contrato social para incrementar la inclusión social, productiva y política
B12: Un Nuevo Contrato Social y Ambiental para la Bogotá del Siglo XXI | C12: 10 | D12: Salud para la vida y el bienestar | E12: Propósito 1: Hacer un nuevo contrato social para incrementar la inclusión social, productiva y política
B13: Un Nuevo Contrato Social y Ambiental para la Bogotá del Siglo XXI | C13: 11 | D13: Salud y bienestar para niñas y niños | E13: Propósito 1: Hacer un nuevo contrato social para incrementar la inclusión social, productiva y política
B14: Un Nuevo Contrato Social y Ambiental para la Bogotá del Siglo XXI | C14: 12 | D14: Educación inicial: Bases sólidas para la vida. | E14: Propósito 1: Hacer un nuevo contrato social para incrementar la inclusión social, productiva y política
B15: Un Nuevo Contrato Social y Ambiental para la Bogotá del Siglo XXI | C15: 13 | D15: Educación para todos y todas: acceso y permanencia con equidad y énfasis en educación rural | E15: Propósito 1: Hacer un nuevo contrato social para incrementar la inclusión social, productiva y política
B16: Un Nuevo Contrato Social y Ambiental para la Bogotá del Siglo XXI | C16: 14 | D16: Formación integral: más y mejor tiempo en los colegios | E16: Propósito 1: Hacer un nuevo contrato social para incrementar la inclusión social, productiva y política
B17: Un Nuevo Contrato Social y Ambiental para la Bogotá del Siglo XXI | C17: 15 | D17: Plan Distrital de Lectura, Escritura y Oralidad: "Leer para la vida" | E17: Propósito 1: Hacer un nuevo contrato social para incrementar la inclusión social, productiva y política
B18: Un Nuevo Contrato Social y Ambiental para la Bogotá del Siglo XXI | C18: 16 | D18: Transformación pedagógica y mejoramiento de la gestión educativa. Es con los maestros y maestras. | E18: Propósito 1: Hacer un nuevo contrato social para incrementar la inclusión social, productiva y política
B19: Un Nuevo Contrato Social y Ambiental para la Bogotá del Siglo XXI | C19: 17 | D19: Jóvenes con capacidades: Proyecto de vida para la ciudadanía, la innovación y el trabajo del siglo XXI | E19: Propósito 1: Hacer un nuevo contrato social para incrementar la inclusión social, productiva y política
B20: Un Nuevo Contrato Social y Ambiental para la Bogotá del Siglo XXI | C20: 18 | D20: Cierre de brechas para la inclusión productiva urbano rural | E20: Propósito 1: Hacer un nuevo contrato social para incrementar la inclusión social, productiva y política
B21: Un Nuevo Contrato Social y Ambiental para la Bogotá del Siglo XXI | C21: 19 | D21: Vivienda y entornos dignos en el territorio urbano y rural | E21: Propósito 1: Hacer un nuevo contrato social para incrementar la inclusión social, productiva y política
B22: Un Nuevo Contrato Social y Ambiental para la Bogotá del Siglo XXI | C22: 20 | D22: Bogotá, referente en cultura, deporte, recreación y actividad física, con parques para el desarrollo y la salud | E22: Propósito 1: Hacer un nuevo contrato social para incrementar la inclusión social, productiva y política
B23: Un Nuevo Contrato Social y Ambiental para la Bogotá del Siglo XXI | C23: 21 | D23: Creación y vida cotidiana: Apropiación ciudadana del arte, la cultura y el patrimonio, para la democracia cultural | E23: Propósito 1: Hacer un nuevo contrato social para incrementar la inclusión social, productiva y política
B24: Un Nuevo Contrato Social y Ambiental para la Bogotá del Siglo XXI | C24: 22 | D24: Transformación cultural para la conciencia ambiental y el cuidado de la fauna doméstica | E24: Propósito 1: Hacer un nuevo contrato social para incrementar la inclusión social, productiva y política
B25: Un Nuevo Contrato Social y Ambiental para la Bogotá del Siglo XXI | C25: 23 | D25: Bogotá rural | E25: Propósito 1: Hacer un nuevo contrato social para incrementar la inclusión social, productiva y política
B26: Un Nuevo Contrato Social y Ambiental para la Bogotá del Siglo XXI | C26: 24 | D26: Bogotá región emprendedora e innovadora | E26: Propósito 1: Hacer un nuevo contrato social para incrementar la inclusión social, productiva y política
B27: Un Nuevo Contrato Social y Ambiental para la Bogotá del Siglo XXI | C27: 25 | D27: Bogotá región productiva y competitiva | E27: Propósito 1: Hacer un nuevo contrato social para incrementar la inclusión social, productiva y política
B28: Un Nuevo Contrato Social y Ambiental para la Bogotá del Siglo XXI | C28: 26 | D28: Bogotá - región, el mejor destino para visitar | E28: Propósito 1: Hacer un nuevo contrato social para incrementar la inclusión social, productiva y política
B29: Un Nuevo Contrato Social y Ambiental para la Bogotá del Siglo XXI | C29: 27 | D29: Cambio cultural para la gestión de la crisis climática | E29: Propósito 2 : Cambiar Nuestros Hábitos de Vida para Reverdecer a Bogotá y Adaptarnos y Mitigar la Crisis Climática
B30: Un Nuevo Contrato Social y Ambiental para la Bogotá del Siglo XXI | C30: =+C29+1 -> 28 | D30: Bogotá protectora de sus recursos naturales | E30: Propósito 2 : Cambiar Nuestros Hábitos de Vida para Reverdecer a Bogotá y Adaptarnos y Mitigar la Crisis Climática
B31: Un Nuevo Contrato Social y Ambiental para la Bogotá del Siglo XXI | C31: =+C30+1 -> 29 | D31: Asentamientos y entornos protectores | E31: Propósito 2 : Cambiar Nuestros Hábitos de Vida para Reverdecer a Bogotá y Adaptarnos y Mitigar la Crisis Climática
B32: Un Nuevo Contrato Social y Ambiental para la Bogotá del Siglo XXI | C32: 30 | D32: Eficiencia en la atención de emergencias | E32: Propósito 2 : Cambiar Nuestros Hábitos de Vida para Reverdecer a Bogotá y Adaptarnos y Mitigar la Crisis Climática
B33: Un Nuevo Contrato Social y Ambiental para la Bogotá del Siglo XXI | C33: 31 | D33: Protección y valoración del patrimonio tangible e intangible en Bogotá y la región | E33: Propósito 2 : Cambiar Nuestros Hábitos de Vida para Reverdecer a Bogotá y Adaptarnos y Mitigar la Crisis Climática
B34: Un Nuevo Contrato Social y Ambiental para la Bogotá del Siglo XXI | C34: 32 | D34: Revitalización urbana para la competitividad | E34: Propósito 2 : Cambiar Nuestros Hábitos de Vida para Reverdecer a Bogotá y Adaptarnos y Mitigar la Crisis Climática
B35: Un Nuevo Contrato Social y Ambiental para la Bogotá del Siglo XXI | C35: 33 | D35: Más árboles y más y mejor espacio público | E35: Propósito 2 : Cambiar Nuestros Hábitos de Vida para Reverdecer a Bogotá y Adaptarnos y Mitigar la Crisis Climática
B36: Un Nuevo Contrato Social y Ambiental para la Bogotá del Siglo XXI | C36: 34 | D36: Bogotá protectora de los animales | E36: Propósito 2 : Cambiar Nuestros Hábitos de Vida para Reverdecer a Bogotá y Adaptarnos y Mitigar la Crisis Climática
B37: Un Nuevo Contrato Social y Ambiental para la Bogotá del Siglo XXI | C37: 35 | D37: Manejo y prevención de contaminación | E37: Propósito 2 : Cambiar Nuestros Hábitos de Vida para Reverdecer a Bogotá y Adaptarnos y Mitigar la Crisis Climática
B38: Un Nuevo Contrato Social y Ambiental para la Bogotá del Siglo XXI | C38: 36 | D38: Manejo y saneamiento de los cuerpos de agua | E38: Propósito 2 : Cambiar Nuestros Hábitos de Vida para Reverdecer a Bogotá y Adaptarnos y Mitigar la Crisis Climática
B39: Un Nuevo Contrato Social y Ambiental para la Bogotá del Siglo XXI | C39: 37 | D39: Provisión y mejoramiento de servicios públicos | E39: Propósito 2 : Cambiar Nuestros Hábitos de Vida para Reverdecer a Bogotá y Adaptarnos y Mitigar la Crisis Climática
B40: Un Nuevo Contrato Social y Ambiental para la Bogotá del Siglo XXI | C40: 38 | D40: Ecoeficiencia, reciclaje, manejo de residuos e inclusión de la población recicladora | E40: Propósito 2 : Cambiar Nuestros Hábitos de Vida para Reverdecer a Bogotá y Adaptarnos y Mitigar la Crisis Climática
